Workbook

Sheet 4 вариант 15.02 (hidden)
A1: IV. Реестр многоквартирных домов, которые подлежат капитальному ремонту в 2018 году, с учетом мер государственной поддержки
A2: № п\п | B2: Адрес МКД | C2: Стоимость капитального ремонта ВСЕГО | D2: Виды работ
D3: Ремонт внутридомовых инженерных систем | J3: Ремонт или замена лифтового оборудования | L3: Ремонт крыши | N3: Ремонт подвальных помещений | P3: Ремонт фасада | R3: Ремонт фундамента | T3: Ремонт подъездов | V3: Утепление фасадов | X3: Установка коллектив-ных (общедо-мовых) ПУ и УУ | Y3: Проект-ные работы | Z3: Работы по предпроектной подготовке
D4: Всего работ по инженерным системам | E4: в том числе
E5: Ремонт сетей электроснабжения | F5: Ремонт сетей теплоснабжения | G5: Ремонт сетей холодного водоснабжения | H5: Ремонт сетей горячего водоснабжения | I5: Ремонт систем водоотведения
C6: руб. | D6: руб. | E6: руб. | F6: руб. | G6: руб. | H6: руб. | I6: руб. | J6: ед. | K6: руб. | L6: кв.м. | M6: руб. | N6: кв.м. | O6: руб. | P6: кв.м. | Q6: руб. | R6: куб.м. | S6: руб. | T6: куб.м. | U6: руб. | V6: кв.м. | W6: руб. | X6: руб. | Y6: руб. | Z6: руб.
A7: 1 | B7: 2 | C7: 3 | D7: 4 | E7: 5 | F7: 6 | G7: 7 | H7: 8 | I7: 9 | J7: 10 | K7: 11 | L7: 12 | M7: 13 | N7: 14 | O7: 15 | P7: 16 | Q7: 17 | R7: 18 | S7: 19 | T7: 20 | U7: 21 | V7: 22 | W7: 23 | X7: 24 | Y7: 25 | Z7: 24
A8: Объекты культурного наследия по г. Выборгу
A9: Муниципальное образование "Город Выборг"
A10: 1 | B10: г. Выборг, просп. Ленина, д. 6 | C10: =M10+Q10 -> 49775695.93 | D10: =E10+F10+G10+H10+I10 -> 0 | L10: 998 | M10: 10968656.84 | P10: 3425 | Q10: 38807039.09
A11: =A10+1 -> 2 | B11: г. Выборг, ул. Железнодорожная, д. 2 | C11: =M11+Q11 -> 71246479.39 | D11: 0 | L11: 2373 | M11: 27524999 | P11: 5336 | Q11: 43721480.39
A12: =A11+1 -> 3 | B12: г. Выборг, ул. Железнодорожная, д. 4 | C12: 32678707.01 | D12: 0 | L12: 872 | M12: 11984761.14 | P12: 2144 | Q12: 20693945.87
A13: 4 | B13: г. Выборг, ул. Крепостная, д. 37 | C13: 35893316.08 | D13: 0 | P13: 3816 | Q13: 35893316.08
A14: 5 | B14: г. Выборг, просп. Ленина, д. 20 | C14: 41972672.83 | D14: 0 | L14: 1343 | M14: 15061442.03 | P14: 3979 | Q14: 26911230.8
A15: 6 | B15: г. Выборг, просп. Ленина, д. 18 | C15: 59578132.51 | D15: 0 | L15: 2045 | M15: 24228789.09 | P15: 6152 | Q15: 35349343.42
A16: 7 | B16: г. Выборг, просп. Суворова, д. 25 | C16: 45928527.66 | D16: 0 | L16: 844 | M16: 10966897.22 | P16: 2501 | Q16: 34961630.44
A17: 8 | B17: г. Выборг, ул. Северная, д. 8 | C17: 51170285.81 | D17: 0 | P17: 6460 | Q17: 51170285.81
A18: 9 | B18: г. Выборг, ул. Северная, д. 10 | C18: 60495179.12 | D18: 0 | P18: 4160 | Q18: 60495179.12
A19: 10 | B19: г. Выборг, Ленинградский пр., д. 14 | C19: 26008913.35 | D19: 0 | L19: 540 | M19: 7099248.06 | P19: 2623 | Q19: 18909665.29
A20: 11 | B20: г. Выборг, Ленинградский пр., д. 16 | C20: 26073352.2 | D20: 0 | L20: 760 | M20: 8877863.95 | P20: 1116 | Q20: 17195488.25
A21: 12 | B21: г. Выборг, Ленинградский пр., д. 31 | C21: 64195351.77 | D21: 0 | L21: 1598 | M21: 15544550 | P21: 5534 | Q21: 48650801.77
A22: 13 | B22: г. Выборг, Ленинградское ш., д. 1 | C22: 96318597.45 | D22: 0 | L22: 2280 | M22: 22581195.35 | P22: 6423 | Q22: 73737402.1
A23: Итого по муниципальному образованию | C23: =SUM(C10:C22) -> 661335211.1 | D23: =SUM(D10:D22) -> 0 | E23: 0 | F23: 0 | G23: 0 | H23: 0 | I23: 0 | J23: 0 | K23: 0 | L23: 13653 | M23: =SUM(M10:M22) -> 154838402.7 | N23: 0 | O23: 0 | P23: 53669 | Q23: 506496808.4 | R23: 0 | S23: 0 | T23: 0 | U23: 0 | V23: 0 | W23: 0 | X23: 0 | Y23: 0
A24: ИТОГО по Ленинградской области | C24: =C23 -> 661335211.1 | D24: =D23 -> 0 | E24: 0 | F24: 0 | G24: 0 | H24: 0 | I24: 0 | J24: 0 | K24: 0 | L24: 13653 | M24: 154838402.7 | N24: 0 | O24: 0 | P24: 53669 | Q24: 506496808.4 | R24: 0 | S24: 0 | T24: 0 | U24: 0 | V24: 0 | W24: 0 | X24: 0 | Y24: 0
A25: Осуществление строительного контроля | C25: =C24*0.0214 -> 14152573.52
A26: Итого по Ленинградской области со строительным контролем | C26: =C24+C25 -> 675487784.6
Z42: =SUM(Z24:Z41) -> 0
Z47: =SUM(Z44:Z46) -> 0
Z48: =Z42+#REF!+Z47+#REF! -> 
Z100: =SUM(Z87:Z99) -> 0
Z123: =SUM(Z105:Z122) -> 0
Z134: =SUM(Z128:Z133) -> 0
Z142: =SUM(Z136:Z141) -> 0
Z148: =SUM(Z144:Z146) -> 0
Z149: =Z100+Z123+Z134+Z148+Z142+Z126 -> 0
Z156: =SUM(Z152:Z155) -> 0
Z220: =SUM(Z161:Z219) -> 0
Z227: =SUM(Z226) -> 0
Z234: =Z156+Z220+Z227 -> 0
Z249: =SUM(Z237:Z248) -> 0
Z254: =SUM(Z251:Z253) -> 0
Z255: =Z249+Z254 -> 0
Z285: =SUM(Z258:Z284) -> 0
Z290: =SUM(Z287:Z289) -> 0
Z294: =SUM(Z292:Z293) -> 0
Z295: =Z285+Z294+Z290 -> 0
Z322: =SUM(Z298:Z321) -> 0
Z339: =SUM(Z324:Z338) -> 0
Z346: =SUM(Z341:Z345) -> 0
Z349: =SUM(Z348:Z348) -> 0
Z357: =SUM(Z351:Z356) -> 0
Z365: =SUM(Z359:Z364) -> 0
Z366: =E366+F366+G366+H366+I366+K366+M366+O366+Q366+S366+U366+V366+W366+X366 -> 0
Z367: =E367+F367+G367+H367+I367+K367+M367+O367+Q367+S367+U367+V367+W367+X367 -> 0
Z368: =E368+F368+G368+H368+I368+K368+M368+O368+Q368+S368+U368+V368+W368+X368 -> 0
Z369: =E369+F369+G369+H369+I369+K369+M369+O369+Q369+S369+U369+V369+W369+X369 -> 0
Z370: =E370+F370+G370+H370+I370+K370+M370+O370+Q370+S370+U370+V370+W370+X370 -> 0
Z396: =SUM(Z372:Z395) -> 0
Z397: =SUM(Z396+Z365+Z357+Z349+Z346+Z339+Z322) -> 0
Z433: =SUM(Z400:Z432) -> 0
Z434: =Z433 -> 0
Z443: =SUM(Z437:Z440) -> 0
Z446: =SUM(Z445:Z445) -> 0
Z451: =SUM(Z448:Z450) -> 0
Z457: =SUM(Z453:Z456) -> 0
Z463: =SUM(Z459:Z462) -> 0
Z467: =SUM(Z465:Z466) -> 0
Z473: =SUM(Z469:Z472) -> 0
Z474: =Z451+Z443+Z446+Z473+Z467+Z457+Z463 -> 0
Z479: =SUM(Z477:Z478) -> 0
Z502: =SUM(Z493:Z501) -> 0
Z506: =SUM(Z504:Z505) -> 0
Z509: =SUM(Z508:Z508) -> 0
Z518: =SUM(Z511:Z517) -> 0
Z526: =SUM(Z520:Z525) -> 0
Z529: =SUM(Z528:Z528) -> 0
Z532: =SUM(Z531) -> 0
Z539: =Z479+Z502+Z506+Z509+Z518+Z526+Z529+Z532+Z538 -> 0
Z550: =SUM(Z542:Z549) -> 0
Z551: =Z550 -> 0
Z559: =SUM(Z554:Z558) -> 0
Z565: =SUM(Z561:Z564) -> 0
Z570: =SUM(Z567:Z569) -> 0
Z576: =SUM(Z572:Z575) -> 0
Z580: =SUM(Z578:Z579) -> 0
Z588: =Z586+Z587 -> 0
Z589: =Z559+Z565+Z570+Z576+Z580 -> 0
Z593: =SUM(Z592:Z592) -> 0
Z596: =SUM(Z595) -> 0
Z634: =SUM(Z598:Z633) -> 0
Z635: =Z634+Z596+Z593 -> 0
Z756: =SUM(Z637:Z755) -> 0
Z868: =SUM(Z764:Z867) -> 0
Z888: =SUM(Z870:Z887) -> 0
Z889: =Z868+Z888 -> 0
Z893: =SUM(Z892:Z892) -> 0
Z901: =SUM(Z895:Z900) -> 0
Z904: =SUM(Z903:Z903) -> 0
Z924: =SUM(Z906:Z923) -> 0
Z927: =SUM(Z926:Z926) -> 0
Z930: =SUM(Z929) -> 0
Z931: =Z901+Z904+Z927+Z924+Z893+Z930 -> 0
Y933: =#REF!-#REF! -> 
Y934: =#REF!-Y933 -> 
Y936: 80325165.22
Y937: =Y933-Y936 -> 

Sheet Раздел I
Q1: Приложение 2
P2: к постановлению Правительства Ленинградской области
P3: от "21" мая 2020 года №323
A4: Краткосрочный план реализации в 2020-2022 годах Региональной программы капитального ремонта общего имущества в многоквартирных домах, расположенных на территории Ленинградской области
A5: Раздел I. Перечень многоквартирных домов, в которых будет проводиться капитальный ремонт лифтового оборудования в период 2020-2022, за счет средств собственников
A6: № п\п | B6: Адрес МКД | C6: Год | E6: Материал стен | F6: Количество этажей | G6: Количество лифтов | H6: Количество подъездов | I6: общая площадь МКД, всего | J6: Площадь помещений МКД: | L6: Количество жителей, зарегистрированных в МКД | M6: Стоимость капитального ремонта | Q6: Стоимость капитального ремонта за счет средств собственников помещений в МКД | R6: Плановая дата завершения работ | S6: способ формирования фонда капитального ремонта
C7: ввода в эксплуатацию | D7: завершение последнего капитального ремонта | J7: всего: | K7: в том числе жилых помещений, находящихся в собственности граждан | M7: всего: | N7: федеральный бюджет | O7: областной бюджет | P7: за счет средств местного бюджета
I9: кв.м | J9: кв.м | K9: кв.м | L9: чел. | M9: руб. | P9: руб.
A10: 1 | B10: 2 | C10: 3 | D10: 4 | E10: 5 | F10: 6 | G10: 7 | H10: 8 | I10: 9 | J10: 10 | K10: 11 | L10: 12 | M10: 13 | N10: 14 | O10: 15 | P10: 16 | Q10: 13 | R10: 14 | S10: 15 | T10: 20 | U10: 21 | V10: 22 | W10: 23 | X10: 24 | Y10: 25
A11: Волховский муниципальный район
A12: Муниципальное образование Город Волхов
A13: 1 | B13: Г. Волхов, просп. Волховский, д. 57 | C13: 1994 | E13: кирпич | F13: 9 | G13: 1 | H13: 1 | I13: 3238.7 | J13: 2407 | K13: 2047 | L13: 111 | M13: =Q13 -> 2735709.46 | N13: 0 | O13: 0 | P13: 0 | Q13: =SUMIF('Раздел 2'!B:B,B13,'Раздел 2'!C:C)+SUMIF('Раздел 3'!B:B,B13,'Раздел 3'!C:C)+SUMIF('Раздел 4'!B:B,B13,'Раздел 4'!C:C) -> 2735709.46 | R13: 2022-12-30 | S13: РО
A14: Итого по муниципальному образованию | C14: х | D14: х | E14: х | F14: х | G14: =SUM(G13) -> 1 | H14: х | I14: =SUM(I13) -> 3238.7 | J14: =SUM(J13) -> 2407 | K14: 2047 | L14: 111 | M14: =M13 -> 2735709.46 | N14: =N13 -> 0 | O14: 0 | P14: 0 | Q14: 2735709.46 | R14: х | S14: х
A15: Итого по Волховскому муниципальному району | C15: х | D15: х | E15: х | F15: х | G15: =SUM(G14) -> 1 | H15: х | I15: =SUM(I14) -> 3238.7 | J15: 2407 | K15: 2047 | L15: 111 | M15: =M14 -> 2735709.46 | N15: 0 | O15: 0 | P15: 0 | Q15: 2735709.46 | R15: х | S15: х | T15: =Q15-'Раздел 3'!C9-'Раздел 4'!C10 -> 0
A16: Всеволожский муниципальный район
A17: Муниципальное образование "Город Всеволожск"
A18: =A13+1 -> 2 | B18: Г. Всеволожск, ул. Александровская, д. 81, корп. 3 | C18: 1996 | F18: 8 | G18: 2 | H18: 2 | I18: 4215.1 | J18: 4215.1 | K18: 2782 | L18: 170 | M18: =Q18 -> 5276630.92 | N18: 0 | O18: 0 | P18: 0 | Q18: =SUMIF('Раздел 2'!B:B,B18,'Раздел 2'!C:C)+SUMIF('Раздел 3'!B:B,B18,'Раздел 3'!C:C)+SUMIF('Раздел 4'!B:B,B18,'Раздел 4'!C:C) -> 5276630.92 | R18: 2022-12-30 | S18: РО
A19: =A18+1 -> 3 | B19: Г. Всеволожск, ул. Балашова, д. 8/3 | C19: 1995 | F19: 9 | G19: 2 | H19: 2 | I19: 4768.2 | J19: 4768.2 | K19: 2407 | L19: 154 | M19: =Q19 -> 5276630.92 | N19: 0 | O19: 0 | P19: 0 | Q19: =SUMIF('Раздел 2'!B:B,B19,'Раздел 2'!C:C)+SUMIF('Раздел 3'!B:B,B19,'Раздел 3'!C:C)+SUMIF('Раздел 4'!B:B,B19,'Раздел 4'!C:C) -> 5276630.92 | R19: 2022-12-30 | S19: РО
A20: =A19+1 -> 4 | B20: Г. Всеволожск, ул. Василеозерская, д. 5 | C20: 1995 | F20: 10 | G20: 2 | H20: 2 | I20: 5400.9 | J20: 5400.9 | K20: 2392 | L20: 141 | M20: 5276630.92 | N20: 0 | O20: 0 | P20: 0 | Q20: =SUMIF('Раздел 2'!B:B,B20,'Раздел 2'!C:C)+SUMIF('Раздел 3'!B:B,B20,'Раздел 3'!C:C)+SUMIF('Раздел 4'!B:B,B20,'Раздел 4'!C:C) -> 5276630.92 | R20: 2022-12-30 | S20: РО
A21: =A20+1 -> 5 | B21: Г. Всеволожск, ул. Василеозерская, д. 7 | C21: 1996 | F21: 10 | G21: 2 | H21: 2 | I21: 5786.9 | J21: 5786.9 | K21: 3645 | L21: 205 | M21: 5471418.92 | N21: 0 | O21: 0 | P21: 0 | Q21: =SUMIF('Раздел 2'!B:B,B21,'Раздел 2'!C:C)+SUMIF('Раздел 3'!B:B,B21,'Раздел 3'!C:C)+SUMIF('Раздел 4'!B:B,B21,'Раздел 4'!C:C) -> 5471418.92 | R21: 2022-12-30 | S21: РО
A22: 6 | B22: Г. Всеволожск, ул. Вокка, д. 3 | C22: 1991 | F22: 9 | G22: 2 | H22: 2 | I22: 4954.1 | J22: 4954.1 | K22: 3450 | L22: 190.5 | M22: 5471418.92 | N22: 0 | O22: 0 | P22: 0 | Q22: =SUMIF('Раздел 2'!B:B,B22,'Раздел 2'!C:C)+SUMIF('Раздел 3'!B:B,B22,'Раздел 3'!C:C)+SUMIF('Раздел 4'!B:B,B22,'Раздел 4'!C:C) -> 5471418.92 | R22: 2022-12-30 | S22: РО
A23: 7 | B23: Г. Всеволожск, ул. Ленинградская, д. 24/84 | C23: 1994 | F23: 10 | G23: 7 | H23: 7 | I23: 13448.5 | J23: 13448.5 | K23: 3707.4 | L23: 199.7 | M23: 27136455.22 | N23: 0 | O23: 0 | P23: 0 | Q23: =SUMIF('Раздел 2'!B:B,B23,'Раздел 2'!C:C)+SUMIF('Раздел 3'!B:B,B23,'Раздел 3'!C:C)+SUMIF('Раздел 4'!B:B,B23,'Раздел 4'!C:C) -> 27136455.22 | R23: 2022-12-30 | S23: РО
A24: 8 | B24: Г. Всеволожск, ул. Ленинградская, д. 30, корп. 1 | C24: 1993 | F24: 9 | G24: 1 | H24: 3 | I24: 6885.1 | J24: 6885.1 | K24: 3964.8 | L24: 208.9 | M24: 2735709.46 | N24: 0 | O24: 0 | P24: 0 | Q24: =SUMIF('Раздел 2'!B:B,B24,'Раздел 2'!C:C)+SUMIF('Раздел 3'!B:B,B24,'Раздел 3'!C:C)+SUMIF('Раздел 4'!B:B,B24,'Раздел 4'!C:C) -> 2735709.46 | R24: 2022-12-30 | S24: РО
A25: Итого по муниципальному образованию | C25: x | D25: x | E25: x | F25: x | G25: =SUM(G18:G24) -> 18 | H25: x | I25: =SUM(I19:I23) -> 34358.6 | J25: =SUM(J19:J23) -> 34358.6 | K25: =SUM(K19:K23) -> 15601.4 | L25: =SUM(L19:L23) -> 890.2 | M25: =SUM(M18:M24) -> 56644895.28 | N25: =SUM(N18:N24) -> 0 | O25: 0 | P25: 0 | Q25: =SUM(Q18:Q24) -> 56644895.28 | R25: x | S25: x | T25: =Q25-'Раздел 2'!C11-'Раздел 3'!C19-'Раздел 4'!C16 -> 0 | U25: =M25-'Раздел 2'!C11-'Раздел 3'!C19-'Раздел 4'!C16 -> 0
A26: Муниципальное образование Муринское сельское поселение
A27: =A24+1 -> 9 | B27: Пос. Мурино, ул. Оборонная, д. 12 | C27: 1992 | E27: кирпич | F27: 9 | G27: 2 | H27: 2 | I27: 5334 | J27: 4507 | K27: 2782 | L27: 170 | M27: =Q27 -> 5276630.92 | N27: 0 | O27: 0 | P27: 0 | Q27: =SUMIF('Раздел 2'!B:B,B27,'Раздел 2'!C:C)+SUMIF('Раздел 3'!B:B,B27,'Раздел 3'!C:C)+SUMIF('Раздел 4'!B:B,B27,'Раздел 4'!C:C) -> 5276630.92 | R27: 2022-12-30 | S27: РО
A28: =A27+1 -> 10 | B28: Пос. Мурино, ул. Оборонная, д. 18 | C28: 1993 | E28: Ж/б панели | F28: 10 | G28: 2 | H28: 2 | I28: 5861 | J28: 4909 | K28: 2407 | L28: 154 | M28: =Q28 -> 7753272.92 | N28: 0 | O28: 0 | P28: 0 | Q28: =SUMIF('Раздел 2'!B:B,B28,'Раздел 2'!C:C)+SUMIF('Раздел 3'!B:B,B28,'Раздел 3'!C:C)+SUMIF('Раздел 4'!B:B,B28,'Раздел 4'!C:C) -> 7753272.92 | R28: 2022-12-30 | S28: РО
A29: =A28+1 -> 11 | B29: Пос. Мурино, ул. Оборонная, д. 22 | C29: 1993 | E29: Ж/б панели | F29: 10 | G29: 2 | H29: 2 | I29: 5436 | J29: 4484 | K29: 2392 | L29: 141 | M29: 2638315.46 | N29: 0 | O29: 0 | P29: 0 | Q29: =SUMIF('Раздел 2'!B:B,B29,'Раздел 2'!C:C)+SUMIF('Раздел 3'!B:B,B29,'Раздел 3'!C:C)+SUMIF('Раздел 4'!B:B,B29,'Раздел 4'!C:C) -> 2638315.46 | R29: 2022-12-30 | S29: РО | U29: =M31-'Раздел 2'!C17-'Раздел 3'!C24 -> 0
A30: =A29+1 -> 12 | B30: Пос. Мурино, ул. Оборонная, д. 24 | C30: 1994 | E30: Ж/б панели | F30: 10 | G30: 3 | H30: 3 | I30: 8215 | J30: 6784 | K30: 3645 | L30: 205 | M30: 7914946.38 | N30: ='Раздел 3'!#REF! ->  | O30: ='Раздел 3'!#REF! ->  | P30: ='Раздел 3'!#REF! ->  | Q30: =SUMIF('Раздел 2'!B:B,B30,'Раздел 2'!C:C)+SUMIF('Раздел 3'!B:B,B30,'Раздел 3'!C:C)+SUMIF('Раздел 4'!B:B,B30,'Раздел 4'!C:C) -> 7914946.38 | R30: 2022-12-30 | S30: РО
A31: Итого по муниципальному образованию | C31: x | D31: x | E31: x | F31: x | G31: =G30 -> 3 | H31: x | I31: =SUM(I27:I29) -> 16631 | J31: 13900 | K31: 7581 | L31: 465 | M31: =SUM(M27:M30) -> 23583165.68 | N31: =SUM(N27:N30) ->  | Q31: =SUM(Q27:Q30) -> 23583165.68 | R31: x | S31: x | T31: =Q31-'Раздел 2'!C17-'Раздел 3'!C24 -> 0
A32: Муниципальное образование Свердловское городское поселение
A33: =A30+1 -> 13 | B33: Пос. им. Свердлова, микрорайон 1, д. 8 | C33: 1994 | E33: Ж/б панели | F33: 9 | G33: 4 | H33: 4 | I33: 8231.7 | J33: 8202.3 | K33: 8132.9 | L33: 273 | M33: =Q33 -> 10553261.84 | N33: 0 | O33: 0 | P33: 0 | Q33: =SUMIF('Раздел 2'!B:B,B33,'Раздел 2'!C:C)+SUMIF('Раздел 3'!B:B,B33,'Раздел 3'!C:C)+SUMIF('Раздел 4'!B:B,B33,'Раздел 4'!C:C) -> 10553261.84 | R33: 2022-12-30 | S33: РО
A34: Итого по муниципальному образованию | C34: x | D34: x | E34: x | F34: x | G34: =G33 -> 4 | H34: =SUM(H33) -> 4 | I34: =SUM(I33) -> 8231.7 | J34: =SUM(J33) -> 8202.3 | K34: 8132.9 | L34: 273 | M34: =M33 -> 10553261.84 | N34: =N33 -> 0 | O34: 0 | P34: 0 | Q34: =Q33 -> 10553261.84 | R34: x | S34: x
A35: Муниципальное образование "Сертолово"
A36: =A33+1 -> 14 | B36: Г. Сертолово, микрорайон Сертолово-1, ул. Молодежная, д. 8, корп. 2 | C36: 1993 | E36: панельный | F36: 10 | G36: 3 | H36: 3 | I36: 7982.3 | J36: 7092.3 | K36: 7092.3 | L36: 286 | M36: =Q36 -> 7914946.38 | N36: 0 | O36: 0 | P36: 0 | Q36: =SUMIF('Раздел 2'!B:B,B36,'Раздел 2'!C:C)+SUMIF('Раздел 3'!B:B,B36,'Раздел 3'!C:C)+SUMIF('Раздел 4'!B:B,B36,'Раздел 4'!C:C) -> 7914946.38 | R36: 2022-12-30 | S36: РО
A37: =A36+1 -> 15 | B37: Г. Сертолово, микрорайон Сертолово-1, ул. Центральная, д. 6, корп. 1 | C37: 1994 | E37: панельный | F37: 10 | G37: 3 | H37: 3 | I37: 7572 | J37: 6727 | K37: 6727 | L37: 339 | M37: =Q37 -> 8667924.47 | N37: 0 | O37: 0 | P37: 0 | Q37: =SUMIF('Раздел 2'!B:B,B37,'Раздел 2'!C:C)+SUMIF('Раздел 3'!B:B,B37,'Раздел 3'!C:C)+SUMIF('Раздел 4'!B:B,B37,'Раздел 4'!C:C) -> 8667924.47 | R37: 2022-12-30 | S37: РО
A38: =A37+1 -> 16 | B38: Г. Сертолово, микрорайон Сертолово-1, ул. Центральная, д. 7, корп. 1 | C38: 1993 | E38: панельный | F38: 10 | G38: 3 | H38: 3 | I38: 7654 | J38: 6803.8 | K38: 6803.8 | L38: 296 | M38: 8680076.04 | N38: 0 | O38: 0 | P38: 0 | Q38: =SUMIF('Раздел 2'!B:B,B38,'Раздел 2'!C:C)+SUMIF('Раздел 3'!B:B,B38,'Раздел 3'!C:C)+SUMIF('Раздел 4'!B:B,B38,'Раздел 4'!C:C) -> 8680076.04 | R38: 2022-12-30 | S38: РО
A39: Итого по муниципальному образованию | C39: x | D39: x | E39: x | F39: x | G39: =SUM(G36:G38) -> 9 | H39: x | I39: 23208.3 | J39: 20623.1 | K39: 20623.1 | L39: 921 | M39: =SUM(M36:M38) -> 25262946.89 | N39: =SUM(N36:N38) -> 0 | O39: 0 | P39: 0 | Q39: =SUM(Q36:Q38) -> 25262946.89 | R39: x | S39: x
A40: Итого по Всеволожскому муниципальному району | C40: x | D40: x | E40: x | F40: x | G40: =G39+G34+G31+G25 -> 34 | H40: х | I40: =I39+I34+I31+I25 -> 82429.6 | J40: =J39+J34+J31+J25 -> 77084 | K40: 51938.4 | L40: 2549.2 | M40: 116044269.7 | Q40: 116044269.7 | R40: x | S40: x | T40: =Q40-'Раздел 2'!C26-'Раздел 3'!C31-'Раздел 4'!C17 -> 0 | U40: =M40-'Раздел 2'!C26-'Раздел 3'!C31-'Раздел 4'!C17 -> 0
A41: Выборгский район
A42: Муниципальное образование "Город Выборг
A43: =A38+1 -> 17 | B43: Г. Выборг, бул. Кутузова, д. 33 | C43: 1940 | E43: кирпич | F43: 6 | G43: 3 | H43: 3 | I43: 2910.22 | J43: 2910.22 | K43: 2630.54 | L43: 80 | M43: =Q43 -> 2540171.372 | N43: 0 | O43: 0 | P43: 0 | Q43: =SUMIF('Раздел 2'!B:B,B43,'Раздел 2'!C:C)+SUMIF('Раздел 3'!B:B,B43,'Раздел 3'!C:C)+SUMIF('Раздел 4'!B:B,B43,'Раздел 4'!C:C) -> 2540171.372 | R43: 2022-12-30 | S43: РО
A44: =A43+1 -> 18 | B44: Г. Выборг, просп. Московский, д. 10 | C44: 1934 | E44: шлакоблоки, кирпич | F44: 7 и 8 | G44: 1 | H44: 3 | I44: 5809.49 | J44: 2865.55 | K44: 5585.42 | L44: 167 | M44: =Q44 -> 2655861.567 | N44: 0 | O44: 0 | P44: 0 | Q44: =SUMIF('Раздел 2'!B:B,B44,'Раздел 2'!C:C)+SUMIF('Раздел 3'!B:B,B44,'Раздел 3'!C:C)+SUMIF('Раздел 4'!B:B,B44,'Раздел 4'!C:C) -> 2655861.567 | R44: 2022-12-30 | S44: РО
A45: 19 | B45: Г. Выборг, просп. Победы, д. 12 | C45: 1996 | E45: Кер.бет. | F45: 9 | G45: 4 | H45: 4 | I45: 7257.77 | J45: 7257.77 | K45: 6766.67 | L45: 297 | M45: 10553261.84 | N45: 0 | O45: 0 | P45: 0 | Q45: =SUMIF('Раздел 2'!B:B,B45,'Раздел 2'!C:C)+SUMIF('Раздел 3'!B:B,B45,'Раздел 3'!C:C)+SUMIF('Раздел 4'!B:B,B45,'Раздел 4'!C:C) -> 10553261.84 | R45: 2022-12-30 | S45: РО
A46: 20 | B46: Г. Выборг, просп. Победы, д. 6 | C46: 1989 | E46: Кер.бет. | F46: 9 | G46: 1 | H46: 1 | I46: 2002.3 | J46: 2002.3 | K46: 1850.9 | L46: 85 | M46: 2439950.079 | N46: 0 | O46: 0 | P46: 0 | Q46: =SUMIF('Раздел 2'!B:B,B46,'Раздел 2'!C:C)+SUMIF('Раздел 3'!B:B,B46,'Раздел 3'!C:C)+SUMIF('Раздел 4'!B:B,B46,'Раздел 4'!C:C) -> 2439950.079 | R46: 2022-12-30 | S46: РО
A47: 21 | B47: Г. Выборг, пр. Победы, д. 8 | C47: 1991 | E47: Кер.бет. | F47: 9 | G47: 1 | H47: 1 | I47: 2003.5 | J47: 2003.5 | K47: 2003.5 | L47: 88 | M47: 2438131.623 | N47: 0 | O47: 0 | P47: 0 | Q47: =SUMIF('Раздел 2'!B:B,B47,'Раздел 2'!C:C)+SUMIF('Раздел 3'!B:B,B47,'Раздел 3'!C:C)+SUMIF('Раздел 4'!B:B,B47,'Раздел 4'!C:C) -> 2438131.623 | R47: 2022-12-30 | S47: РО
A48: 22 | B48: Г. Выборг, ул. Аристарха Макарова, д. 4 | C48: 1990 | E48: панель | F48: 9 | G48: 2 | H48: 2 | I48: 4036.8 | J48: 4036.8 | K48: 3502.6 | L48: 173 | M48: 4914710.167 | N48: 0 | O48: 0 | P48: 0 | Q48: =SUMIF('Раздел 2'!B:B,B48,'Раздел 2'!C:C)+SUMIF('Раздел 3'!B:B,B48,'Раздел 3'!C:C)+SUMIF('Раздел 4'!B:B,B48,'Раздел 4'!C:C) -> 4914710.167 | R48: 2022-12-30 | S48: РО
A49: 23 | B49: Г. Выборг, ул. Гагарина, д. 29 | C49: 1983 | E49: Кер.бет. | F49: 9 | G49: 3 | H49: 3 | I49: 6092.3 | J49: 6092.3 | K49: 5241.8 | L49: 286 | M49: 11629909.38 | N49: 0 | O49: 0 | P49: 0 | Q49: =SUMIF('Раздел 2'!B:B,B49,'Раздел 2'!C:C)+SUMIF('Раздел 3'!B:B,B49,'Раздел 3'!C:C)+SUMIF('Раздел 4'!B:B,B49,'Раздел 4'!C:C) -> 11629909.38 | R49: 2022-12-30 | S49: РО
A50: 24 | B50: Г. Выборг, ул. Гагарина, д. 65 | C50: 1993 | E50: панель | F50: 9 | G50: 1 | H50: 1 | I50: 1989.5 | J50: 1989.5 | K50: 1836.8 | L50: 82 | M50: 2438059.641 | N50: 0 | O50: 0 | P50: 0 | Q50: =SUMIF('Раздел 2'!B:B,B50,'Раздел 2'!C:C)+SUMIF('Раздел 3'!B:B,B50,'Раздел 3'!C:C)+SUMIF('Раздел 4'!B:B,B50,'Раздел 4'!C:C) -> 2438059.641 | R50: 2022-12-30 | S50: РО
A51: 25 | B51: Г. Выборг, ул. Гагарина, д. 69 | C51: 1994 | E51: панель | F51: 9 | G51: 2 | H51: 2 | I51: 4782 | J51: 4782 | K51: 3975.5 | L51: 184 | M51: 5601418.92 | N51: 0 | O51: 0 | P51: 0 | Q51: =SUMIF('Раздел 2'!B:B,B51,'Раздел 2'!C:C)+SUMIF('Раздел 3'!B:B,B51,'Раздел 3'!C:C)+SUMIF('Раздел 4'!B:B,B51,'Раздел 4'!C:C) -> 5601418.92 | R51: 2022-12-30 | S51: РО
A52: 26 | B52: Г. Выборг, ул. Гагарина, д. 71 | C52: 1995 | E52: панель | F52: 9 | G52: 2 | H52: 2 | I52: 4031.34 | J52: 4031.34 | K52: 3919.44 | L52: 165 | M52: 4909588.512 | N52: 0 | O52: 0 | P52: 0 | Q52: =SUMIF('Раздел 2'!B:B,B52,'Раздел 2'!C:C)+SUMIF('Раздел 3'!B:B,B52,'Раздел 3'!C:C)+SUMIF('Раздел 4'!B:B,B52,'Раздел 4'!C:C) -> 4909588.512 | R52: 2022-12-30 | S52: РО
A53: 27 | B53: Г. Выборг, ул. Крепостная, д. 39а | C53: 1993 | E53: кирпич | F53: 9 | G53: 1 | H53: 1 | I53: 1886.9 | J53: 1886.9 | K53: 1876 | L53: 42 | M53: 3876636.46 | N53: 0 | O53: 0 | P53: 0 | Q53: =SUMIF('Раздел 2'!B:B,B53,'Раздел 2'!C:C)+SUMIF('Раздел 3'!B:B,B53,'Раздел 3'!C:C)+SUMIF('Раздел 4'!B:B,B53,'Раздел 4'!C:C) -> 3876636.46 | R53: 2022-12-30 | S53: РО
A54: 28 | B54: Г. Выборг, ул. Офицерская, д. 12 | C54: 1993 | E54: Кер.блок | F54: 9 | G54: 1 | H54: 1 | I54: 1561.5 | J54: 1561.5 | K54: 1422.9 | L54: 84 | M54: 2481167.544 | N54: 0 | O54: 0 | P54: 0 | Q54: =SUMIF('Раздел 2'!B:B,B54,'Раздел 2'!C:C)+SUMIF('Раздел 3'!B:B,B54,'Раздел 3'!C:C)+SUMIF('Раздел 4'!B:B,B54,'Раздел 4'!C:C) -> 2481167.544 | R54: 2022-12-30 | S54: РО
A55: 29 | B55: Г. Выборг, ул. Офицерская, д. 14 | C55: 1993 | E55: Кер.блок | F55: 9 | G55: 1 | H55: 1 | I55: 2421.3 | J55: 2421.3 | K55: 2163.8 | L55: 105 | M55: 2483623.235 | N55: 0 | O55: 0 | P55: 0 | Q55: =SUMIF('Раздел 2'!B:B,B55,'Раздел 2'!C:C)+SUMIF('Раздел 3'!B:B,B55,'Раздел 3'!C:C)+SUMIF('Раздел 4'!B:B,B55,'Раздел 4'!C:C) -> 2483623.235 | R55: 2022-12-30 | S55: РО
A56: 30 | B56: Г. Выборг, ул. Офицерская, д. 16 | C56: 1993 | E56: Кер.блок | F56: 9 | G56: 1 | H56: 1 | I56: 1568.6 | J56: 1568.6 | K56: 1464 | L56: 91 | M56: 2754215.751 | N56: 0 | O56: 0 | P56: 0 | Q56: =SUMIF('Раздел 2'!B:B,B56,'Раздел 2'!C:C)+SUMIF('Раздел 3'!B:B,B56,'Раздел 3'!C:C)+SUMIF('Раздел 4'!B:B,B56,'Раздел 4'!C:C) -> 2754215.751 | R56: 2022-12-30 | S56: РО
A57: 31 | B57: Г. Выборг, ул. Приморская, д. 36 | C57: 1993 | E57: Кер.бет. | F57: 9 | G57: 2 | H57: 2 | I57: 4017.1 | J57: 4017.1 | K57: 3842.1 | L57: 163 | M57: 5389943.314 | N57: 0 | O57: 0 | P57: 0 | Q57: =SUMIF('Раздел 2'!B:B,B57,'Раздел 2'!C:C)+SUMIF('Раздел 3'!B:B,B57,'Раздел 3'!C:C)+SUMIF('Раздел 4'!B:B,B57,'Раздел 4'!C:C) -> 5389943.314 | R57: 2022-12-30 | S57: РО
A58: 32 | B58: Г. Выборг, ул. Приморская, д. 40 | C58: 1990 | E58: Кер.бет. | F58: 9 | G58: 4 | H58: 4 | I58: 6372 | J58: 6372 | K58: 5572.7 | L58: 239 | M58: 10333120.74 | N58: 0 | O58: 0 | P58: 0 | Q58: =SUMIF('Раздел 2'!B:B,B58,'Раздел 2'!C:C)+SUMIF('Раздел 3'!B:B,B58,'Раздел 3'!C:C)+SUMIF('Раздел 4'!B:B,B58,'Раздел 4'!C:C) -> 10333120.74 | R58: 2022-12-30 | S58: РО
A59: 33 | B59: Г. Выборг, ул. Приморская, д. 53 | C59: 1994 | E59: Кер.бет. | F59: 9 | G59: 2 | H59: 2 | I59: 3968.5 | J59: 3968.5 | K59: 3339.9 | L59: 169 | M59: 5395520.143 | N59: 0 | O59: 0 | P59: 0 | Q59: =SUMIF('Раздел 2'!B:B,B59,'Раздел 2'!C:C)+SUMIF('Раздел 3'!B:B,B59,'Раздел 3'!C:C)+SUMIF('Раздел 4'!B:B,B59,'Раздел 4'!C:C) -> 5395520.143 | R59: 2022-12-30 | S59: РО
A60: 34 | B60: Г. Выборг, ул. Приморская, д. 64 | C60: 1989 | E60: Кер.бет. | F60: 9 | G60: 2 | H60: 2 | I60: 4002.8 | J60: 4002.8 | K60: 3526.4 | L60: 173 | M60: 4345632.02 | N60: 0 | O60: 0 | P60: 0 | Q60: =SUMIF('Раздел 2'!B:B,B60,'Раздел 2'!C:C)+SUMIF('Раздел 3'!B:B,B60,'Раздел 3'!C:C)+SUMIF('Раздел 4'!B:B,B60,'Раздел 4'!C:C) -> 4345632.02 | R60: 2022-12-30 | S60: РО
A61: 35 | B61: Г. Выборг, ул. Травяная, д. 6 | C61: 1994 | E61: панель | F61: 9 | G61: 6 | H61: 2 | I61: 3229.6 | J61: 3229.6 | K61: 3011.1 | L61: 94 | M61: 5480984.485 | N61: 0 | O61: 0 | P61: 0 | Q61: =SUMIF('Раздел 2'!B:B,B61,'Раздел 2'!C:C)+SUMIF('Раздел 3'!B:B,B61,'Раздел 3'!C:C)+SUMIF('Раздел 4'!B:B,B61,'Раздел 4'!C:C) -> 5480984.485 | R61: 2022-12-30 | S61: РО
A62: 36 | B62: Г. Выборг, ш. Ленинградское, д. 51а | C62: 1994 | E62: ж/б | F62: 9 | G62: 1 | H62: 1 | I62: 2490.5 | J62: 2490.5 | K62: 2490.5 | L62: 73 | M62: 2699518.73 | N62: 0 | O62: 0 | P62: 0 | Q62: =SUMIF('Раздел 2'!B:B,B62,'Раздел 2'!C:C)+SUMIF('Раздел 3'!B:B,B62,'Раздел 3'!C:C)+SUMIF('Раздел 4'!B:B,B62,'Раздел 4'!C:C) -> 2699518.73 | R62: 2022-12-30 | S62: РО
A63: Итого по муниципальному образованию | C63: x | D63: x | E63: x | F63: x | G63: =SUM(G43:G62) -> 41 | H63: x | I63: =SUM(I43:I62) -> 72434.02 | J63: =SUM(J43:J62) -> 69490.08 | K63: 66022.57 | L63: =SUM(L43:L62) -> 2840 | M63: =SUM(M43:M62) -> 95361425.53 | N63: =SUM(N43:N62) -> 0 | O63: 0 | P63: 0 | Q63: =SUM(Q43:Q62) -> 95361425.53 | R63: x | S63: x | T63: =Q63-'Раздел 2'!C47-'Раздел 3'!C37-'Раздел 4'!C21 -> -1.303851604e-08 | U63: =M63-'Раздел 2'!C47-'Раздел 3'!C38-'Раздел 4'!C22 -> -1.303851604e-08
A64: Муниципальное образование Светогорское городское поселение
A65: =A62+1 -> 37 | B65: Г. Светогорск, ул. Красноармейская, д. 26 | C65: 1984 | E65: панель | F65: 9 | G65: 3 | H65: 3 | I65: 6751.6 | J65: 6751.6 | K65: 4709.1 | L65: 217 | M65: =Q65 -> 8324810.25 | N65: 0 | O65: 0 | P65: 0 | Q65: =SUMIF('Раздел 2'!B:B,B65,'Раздел 2'!C:C)+SUMIF('Раздел 3'!B:B,B65,'Раздел 3'!C:C)+SUMIF('Раздел 4'!B:B,B65,'Раздел 4'!C:C) -> 8324810.25 | R65: 2022-12-30 | S65: РО
A66: =A65+1 -> 38 | B66: Г. Светогорск, ул. Красноармейская, д. 32 | C66: 1983 | E66: панель | F66: 9 | G66: 5 | H66: 6 | I66: 9392.4 | J66: 9392.4 | K66: 9392.4 | L66: 411 | M66: =Q66 -> 13117704.67 | N66: 0 | O66: 0 | P66: 0 | Q66: =SUMIF('Раздел 2'!B:B,B66,'Раздел 2'!C:C)+SUMIF('Раздел 3'!B:B,B66,'Раздел 3'!C:C)+SUMIF('Раздел 4'!B:B,B66,'Раздел 4'!C:C) -> 13117704.67 | R66: 2022-12-30 | S66: РО
A67: =A66+1 -> 39 | B67: Г. Светогорск, ул. Красноармейская, д. 8 | C67: 1984 | E67: панель | F67: 9 | G67: 3 | H67: 3 | I67: 4683.9 | J67: 4683.9 | K67: 4650.5 | L67: 171 | M67: 7759701.1 | N67: 0 | O67: 0 | P67: 0 | Q67: =SUMIF('Раздел 2'!B:B,B67,'Раздел 2'!C:C)+SUMIF('Раздел 3'!B:B,B67,'Раздел 3'!C:C)+SUMIF('Раздел 4'!B:B,B67,'Раздел 4'!C:C) -> 7759701.1 | R67: 2022-12-30 | S67: РО
A68: Итого по муниципальному образованию | C68: x | D68: x | E68: x | F68: x | G68: =SUM(G65:G67) -> 11 | H68: x | I68: =SUM(I65:I67) -> 20827.9 | J68: 20827.9 | K68: 18752 | L68: 799 | M68: 29202216.02 | N68: 0 | O68: =SUM(O65:O67) -> 0 | P68: 0 | Q68: =SUM(Q65:Q67) -> 29202216.02 | R68: x | S68: x | U68: =M69-'Раздел 2'!C53 -> 0
A69: Муниципальное образование Советское городское поселение
A70: =A67+1 -> 40 | B70: Г.п. Советский, ул. Садовая, д. 46 | C70: 1986 | E70: блочный | F70: 9 | G70: 1 | H70: 1 | I70: 4024.4 | J70: 4024.4 | K70: 3621.96 | L70: 122 | M70: =Q70 -> 2381097.22 | N70: 0 | O70: 0 | P70: 0 | Q70: =SUMIF('Раздел 2'!B:B,B70,'Раздел 2'!C:C)+SUMIF('Раздел 3'!B:B,B70,'Раздел 3'!C:C)+SUMIF('Раздел 4'!B:B,B70,'Раздел 4'!C:C) -> 2381097.22 | R70: 2022-12-30 | S70: РО
A71: Итого по муниципальному образованию | C71: x | D71: x | E71: x | F71: x | G71: 1 | H71: x | I71: =SUM(I70) -> 4024.4 | J71: =SUM(J70) -> 4024.4 | K71: 3621.96 | L71: 122 | M71: =M70 -> 2381097.22 | N71: =N70 -> 0 | O71: 0 | P71: 0 | Q71: 2381097.22 | R71: x | S71: x
A72: Итого по Выборгскому району | C72: x | D72: x | E72: x | F72: x | G72: =G71+G68+G63 -> 53 | H72: x | I72: =I71+I68+I63 -> 97286.32 | J72: =J71+J68+J63 -> 94342.38 | K72: =K71+K68+K63 -> 88396.53 | L72: =L71+L68+L63 -> 3761 | M72: =M71+M68+M63 -> 126944738.8 | N72: =N71+N68+N63 -> 0 | O72: 0 | P72: 0 | Q72: 126944738.8 | R72: x | S72: x | T72: =Q72-'Раздел 2'!C56-'Раздел 3'!C38-'Раздел 4'!C22 -> -2.793967724e-08 | U72: =M72-'Раздел 2'!C56-'Раздел 3'!C38-'Раздел 4'!C22 -> -2.793967724e-08
A73: Гатчинский муниципальный район
A74: Муниципальное образование Город Гатчина
A75: =A70+1 -> 41 | B75: Г. Гатчина, просп. 25 Октября, д. 50 | C75: 1990 | E75: кирпич | F75: 6 | G75: 6 | H75: 6 | I75: 8643 | J75: 5163 | K75: 2879 | L75: 223 | M75: =Q75 -> 11544197.62 | N75: 0 | O75: 0 | P75: 0 | Q75: =SUMIF('Раздел 2'!B:B,B75,'Раздел 2'!C:C)+SUMIF('Раздел 3'!B:B,B75,'Раздел 3'!C:C)+SUMIF('Раздел 4'!B:B,B75,'Раздел 4'!C:C) -> 11544197.62 | R75: 2022-12-30 | S75: РО
A76: =A75+1 -> 42 | B76: Г. Гатчина, просп. 25 Октября, д. 50, кор. 1 | C76: 1989 | E76: панельный | F76: 9 | G76: 2 | H76: 2 | I76: 6121.3 | J76: 4041.4 | K76: 3953.1 | L76: 189 | M76: =Q76 -> 5467384.59 | N76: 0 | O76: 0 | P76: 0 | Q76: =SUMIF('Раздел 2'!B:B,B76,'Раздел 2'!C:C)+SUMIF('Раздел 3'!B:B,B76,'Раздел 3'!C:C)+SUMIF('Раздел 4'!B:B,B76,'Раздел 4'!C:C) -> 5467384.59 | R76: 2022-12-30 | S76: РО
A77: 43 | B77: Г. Гатчина, просп. 25 Октября, д. 59 | C77: 1993 | E77: кирпич | F77: 6 | G77: 3 | H77: 3 | I77: 15895.7 | J77: 7164.3 | K77: 6932.7 | L77: 239 | M77: 8207128.38 | N77: 0 | O77: 0 | P77: 0 | Q77: =SUMIF('Раздел 2'!B:B,B77,'Раздел 2'!C:C)+SUMIF('Раздел 3'!B:B,B77,'Раздел 3'!C:C)+SUMIF('Раздел 4'!B:B,B77,'Раздел 4'!C:C) -> 8207128.38 | R77: 2022-12-30 | S77: РО
A78: 44 | B78: Г. Гатчина, просп. 25 Октября, д. 63 | C78: 1988 | E78: кирпич | F78: 6 | G78: 3 | H78: 3 | I78: 15055 | J78: 5826 | K78: 5522.3 | L78: 221 | M78: 6190138.2 | N78: 0 | O78: 0 | P78: 0 | Q78: =SUMIF('Раздел 2'!B:B,B78,'Раздел 2'!C:C)+SUMIF('Раздел 3'!B:B,B78,'Раздел 3'!C:C)+SUMIF('Раздел 4'!B:B,B78,'Раздел 4'!C:C) -> 6190138.2 | R78: 2022-12-30 | S78: РО
A79: 45 | B79: Г. Гатчина, ул. Авиатриссы Зверевой, д. 11 | C79: 1988 | E79: панельный | F79: 9 | G79: 2 | H79: 2 | I79: 5884.4 | J79: 3923 | K79: 3488.1 | L79: 200 | M79: 4275976.293 | N79: 0 | O79: 0 | P79: 0 | Q79: =SUMIF('Раздел 2'!B:B,B79,'Раздел 2'!C:C)+SUMIF('Раздел 3'!B:B,B79,'Раздел 3'!C:C)+SUMIF('Раздел 4'!B:B,B79,'Раздел 4'!C:C) -> 4275976.293 | R79: 2022-12-30 | S79: РО
A80: 46 | B80: Г. Гатчина, ул. Авиатриссы Зверевой, д. 15 | C80: 1990 | E80: панельный | F80: 9 | G80: 2 | H80: 2 | I80: 5784.3 | J80: 4017.3 | K80: 3925 | L80: 203 | M80: 5440054.11 | N80: 0 | O80: 0 | P80: 0 | Q80: =SUMIF('Раздел 2'!B:B,B80,'Раздел 2'!C:C)+SUMIF('Раздел 3'!B:B,B80,'Раздел 3'!C:C)+SUMIF('Раздел 4'!B:B,B80,'Раздел 4'!C:C) -> 5440054.11 | R80: 2022-12-30 | S80: РО
A81: 47 | B81: Г. Гатчина, ул. Авиатриссы Зверевой, д. 20 | C81: 1991 | E81: панельный | F81: 9 | G81: 2 | H81: 2 | I81: 5859.5 | J81: 3957.3 | K81: 3611.3 | L81: 192 | M81: 5467206.13 | N81: 0 | O81: 0 | P81: 0 | Q81: =SUMIF('Раздел 2'!B:B,B81,'Раздел 2'!C:C)+SUMIF('Раздел 3'!B:B,B81,'Раздел 3'!C:C)+SUMIF('Раздел 4'!B:B,B81,'Раздел 4'!C:C) -> 5467206.13 | R81: 2022-12-30 | S81: РО
A82: 48 | B82: Г. Гатчина, ул. Авиатриссы Зверевой, д. 3 | C82: 1989 | E82: панельный | F82: 9 | G82: 2 | H82: 2 | I82: 5953.3 | J82: 3980 | K82: 3782.5 | L82: 203 | M82: 5466365.27 | N82: 0 | O82: 0 | P82: 0 | Q82: =SUMIF('Раздел 2'!B:B,B82,'Раздел 2'!C:C)+SUMIF('Раздел 3'!B:B,B82,'Раздел 3'!C:C)+SUMIF('Раздел 4'!B:B,B82,'Раздел 4'!C:C) -> 5466365.27 | R82: 2022-12-30 | S82: РО
A83: 49 | B83: Г. Гатчина, ул. Володарского, д. 25А | C83: 2992 | E83: панельный | F83: 7 | G83: 2 | H83: 2 | I83: 5070.5 | J83: 3137 | K83: 3081.9 | L83: 158 | M83: 5177708.02 | N83: 0 | O83: 0 | P83: 0 | Q83: =SUMIF('Раздел 2'!B:B,B83,'Раздел 2'!C:C)+SUMIF('Раздел 3'!B:B,B83,'Раздел 3'!C:C)+SUMIF('Раздел 4'!B:B,B83,'Раздел 4'!C:C) -> 5177708.02 | R83: 2022-12-30 | S83: РО
A84: 50 | B84: Г. Гатчина, ул. Красных Военлётов, д. 9 | C84: 1990 | E84: панельный | F84: 9 | G84: 4 | H84: 4 | I84: 12490.5 | J84: 8071.5 | K84: 7355.2 | L84: 387 | M84: 10532095.24 | N84: 0 | O84: 0 | P84: 0 | Q84: =SUMIF('Раздел 2'!B:B,B84,'Раздел 2'!C:C)+SUMIF('Раздел 3'!B:B,B84,'Раздел 3'!C:C)+SUMIF('Раздел 4'!B:B,B84,'Раздел 4'!C:C) -> 10532095.24 | R84: 2022-12-30 | S84: РО
A85: 51 | B85: Г. Гатчина, ул. Рощинская, д. 11, кор. 1 | C85: 1993 | E85: кирпич | F85: 8 | G85: 1 | H85: 1 | I85: 3301.1 | J85: 1510.1 | K85: 1328.7 | L85: 92 | M85: 2735709.46 | N85: 0 | O85: 0 | P85: 0 | Q85: =SUMIF('Раздел 2'!B:B,B85,'Раздел 2'!C:C)+SUMIF('Раздел 3'!B:B,B85,'Раздел 3'!C:C)+SUMIF('Раздел 4'!B:B,B85,'Раздел 4'!C:C) -> 2735709.46 | R85: 2022-12-30 | S85: РО
A86: 52 | B86: Г. Гатчина, ул. Рощинская, д. 13, кор. 1 | C86: 1990 | E86: кирпич | F86: 7 | G86: 1 | H86: 1 | I86: 2965 | J86: 1535.7 | K86: 1501.4 | L86: 80 | M86: 2196923.512 | N86: 0 | O86: 0 | P86: 0 | Q86: =SUMIF('Раздел 2'!B:B,B86,'Раздел 2'!C:C)+SUMIF('Раздел 3'!B:B,B86,'Раздел 3'!C:C)+SUMIF('Раздел 4'!B:B,B86,'Раздел 4'!C:C) -> 2196923.512 | R86: 2022-12-30 | S86: РО
A87: 53 | B87: Г. Гатчина, ул. Рощинская, д. 13А | C87: 1991 | E87: кирпич | F87: 5 | G87: 2 | H87: 2 | I87: 3831.4 | J87: 1743.9 | K87: 2237.8 | L87: 95 | M87: 5471418.92 | N87: 0 | O87: 0 | P87: 0 | Q87: =SUMIF('Раздел 2'!B:B,B87,'Раздел 2'!C:C)+SUMIF('Раздел 3'!B:B,B87,'Раздел 3'!C:C)+SUMIF('Раздел 4'!B:B,B87,'Раздел 4'!C:C) -> 5471418.92 | R87: 2022-12-30 | S87: РО
A88: 54 | B88: Г. Гатчина, ул. Рощинская, д. 19 | C88: 1994 | E88: кирпич | F88: 7 | G88: 4 | H88: 5 | I88: 12030.6 | J88: 11199.2 | K88: 8436.8 | L88: 298 | M88: 15506545.84 | N88: 0 | O88: 0 | P88: 0 | Q88: =SUMIF('Раздел 2'!B:B,B88,'Раздел 2'!C:C)+SUMIF('Раздел 3'!B:B,B88,'Раздел 3'!C:C)+SUMIF('Раздел 4'!B:B,B88,'Раздел 4'!C:C) -> 15506545.84 | R88: 2022-12-30 | S88: РО
A89: 55 | B89: Г. Гатчина, ул. Рощинская, д. 3А | C89: 1993 | E89: панельный | F89: 9 | G89: 2 | H89: 2 | I89: 6130.2 | J89: 4094.2 | K89: 3859.6 | L89: 95 | M89: 5471418.92 | N89: 0 | O89: 0 | P89: 0 | Q89: =SUMIF('Раздел 2'!B:B,B89,'Раздел 2'!C:C)+SUMIF('Раздел 3'!B:B,B89,'Раздел 3'!C:C)+SUMIF('Раздел 4'!B:B,B89,'Раздел 4'!C:C) -> 5471418.92 | R89: 2022-12-30 | S89: РО
A90: 56 | B90: Г. Гатчина, ул. Рощинская, д. 9Г | C90: 1993 | E90: панельный | F90: 9 | G90: 2 | H90: 2 | I90: 6222 | J90: 4056.6 | K90: 3960.4 | L90: 194 | M90: 7753272.92 | N90: 0 | O90: 0 | P90: 0 | Q90: =SUMIF('Раздел 2'!B:B,B90,'Раздел 2'!C:C)+SUMIF('Раздел 3'!B:B,B90,'Раздел 3'!C:C)+SUMIF('Раздел 4'!B:B,B90,'Раздел 4'!C:C) -> 7753272.92 | R90: 2022-12-30 | S90: РО
A91: 57 | B91: Г. Гатчина, ул. Хохлова, д. 2 | C91: 1995 | E91: кирпич | F91: 7 | G91: 3 | H91: 3 | I91: 5575.2 | J91: 3438.6 | K91: 3109.3 | L91: 196 | M91: 7914946.38 | N91: 0 | O91: 0 | P91: 0 | Q91: =SUMIF('Раздел 2'!B:B,B91,'Раздел 2'!C:C)+SUMIF('Раздел 3'!B:B,B91,'Раздел 3'!C:C)+SUMIF('Раздел 4'!B:B,B91,'Раздел 4'!C:C) -> 7914946.38 | R91: 2022-12-30 | S91: РО
A92: 58 | B92: Г. Гатчина, ул. Чехова, д. 14 | C92: 1989 | E92: кирпич | F92: 9 | G92: 2 | H92: 2 | I92: 7847.3 | J92: 3564.3 | K92: 3232.7 | L92: 160 | M92: 4545663.416 | N92: 0 | O92: 0 | P92: 0 | Q92: =SUMIF('Раздел 2'!B:B,B92,'Раздел 2'!C:C)+SUMIF('Раздел 3'!B:B,B92,'Раздел 3'!C:C)+SUMIF('Раздел 4'!B:B,B92,'Раздел 4'!C:C) -> 4545663.416 | R92: 2022-12-30 | S92: РО
A93: Итого по муниципальному образованию | C93: x | D93: x | E93: x | F93: x | G93: =SUM(G75:G92) -> 45 | H93: x | I93: =SUM(I75:I92) -> 134660.3 | J93: 80423.4 | K93: =SUM(K75:K92) -> 72197.8 | L93: 3425 | M93: =SUM(M75:M92) -> 119364153.2 | N93: =SUM(N75:N92) -> 0 | O93: 0 | P93: 0 | Q93: =SUM(Q75:Q92) -> 119364153.2 | R93: x | S93: x
A94: Итого по Гатчинскому муниципальному району | C94: x | D94: x | E94: x | F94: x | G94: =G93 -> 45 | H94: x | I94: =SUM(I93) -> 134660.3 | J94: 80423.4 | K94: 72197.8 | L94: 3425 | M94: =M93 -> 119364153.2 | N94: =N93 -> 0 | O94: 0 | P94: 0 | Q94: 119364153.2 | R94: x | S94: x | T94: =Q94-'Раздел 2'!C73-'Раздел 3'!C53-'Раздел 4'!C30 -> 0 | U94: =M94-'Раздел 2'!C73-'Раздел 3'!C53-'Раздел 4'!C30 -> 0
A95: Кингисеппский муниципальный район
A96: Муниципальное образование Кингисеппское городское поселение
A97: =A92+1 -> 59 | B97: Г. Кингисепп, просп. Карла Маркса, д. 51 | C97: 1974 | E97: кирпич | F97: 9 | G97: 1 | H97: 1 | I97: 3863.11 | J97: 3863.11 | K97: 3039.33 | L97: 147 | M97: =Q97 -> 2735709.46 | N97: 0 | O97: 0 | P97: 0 | Q97: =SUMIF('Раздел 2'!B:B,B97,'Раздел 2'!C:C)+SUMIF('Раздел 3'!B:B,B97,'Раздел 3'!C:C)+SUMIF('Раздел 4'!B:B,B97,'Раздел 4'!C:C) -> 2735709.46 | R97: 2022-12-30 | S97: РО
A98: =A97+1 -> 60 | B98: Г. Кингисепп, б-р Большой , д. 11 | C98: 1986 | E98: монолит | F98: 9 | G98: 4 | H98: 4 | I98: 8025.7 | J98: 8025.7 | K98: 7762.7 | L98: 350 | M98: =Q98 -> 10942837.84 | N98: 0 | O98: 0 | P98: 0 | Q98: =SUMIF('Раздел 2'!B:B,B98,'Раздел 2'!C:C)+SUMIF('Раздел 3'!B:B,B98,'Раздел 3'!C:C)+SUMIF('Раздел 4'!B:B,B98,'Раздел 4'!C:C) -> 10942837.84 | R98: 2022-12-30 | S98: РО
A99: 61 | B99: Г. Кингисепп, б-р Большой, д. 15 | C99: 1987 | E99: монолит | F99: 9 | G99: 2 | H99: 2 | I99: 4014.8 | J99: 4014.8 | K99: 3957.6 | L99: 172 | M99: 5471418.92 | N99: 0 | O99: 0 | P99: 0 | Q99: =SUMIF('Раздел 2'!B:B,B99,'Раздел 2'!C:C)+SUMIF('Раздел 3'!B:B,B99,'Раздел 3'!C:C)+SUMIF('Раздел 4'!B:B,B99,'Раздел 4'!C:C) -> 5471418.92 | R99: 2022-12-30 | S99: РО
A100: 62 | B100: Г. Кингисепп, б-р Большой, д. 17 | C100: 1987 | E100: монолит | F100: 9 | G100: 6 | H100: 6 | I100: 12017.6 | J100: 12017.6 | K100: 11735.6 | L100: 541 | M100: 16414256.76 | N100: 0 | O100: 0 | P100: 0 | Q100: =SUMIF('Раздел 2'!B:B,B100,'Раздел 2'!C:C)+SUMIF('Раздел 3'!B:B,B100,'Раздел 3'!C:C)+SUMIF('Раздел 4'!B:B,B100,'Раздел 4'!C:C) -> 16414256.76 | R100: 2022-12-30 | S100: РО
A101: 63 | B101: Г. Кингисепп, ул. Воровского, д. 31в | G101: 2 | Q101: =SUMIF('Раздел 2'!B:B,B101,'Раздел 2'!C:C)+SUMIF('Раздел 3'!B:B,B101,'Раздел 3'!C:C)+SUMIF('Раздел 4'!B:B,B101,'Раздел 4'!C:C) -> 5471418.92 | R101: 2022-12-30 | S101: РО
A102: 64 | B102: Г. Кингисепп, ул. Жукова, д. 4А | C102: 1968 | E102: кирпич | F102: 9 | G102: 1 | H102: 1 | I102: 1936.2 | J102: 1936.2 | K102: 1807.7 | L102: 94 | M102: 130000 | N102: 0 | O102: 0 | P102: 0 | Q102: =SUMIF('Раздел 2'!B:B,B102,'Раздел 2'!C:C)+SUMIF('Раздел 3'!B:B,B102,'Раздел 3'!C:C)+SUMIF('Раздел 4'!B:B,B102,'Раздел 4'!C:C) -> 130000 | R102: 2022-12-30 | S102: РО
A103: 65 | B103: Г. Кингисепп, ул. Жукова, д. 8а | C103: 1967 | E103: кирпич | F103: 9 | G103: 1 | H103: 1 | I103: 1973.1 | J103: 1973.1 | K103: 1817.2 | L103: 80 | M103: 2735709.46 | N103: 0 | O103: 0 | P103: 0 | Q103: =SUMIF('Раздел 2'!B:B,B103,'Раздел 2'!C:C)+SUMIF('Раздел 3'!B:B,B103,'Раздел 3'!C:C)+SUMIF('Раздел 4'!B:B,B103,'Раздел 4'!C:C) -> 2735709.46 | R103: 2022-12-30 | S103: РО
A104: 66 | B104: Г. Кингисепп, ш. Крикковское, д. 10а | C104: 1990 | E104: панельный | F104: 9 | G104: 2 | H104: 2 | I104: 4018.5 | J104: 4018.5 | K104: 3854.6 | L104: 193 | M104: 5471418.92 | N104: 0 | O104: 0 | P104: 0 | Q104: =SUMIF('Раздел 2'!B:B,B104,'Раздел 2'!C:C)+SUMIF('Раздел 3'!B:B,B104,'Раздел 3'!C:C)+SUMIF('Раздел 4'!B:B,B104,'Раздел 4'!C:C) -> 5471418.92 | R104: 2022-12-30 | S104: РО
A105: 67 | B105: Г. Кингисепп, ш. Крикковское, д. 12 | C105: 1986 | E105: панельный | F105: 9 | G105: 7 | H105: 7 | I105: 12986.58 | J105: 12986.58 | K105: 11323.03 | L105: 705 | M105: 19149966.22 | N105: 0 | O105: 0 | P105: 0 | Q105: =SUMIF('Раздел 2'!B:B,B105,'Раздел 2'!C:C)+SUMIF('Раздел 3'!B:B,B105,'Раздел 3'!C:C)+SUMIF('Раздел 4'!B:B,B105,'Раздел 4'!C:C) -> 19149966.22 | R105: 2022-12-30 | S105: РО
A106: 68 | B106: Г. Кингисепп, ш. Крикковское, д. 14 | C106: 1988 | E106: панельный | F106: 9 | G106: 7 | H106: 7 | I106: 14504.9 | J106: 14504.9 | K106: 13678.1 | L106: 711 | M106: 19149966.22 | N106: 0 | O106: 0 | P106: 0 | Q106: =SUMIF('Раздел 2'!B:B,B106,'Раздел 2'!C:C)+SUMIF('Раздел 3'!B:B,B106,'Раздел 3'!C:C)+SUMIF('Раздел 4'!B:B,B106,'Раздел 4'!C:C) -> 19149966.22 | R106: 2022-12-30 | S106: РО
A107: 69 | B107: Г. Кингисепп, ш. Крикковское, д. 35 | C107: 1981 | E107: панельный | F107: 9 | G107: 5 | H107: 5 | I107: 9763.8 | J107: 9763.8 | K107: 9171 | L107: 584 | M107: 13678547.3 | N107: 0 | O107: 0 | P107: 0 | Q107: =SUMIF('Раздел 2'!B:B,B107,'Раздел 2'!C:C)+SUMIF('Раздел 3'!B:B,B107,'Раздел 3'!C:C)+SUMIF('Раздел 4'!B:B,B107,'Раздел 4'!C:C) -> 13678547.3 | R107: 2022-12-30 | S107: РО
A108: 70 | B108: Г. Кингисепп, ш. Крикковское, д. 39 | C108: 1989 | E108: панельный | F108: 9 | G108: 3 | H108: 3 | I108: 5976.9 | J108: 5976.9 | K108: 5782.17 | L108: 242 | M108: 8207128.38 | N108: 0 | O108: 0 | P108: 0 | Q108: =SUMIF('Раздел 2'!B:B,B108,'Раздел 2'!C:C)+SUMIF('Раздел 3'!B:B,B108,'Раздел 3'!C:C)+SUMIF('Раздел 4'!B:B,B108,'Раздел 4'!C:C) -> 8207128.38 | R108: 2022-12-30 | S108: РО
A109: 71 | B109: Г. Кингисепп, ш. Крикковское, д. 6 | C109: 1986 | E109: панельный | F109: 9 | G109: 6 | H109: 6 | I109: 11470.51 | J109: 11470.51 | K109: 10040.32 | L109: 637 | M109: 16414256.76 | N109: 0 | O109: 0 | P109: 0 | Q109: =SUMIF('Раздел 2'!B:B,B109,'Раздел 2'!C:C)+SUMIF('Раздел 3'!B:B,B109,'Раздел 3'!C:C)+SUMIF('Раздел 4'!B:B,B109,'Раздел 4'!C:C) -> 16414256.76 | R109: 2022-12-30 | S109: РО
A110: Итого по муниципальному образованию | C110: x | D110: x | E110: x | F110: x | G110: =SUM(G97:G109) -> 47 | H110: x | I110: =SUM(I97:I109) -> 90551.7 | J110: 90551.7 | K110: 83969.35 | L110: 4456 | M110: =SUM(M97:M109) -> 120501216.2 | N110: =SUM(N97:N109) -> 0 | O110: 0 | P110: 0 | Q110: 125972635.2 | R110: x | S110: x
A111: Итого по Кингисеппскому муниципальному району | C111: x | D111: x | E111: x | F111: x | G111: =G110 -> 47 | H111: x | I111: =SUM(I110) -> 90551.7 | J111: 90551.7 | K111: 83969.35 | L111: 4456 | M111: =M110 -> 120501216.2 | N111: =N110 -> 0 | O111: 0 | P111: 0 | Q111: 125972635.2 | R111: x | S111: x | T111: =Q111-'Раздел 3'!C70-'Раздел 4'!C46 -> 0 | U111: =M111-'Раздел 4'!C46 -> 638581.08
A112: Киришский муниципальный район
A113: Муниципальное образование Киришское городское поселение
A114: =A109+1 -> 72 | B114: Г. Кириши, бул. Плавницкий, д. 16 | C114: 1992 | E114: панель | F114: 9 | G114: 1 | H114: 1 | I114: 2398.8 | J114: 2121.8 | K114: 2121.8 | L114: 93 | M114: =Q114 -> 2803026.64 | N114: 0 | O114: 0 | P114: 0 | Q114: =SUMIF('Раздел 2'!B:B,B114,'Раздел 2'!C:C)+SUMIF('Раздел 3'!B:B,B114,'Раздел 3'!C:C)+SUMIF('Раздел 4'!B:B,B114,'Раздел 4'!C:C) -> 2803026.64 | R114: 2022-12-30 | S114: РО | T114: =Q114-'Раздел 2'!C76 -> 0
A115: =A114+1 -> 73 | B115: Г. Кириши, бул. Плавницкий, д. 36 | C115: 1997 | E115: панель | F115: 9 | G115: 1 | H115: 1 | I115: 3356 | J115: 3000 | K115: 3000 | L115: 101 | M115: =Q115 -> 2735709.46 | N115: 0 | O115: 0 | P115: 0 | Q115: =SUMIF('Раздел 2'!B:B,B115,'Раздел 2'!C:C)+SUMIF('Раздел 3'!B:B,B115,'Раздел 3'!C:C)+SUMIF('Раздел 4'!B:B,B115,'Раздел 4'!C:C) -> 2735709.46 | R115: 2022-12-30 | S115: РО | T115: =Q115-'Раздел 3'!C73-'Раздел 4'!C49 -> 0
A116: 74 | B116: Г. Кириши, пер. Березовый, д. 10 | C116: 1996 | E116: панель | F116: 9 | G116: 1 | H116: 1 | I116: 2631.1 | J116: 2344.1 | K116: 2344.1 | L116: 101 | M116: 2638315.46 | N116: 0 | O116: 0 | P116: 0 | Q116: =SUMIF('Раздел 2'!B:B,B116,'Раздел 2'!C:C)+SUMIF('Раздел 3'!B:B,B116,'Раздел 3'!C:C)+SUMIF('Раздел 4'!B:B,B116,'Раздел 4'!C:C) -> 2638315.46 | R116: 2022-12-30 | S116: РО
A117: 75 | B117: Г. Кириши, просп. Героев, д. 15 | C117: 1994 | E117: панель | F117: 9 | G117: 1 | H117: 1 | I117: 2426.1 | J117: 2147 | K117: 2147 | L117: 71 | M117: 2802614.46 | N117: 0 | O117: 0 | P117: 0 | Q117: =SUMIF('Раздел 2'!B:B,B117,'Раздел 2'!C:C)+SUMIF('Раздел 3'!B:B,B117,'Раздел 3'!C:C)+SUMIF('Раздел 4'!B:B,B117,'Раздел 4'!C:C) -> 2802614.46 | R117: 2022-12-30 | S117: РО
A118: 76 | B118: Г. Кириши, просп. Героев, д. 17 | C118: 1993 | E118: панель | F118: 9 | G118: 2 | H118: 2 | I118: 5223.7 | J118: 4642.3 | K118: 4642.3 | L118: 159 | M118: 5567978.94 | N118: 0 | O118: 0 | P118: 0 | Q118: =SUMIF('Раздел 2'!B:B,B118,'Раздел 2'!C:C)+SUMIF('Раздел 3'!B:B,B118,'Раздел 3'!C:C)+SUMIF('Раздел 4'!B:B,B118,'Раздел 4'!C:C) -> 5567978.94 | R118: 2022-12-30 | S118: РО
A119: 77 | B119: Г. Кириши, просп. Ленина, д. 40 | C119: 1991 | E119: панель/кирпич | F119: 5/7 | G119: 1 | H119: 5 | I119: 5647 | J119: 4916.8 | K119: 3992 | L119: 176 | M119: 2735709.46 | N119: 0 | O119: 0 | P119: 0 | Q119: =SUMIF('Раздел 2'!B:B,B119,'Раздел 2'!C:C)+SUMIF('Раздел 3'!B:B,B119,'Раздел 3'!C:C)+SUMIF('Раздел 4'!B:B,B119,'Раздел 4'!C:C) -> 2735709.46 | R119: 2022-12-30 | S119: РО
A120: 78 | B120: Г. Кириши, просп. Ленина, д. 9 | C120: 1964 | E120: кирпич | F120: 9 | G120: 1 | H120: 1 | I120: 2289.91 | J120: 1995.59 | K120: 1940.69 | L120: 73 | M120: 2735709.46 | N120: 0 | O120: 0 | P120: 0 | Q120: =SUMIF('Раздел 2'!B:B,B120,'Раздел 2'!C:C)+SUMIF('Раздел 3'!B:B,B120,'Раздел 3'!C:C)+SUMIF('Раздел 4'!B:B,B120,'Раздел 4'!C:C) -> 2735709.46 | R120: 2022-12-30 | S120: РО
A121: 79 | B121: Г. Кириши, ул. Декабристов Бестужевых, д. 16 | C121: 1990 | E121: панель | F121: 9 | G121: 1 | H121: 1 | I121: 3261.7 | J121: 2702.6 | K121: 2702.6 | L121: 108 | M121: 2803590.77 | N121: 0 | O121: 0 | P121: 0 | Q121: =SUMIF('Раздел 2'!B:B,B121,'Раздел 2'!C:C)+SUMIF('Раздел 3'!B:B,B121,'Раздел 3'!C:C)+SUMIF('Раздел 4'!B:B,B121,'Раздел 4'!C:C) -> 2803590.77 | R121: 2022-12-30 | S121: РО
A122: 80 | B122: Г. Кириши, ул. Строителей, д. 2 | C122: 1971 | E122: кирпич | F122: 9 | G122: 1 | H122: 5 | I122: 15493.65 | J122: 13099.2 | K122: 11188 | L122: 519 | M122: 2735709.46 | N122: 0 | O122: 0 | P122: 0 | Q122: =SUMIF('Раздел 2'!B:B,B122,'Раздел 2'!C:C)+SUMIF('Раздел 3'!B:B,B122,'Раздел 3'!C:C)+SUMIF('Раздел 4'!B:B,B122,'Раздел 4'!C:C) -> 2735709.46 | R122: 2022-12-30 | S122: РО
A123: 81 | B123: Г. Кириши, ул. Строителей, д. 26 | C123: 1974 | E123: кирпич | F123: 9 | G123: 1 | H123: 5 | I123: 15470.37 | J123: 13282.4 | K123: 11176.5 | L123: 466 | M123: 2735709.46 | N123: 0 | O123: 0 | P123: 0 | Q123: =SUMIF('Раздел 2'!B:B,B123,'Раздел 2'!C:C)+SUMIF('Раздел 3'!B:B,B123,'Раздел 3'!C:C)+SUMIF('Раздел 4'!B:B,B123,'Раздел 4'!C:C) -> 2735709.46 | R123: 2022-12-30 | S123: РО
A124: 82 | B124: Г. Кириши, ул. Строителей, д. 28 | C124: 1993 | E124: панель | F124: 9 | G124: 1 | H124: 1 | I124: 2749.3 | J124: 2473.7 | K124: 2411.3 | L124: 90 | M124: 2803316.73 | N124: 0 | O124: 0 | P124: 0 | Q124: =SUMIF('Раздел 2'!B:B,B124,'Раздел 2'!C:C)+SUMIF('Раздел 3'!B:B,B124,'Раздел 3'!C:C)+SUMIF('Раздел 4'!B:B,B124,'Раздел 4'!C:C) -> 2803316.73 | R124: 2022-12-30 | S124: РО
A125: 83 | B125: Г. Кириши, ул. Строителей, д. 30 | C125: 1991 | E125: панель | F125: 9 | G125: 3 | H125: 3 | I125: 7631.2 | J125: 6837.2 | K125: 6765.7 | L125: 259 | M125: 8449707.67 | N125: 0 | O125: 0 | P125: 0 | Q125: =SUMIF('Раздел 2'!B:B,B125,'Раздел 2'!C:C)+SUMIF('Раздел 3'!B:B,B125,'Раздел 3'!C:C)+SUMIF('Раздел 4'!B:B,B125,'Раздел 4'!C:C) -> 8449707.67 | R125: 2022-12-30 | S125: РО
A126: 84 | B126: Г. Кириши, ул. Строителей, д. 46 | C126: 1991 | E126: панель | F126: 9 | G126: 4 | H126: 4 | I126: 9023.5 | J126: 7928.7 | K126: 7928.7 | L126: 334 | M126: 11264437.79 | N126: 0 | O126: 0 | P126: 0 | Q126: =SUMIF('Раздел 2'!B:B,B126,'Раздел 2'!C:C)+SUMIF('Раздел 3'!B:B,B126,'Раздел 3'!C:C)+SUMIF('Раздел 4'!B:B,B126,'Раздел 4'!C:C) -> 11264437.79 | R126: 2022-12-30 | S126: РО
A127: 85 | B127: Г. Кириши, ул. Энергетиков, д. 40 | C127: 1994 | E127: панель | F127: 9 | G127: 1 | H127: 1 | I127: 2724.9 | J127: 2445.3 | K127: 2445.3 | L127: 87 | M127: 2803602.38 | N127: 0 | O127: 0 | P127: 0 | Q127: =SUMIF('Раздел 2'!B:B,B127,'Раздел 2'!C:C)+SUMIF('Раздел 3'!B:B,B127,'Раздел 3'!C:C)+SUMIF('Раздел 4'!B:B,B127,'Раздел 4'!C:C) -> 2803602.38 | R127: 2022-12-30 | S127: РО
A128: Итого по муниципальному образованию | C128: x | D128: x | E128: x | F128: x | G128: =SUM(G114:G127) -> 20 | H128: x | I128: =SUM(I114:I127) -> 80327.23 | J128: =SUM(J114:J127) -> 69936.69 | K128: 64805.99 | L128: 2637 | M128: =SUM(M114:M127) -> 55615138.14 | N128: =SUM(N114:N127) -> 0 | O128: 0 | P128: 0 | Q128: =SUM(Q114:Q127) -> 55615138.14 | R128: x | S128: x
A129: Итого по Киришскому муниципальному району | C129: x | D129: x | E129: x | F129: x | G129: =G128 -> 20 | H129: x | I129: =SUM(I128) -> 80327.23 | J129: 69936.69 | K129: 64805.99 | L129: 2637 | M129: =M128 -> 55615138.14 | N129: =N128 -> 0 | O129: 0 | P129: 0 | Q129: 55615138.14 | R129: x | S129: x | T129: =Q129-'Раздел 2'!C86-'Раздел 3'!C80-'Раздел 4'!C55 -> 0 | U129: =M129-'Раздел 2'!C86-'Раздел 3'!#REF!-'Раздел 4'!C55 -> 
A130: Кировский муниципальный район
A131: Муниципальное образование Кировское городское поселение
A132: =A127+1 -> 86 | B132: Г. Кировск, ул. Ладожская, д. 22 | C132: 1992 | E132: панели | F132: 9 | G132: 4 | H132: 4 | I132: 8268.77 | J132: 8268.77 | K132: 7738.41 | L132: 351 | M132: =Q132 -> 11213845.77 | N132: 0 | O132: 0 | P132: 0 | Q132: =SUMIF('Раздел 2'!B:B,B132,'Раздел 2'!C:C)+SUMIF('Раздел 3'!B:B,B132,'Раздел 3'!C:C)+SUMIF('Раздел 4'!B:B,B132,'Раздел 4'!C:C) -> 11213845.77 | R132: 2022-12-30 | S132: РО
A133: =A132+1 -> 87 | B133: Г. Кировск, ул. Молодежная, д. 3 | C133: 1994 | E133: панели | F133: 9 | G133: 1 | H133: 1 | I133: 2073.9 | J133: 2073.9 | K133: 2073.9 | L133: 102 | M133: =Q133 -> 2638315.46 | N133: 0 | O133: 0 | P133: 0 | Q133: =SUMIF('Раздел 2'!B:B,B133,'Раздел 2'!C:C)+SUMIF('Раздел 3'!B:B,B133,'Раздел 3'!C:C)+SUMIF('Раздел 4'!B:B,B133,'Раздел 4'!C:C) -> 2638315.46 | R133: 2022-12-30 | S133: РО
A134: =A133+1 -> 88 | B134: Г. Кировск, ул. Молодежная, д. 5 | C134: 1993 | E134: панели | F134: 9 | G134: 1 | H134: 1 | I134: 2127.07 | J134: 2127.07 | K134: 2127.07 | L134: 85 | M134: 2638315.46 | N134: 0 | O134: 0 | P134: 0 | Q134: =SUMIF('Раздел 2'!B:B,B134,'Раздел 2'!C:C)+SUMIF('Раздел 3'!B:B,B134,'Раздел 3'!C:C)+SUMIF('Раздел 4'!B:B,B134,'Раздел 4'!C:C) -> 2638315.46 | R134: 2022-12-30 | S134: РО
A135: =A134+1 -> 89 | B135: Г. Кировск, ул. Новая, д. 13, кор. 1 | C135: 1993 | E135: панели | F135: 9 | G135: 1 | H135: 1 | I135: 2084.56 | J135: 2084.56 | K135: 1634.41 | L135: 97 | M135: 2803461.56 | N135: 0 | O135: 0 | P135: 0 | Q135: =SUMIF('Раздел 2'!B:B,B135,'Раздел 2'!C:C)+SUMIF('Раздел 3'!B:B,B135,'Раздел 3'!C:C)+SUMIF('Раздел 4'!B:B,B135,'Раздел 4'!C:C) -> 2803461.56 | R135: 2022-12-30 | S135: РО
A136: =A135+1 -> 90 | B136: Г. Кировск, ул. Новая, д. 13, кор. 2 | C136: 1992 | E136: панели | F136: 9 | G136: 1 | H136: 1 | I136: 2294.53 | J136: 2294.53 | K136: 2030.92 | L136: 99 | M136: 2803461.56 | N136: 0 | O136: 0 | P136: 0 | Q136: =SUMIF('Раздел 2'!B:B,B136,'Раздел 2'!C:C)+SUMIF('Раздел 3'!B:B,B136,'Раздел 3'!C:C)+SUMIF('Раздел 4'!B:B,B136,'Раздел 4'!C:C) -> 2803461.56 | R136: 2022-12-30 | S136: РО
A137: =A136+1 -> 91 | B137: Г. Кировск, ул. Северная, д. 17 | C137: 1981 | E137: панели | F137: 9 | G137: 4 | H137: 4 | I137: 8373.15 | J137: 8373.15 | K137: 6978.52 | L137: 383 | M137: 11213600.86 | N137: 0 | O137: 0 | P137: 0 | Q137: =SUMIF('Раздел 2'!B:B,B137,'Раздел 2'!C:C)+SUMIF('Раздел 3'!B:B,B137,'Раздел 3'!C:C)+SUMIF('Раздел 4'!B:B,B137,'Раздел 4'!C:C) -> 11213600.86 | R137: 2022-12-30 | S137: РО
A138: Итого по муниципальному образованию | C138: x | D138: x | E138: x | F138: x | G138: =SUM(G132:G137) -> 12 | H138: x | I138: =SUM(I132:I137) -> 25221.98 | J138: =SUM(J132:J137) -> 25221.98 | K138: 22583.23 | L138: =SUM(L132:L137) -> 1117 | M138: =SUM(M132:M137) -> 33311000.67 | N138: =SUM(N132:N137) -> 0 | O138: 0 | P138: 0 | Q138: =SUM(Q132:Q137) -> 33311000.67 | R138: x | S138: x
A139: Муниципальное образование Отрадненское городское поселение
A140: =A137+1 -> 92 | B140: Г. Отрадное, ул. Железнодорожная, д. 15 | C140: 1984 | E140: кирпич | F140: 9 | G140: 1 | H140: 1 | I140: 2562.44 | J140: 2562.44 | K140: 1945.65 | L140: 104 | M140: =Q140 -> 2802964.66 | N140: 0 | O140: 0 | P140: 0 | Q140: =SUMIF('Раздел 2'!B:B,B140,'Раздел 2'!C:C)+SUMIF('Раздел 3'!B:B,B140,'Раздел 3'!C:C)+SUMIF('Раздел 4'!B:B,B140,'Раздел 4'!C:C) -> 2802964.66 | R140: 2022-12-30 | S140: РО
A141: =A140+1 -> 93 | B141: Г. Отрадное, ул. Железнодорожная, д. 13 | C141: 1991 | E141: кирпич | F141: 9 | G141: 2 | H141: 2 | I141: 6262.84 | J141: 6262.84 | K141: 4134.32 | L141: 183 | M141: =Q141 -> 5276630.92 | N141: 0 | O141: 0 | P141: 0 | Q141: =SUMIF('Раздел 2'!B:B,B141,'Раздел 2'!C:C)+SUMIF('Раздел 3'!B:B,B141,'Раздел 3'!C:C)+SUMIF('Раздел 4'!B:B,B141,'Раздел 4'!C:C) -> 5276630.92 | R141: 2022-12-30 | S141: РО
A142: =A141+1 -> 94 | B142: Г. Отрадное, ул. Зарубина, д. 11а | C142: 1990 | E142: кирпич | F142: 9 | G142: 1 | H142: 1 | I142: 2733.35 | J142: 2733.35 | K142: 2724.2 | L142: 129 | M142: 2803463.4 | N142: 0 | O142: 0 | P142: 0 | Q142: =SUMIF('Раздел 2'!B:B,B142,'Раздел 2'!C:C)+SUMIF('Раздел 3'!B:B,B142,'Раздел 3'!C:C)+SUMIF('Раздел 4'!B:B,B142,'Раздел 4'!C:C) -> 2803463.4 | R142: 2022-12-30 | S142: РО
A143: =A142+1 -> 95 | B143: Г. Отрадное, ул. Зарубина, д. 15 | C143: 1986 | E143: кирпич | F143: 9 | G143: 1 | H143: 1 | I143: 1900 | J143: 1900 | K143: 2573.98 | L143: 132 | M143: 2638315.46 | N143: 0 | O143: 0 | P143: 0 | Q143: =SUMIF('Раздел 2'!B:B,B143,'Раздел 2'!C:C)+SUMIF('Раздел 3'!B:B,B143,'Раздел 3'!C:C)+SUMIF('Раздел 4'!B:B,B143,'Раздел 4'!C:C) -> 2638315.46 | R143: 2022-12-30 | S143: РО
A144: =A143+1 -> 96 | B144: Г. Отрадное, ул. Лесная, д. 6 | C144: 1988 | E144: панель | F144: 9 | G144: 1 | H144: 1 | I144: 3090.73 | J144: 3090.73 | K144: 2002.49 | L144: 98 | M144: 2733472.2 | N144: 0 | O144: 0 | P144: 0 | Q144: =SUMIF('Раздел 2'!B:B,B144,'Раздел 2'!C:C)+SUMIF('Раздел 3'!B:B,B144,'Раздел 3'!C:C)+SUMIF('Раздел 4'!B:B,B144,'Раздел 4'!C:C) -> 2733472.2 | R144: 2022-12-30 | S144: РО
A145: =A144+1 -> 97 | B145: Г. Отрадное, ул. Лесная, д. 10 | C145: 1990 | E145: панель | F145: 9 | G145: 1 | H145: 1 | I145: 3066.28 | J145: 3066.28 | K145: 1995.12 | L145: 83 | M145: 3288315.46 | N145: 0 | O145: 0 | P145: 0 | Q145: =SUMIF('Раздел 2'!B:B,B145,'Раздел 2'!C:C)+SUMIF('Раздел 3'!B:B,B145,'Раздел 3'!C:C)+SUMIF('Раздел 4'!B:B,B145,'Раздел 4'!C:C) -> 3288315.46 | R145: 2022-12-30 | S145: РО
A146: =A145+1 -> 98 | B146: Г. Отрадное, ул. Советская, д. 25 | C146: 1981 | E146: кирпич | F146: 9 | G146: 1 | H146: 1 | I146: 3109.14 | J146: 3109.14 | K146: 1956.81 | L146: 105 | M146: 2803469.74 | N146: 0 | O146: 0 | P146: 0 | Q146: =SUMIF('Раздел 2'!B:B,B146,'Раздел 2'!C:C)+SUMIF('Раздел 3'!B:B,B146,'Раздел 3'!C:C)+SUMIF('Раздел 4'!B:B,B146,'Раздел 4'!C:C) -> 2803469.74 | R146: 2022-12-30 | S146: РО
A147: 99 | B147: Г. Отрадное, ул. Центральная,д.17 | C147: 1995 | E147: панель | F147: 9 | G147: 4 | H147: 4 | I147: 12228.58 | J147: 12228.58 | K147: 8004.95 | L147: 276 | M147: 10553261.84 | N147: 0 | O147: 0 | P147: 0 | Q147: =SUMIF('Раздел 2'!B:B,B147,'Раздел 2'!C:C)+SUMIF('Раздел 3'!B:B,B147,'Раздел 3'!C:C)+SUMIF('Раздел 4'!B:B,B147,'Раздел 4'!C:C) -> 10553261.84 | R147: 2022-12-30 | S147: РО
A148: 100 | B148: Г. Отрадное, ул. Щурова, д.4 | C148: 1988 | E148: панель | F148: 9 | G148: 2 | H148: 2 | I148: 6155.35 | J148: 6155.35 | K148: 4039.83 | L148: 176 | M148: 5276630.92 | N148: 0 | O148: 0 | P148: 0 | Q148: =SUMIF('Раздел 2'!B:B,B148,'Раздел 2'!C:C)+SUMIF('Раздел 3'!B:B,B148,'Раздел 3'!C:C)+SUMIF('Раздел 4'!B:B,B148,'Раздел 4'!C:C) -> 5276630.92 | R148: 2022-12-30 | S148: РО
A149: Итого по муниципальному образованию | C149: x | D149: x | E149: x | F149: x | G149: =SUM(G140:G148) -> 14 | H149: x | I149: =SUM(I140:I148) -> 41108.71 | J149: =SUM(J140:J148) -> 41108.71 | K149: 29377.35 | L149: 1286 | M149: 38176524.6 | N149: 0 | O149: 0 | P149: 0 | Q149: 38176524.6 | R149: x | S149: x | T149: =Q149-'Раздел 2'!C106-'Раздел 3'!C92 -> 0
A150: Итого по Кировскому муниципальному району | C150: x | D150: x | E150: x | F150: x | G150: =G138+G149 -> 26 | H150: x | I150: =I149+I138 -> 66330.69 | J150: =J149+J138 -> 66330.69 | K150: 51960.58 | L150: 2403 | M150: =M138+M149 -> 71487525.27 | N150: =N138+N149 -> 0 | O150: 0 | P150: 0 | Q150: =Q138+Q149 -> 71487525.27 | R150: x | S150: x | T150: =Q150-'Раздел 2'!C107-'Раздел 3'!C93 -> 0 | U150: =M150-'Раздел 2'!C107-'Раздел 3'!C85 -> 25083154.6
A151: Ломоносовский муниципальный район
A152: Муниципальное образование Аннинское сельское поселение
A153: =A148+1 -> 101 | B153: Г.п. Новоселье, д. 7 | C153: 2002 | F153: 8 | G153: 4 | I153: 8904.3 | J153: 8904.3 | K153: 4472.9 | L153: 159 | Q153: =SUMIF('Раздел 2'!B:B,B153,'Раздел 2'!C:C)+SUMIF('Раздел 3'!B:B,B153,'Раздел 3'!C:C)+SUMIF('Раздел 4'!B:B,B153,'Раздел 4'!C:C) -> 10942837.84 | R153: 2022-12-30 | S153: РО
A154: Итого по муниципальному образованию | C154: x | D154: x | E154: x | F154: x | G154: =G153 -> 4 | H154: x | I154: =I153 -> 8904.3 | J154: =SUM(J153) -> 8904.3 | K154: 4472.9 | L154: 159 | M154: =M153 -> 0 | N154: =N153 -> 0 | O154: 0 | P154: 0 | Q154: 10942837.84 | R154: x | S154: x
A155: Муниципальное образование Русско-Высоцкое сельское поселение
A156: =A153+1 -> 102 | B156: С. Русско-Высоцкое, д. 25 | C156: 1993 | E156: панельный | F156: 10 | G156: 2 | H156: 2 | I156: 4753.3 | J156: 4753.3 | K156: 4472.9 | L156: 159 | M156: =Q156 -> 5600112.27 | N156: 0 | O156: 0 | P156: 0 | Q156: =SUMIF('Раздел 2'!B:B,B156,'Раздел 2'!C:C)+SUMIF('Раздел 3'!B:B,B156,'Раздел 3'!C:C)+SUMIF('Раздел 4'!B:B,B156,'Раздел 4'!C:C) -> 5600112.27 | R156: 2022-12-30 | S156: РО
A157: Итого по муниципальному образованию | C157: x | D157: x | E157: x | F157: x | G157: =SUM(G156) -> 2 | H157: x | I157: =SUM(I156) -> 4753.3 | J157: =SUM(J156) -> 4753.3 | K157: 4472.9 | L157: 159 | M157: =M156 -> 5600112.27 | N157: =N156 -> 0 | O157: 0 | P157: 0 | Q157: 5600112.27 | R157: x | S157: x
A158: Итого по Ломоносовскому муниципальному району | C158: x | D158: x | E158: x | F158: x | G158: =SUM(G157) -> 2 | H158: x | I158: =I157+I154 -> 13657.6 | J158: =J157+J154 -> 13657.6 | K158: 8945.8 | L158: 318 | M158: 5600112.27 | N158: 0 | O158: 0 | P158: 0 | Q158: =Q157+Q154 -> 16542950.11 | R158: x | S158: x | U158: =M158-'Раздел 2'!C112 -> 0
A159: Лужский муниципальный район
A160: Муниципальное образование Лужское городское поселение
A161: =A156+1 -> 103 | B161: Г. Луга, просп. Володарского, д. 26 | C161: 1991 | E161: панель | F161: 9 | G161: 2 | H161: 2 | I161: 4870.2 | J161: 3988.5 | K161: 2974.7 | L161: 168 | M161: =Q161 -> 7140000 | N161: 0 | O161: 0 | P161: 0 | Q161: =SUMIF('Раздел 2'!B:B,B161,'Раздел 2'!C:C)+SUMIF('Раздел 3'!B:B,B161,'Раздел 3'!C:C)+SUMIF('Раздел 4'!B:B,B161,'Раздел 4'!C:C) -> 7140000 | R161: 2022-12-30 | S161: РО
A162: =A161+1 -> 104 | B162: Г. Луга, просп. Урицкого, д. 101 | C162: 1993 | E162: панель | F162: 9 | G162: 1 | H162: 1 | I162: 2745.8 | J162: 2014.5 | K162: 1974.3 | L162: 59 | M162: =Q162 -> 2638315.46 | N162: 0 | O162: 0 | P162: 0 | Q162: =SUMIF('Раздел 2'!B:B,B162,'Раздел 2'!C:C)+SUMIF('Раздел 3'!B:B,B162,'Раздел 3'!C:C)+SUMIF('Раздел 4'!B:B,B162,'Раздел 4'!C:C) -> 2638315.46 | R162: 2022-12-30 | S162: РО
A163: 105 | B163: Г. Луга, просп. Урицкого, д. 99 | C163: 1993 | E163: панель | F163: 9 | G163: 1 | H163: 1 | I163: 2737.5 | J163: 2006.2 | K163: 1877.9 | L163: 81 | M163: 2638315.46 | N163: 0 | O163: 0 | P163: 0 | Q163: =SUMIF('Раздел 2'!B:B,B163,'Раздел 2'!C:C)+SUMIF('Раздел 3'!B:B,B163,'Раздел 3'!C:C)+SUMIF('Раздел 4'!B:B,B163,'Раздел 4'!C:C) -> 2638315.46 | R163: 2022-12-30 | S163: РО
A164: 106 | B164: Г. Луга, ул. Миккели, д. 1, кор. 1 | C164: 1993 | E164: панель | F164: 5/9 | G164: 1 | H164: 5 | I164: 7582 | J164: 5566 | K164: 5357.5 | L164: 202 | M164: 3876636.46 | N164: 0 | O164: 0 | P164: 0 | Q164: =SUMIF('Раздел 2'!B:B,B164,'Раздел 2'!C:C)+SUMIF('Раздел 3'!B:B,B164,'Раздел 3'!C:C)+SUMIF('Раздел 4'!B:B,B164,'Раздел 4'!C:C) -> 3876636.46 | R164: 2022-12-30 | S164: РО
A165: 107 | B165: Г. Луга, ул. Миккели, д. 1, кор. 3 | C165: 1994 | E165: панель | F165: 5/9 | G165: 1 | H165: 5 | I165: 7571.2 | J165: 5555.2 | K165: 5201.3 | L165: 189 | M165: 3876636.46 | N165: 0 | O165: 0 | P165: 0 | Q165: =SUMIF('Раздел 2'!B:B,B165,'Раздел 2'!C:C)+SUMIF('Раздел 3'!B:B,B165,'Раздел 3'!C:C)+SUMIF('Раздел 4'!B:B,B165,'Раздел 4'!C:C) -> 3876636.46 | R165: 2022-12-30 | S165: РО
A166: 108 | B166: Г. Луга, ул. Победы, д. 4 | C166: 1988 | E166: панель | F166: 9 | G166: 1 | H166: 1 | I166: 3004.6 | J166: 1954.4 | K166: 1803.1 | L166: 82 | M166: 3570000 | N166: 0 | O166: 0 | P166: 0 | Q166: =SUMIF('Раздел 2'!B:B,B166,'Раздел 2'!C:C)+SUMIF('Раздел 3'!B:B,B166,'Раздел 3'!C:C)+SUMIF('Раздел 4'!B:B,B166,'Раздел 4'!C:C) -> 3570000 | R166: 2022-12-30 | S166: РО
A167: 109 | B167: Г. Луга, ул. Победы, д. 7 | C167: 1977 | E167: кирпич | F167: 10 | G167: 1 | H167: 1 | I167: 2562.3 | J167: 2180.7 | K167: 1976.5 | L167: 89 | M167: 3700000 | N167: 0 | O167: 0 | P167: 0 | Q167: =SUMIF('Раздел 2'!B:B,B167,'Раздел 2'!C:C)+SUMIF('Раздел 3'!B:B,B167,'Раздел 3'!C:C)+SUMIF('Раздел 4'!B:B,B167,'Раздел 4'!C:C) -> 3700000 | R167: 2022-12-30 | S167: РО
A168: Итого по муниципальному образованию | C168: x | D168: x | E168: x | F168: x | G168: =SUM(G161:G167) -> 8 | H168: x | I168: =SUM(I161:I167) -> 31073.6 | J168: =SUM(J161:J167) -> 23265.5 | K168: 21165.3 | L168: 870 | M168: =SUM(M161:M167) -> 27439903.84 | N168: =SUM(N161:N167) -> 0 | O168: 0 | P168: 0 | Q168: 27439903.84 | R168: x | S168: x
A169: Итого по Лужскому муниципальному району | C169: x | D169: x | E169: x | F169: x | G169: =G168 -> 8 | H169: x | I169: =SUM(I168) -> 31073.6 | J169: 23265.5 | K169: 21165.3 | L169: 870 | M169: =M168 -> 27439903.84 | N169: =N168 -> 0 | O169: 0 | P169: 0 | Q169: 27439903.84 | R169: x | S169: x | T169: =Q169-'Раздел 2'!C123-'Раздел 3'!C104 -> 0 | U169: =M169-'Раздел 2'!C123-'Раздел 3'!C85 -> 0
A170: Сосновоборский городской округ
A171: Муниципальное образование Сосновоборский городской округ
A172: =A167+1 -> 110 | B172: Г. Сосновый Бор, ул. Ленинградская, д. 30 | C172: 1989 | E172: кирпич | F172: 5;7 | G172: 6 | H172: 8 | I172: 10517.1 | J172: 10517.1 | K172: 7125.9 | L172: 491 | M172: =Q172 -> 15932497.8 | N172: 0 | O172: 0 | P172: 0 | Q172: =SUMIF('Раздел 2'!B:B,B172,'Раздел 2'!C:C)+SUMIF('Раздел 3'!B:B,B172,'Раздел 3'!C:C)+SUMIF('Раздел 4'!B:B,B172,'Раздел 4'!C:C) -> 15932497.8 | R172: 2022-12-30 | S172: РО
A173: =A172+1 -> 111 | B173: Г. Сосновый Бор, ул. Ленинградская, д. 38 | C173: 1987 | E173: кирпич | F173: 9 | G173: 1 | H173: 1 | I173: 1790.8 | J173: 1090.4 | K173: 1090.4 | L173: 82 | M173: =Q173 -> 2735709.46 | N173: 0 | O173: 0 | P173: 0 | Q173: =SUMIF('Раздел 2'!B:B,B173,'Раздел 2'!C:C)+SUMIF('Раздел 3'!B:B,B173,'Раздел 3'!C:C)+SUMIF('Раздел 4'!B:B,B173,'Раздел 4'!C:C) -> 2735709.46 | R173: 2022-12-30 | S173: РО
A174: 112 | B174: Г. Сосновый Бор, ул. Молодежная, д. 26 | C174: 1989 | E174: панель | F174: 9 | G174: 2 | H174: 2 | I174: 3940.2 | J174: 3940.2 | K174: 2291.4 | L174: 166 | M174: 7594407.96 | N174: 0 | O174: 0 | P174: 0 | Q174: =SUMIF('Раздел 2'!B:B,B174,'Раздел 2'!C:C)+SUMIF('Раздел 3'!B:B,B174,'Раздел 3'!C:C)+SUMIF('Раздел 4'!B:B,B174,'Раздел 4'!C:C) -> 7594407.96 | R174: 2022-12-30 | S174: РО
A175: 113 | B175: Г. Сосновый Бор, ул. Молодежная, д. 54 | C175: 1991 | E175: кирпич | F175: 9 | G175: 1 | H175: 1 | I175: 3207.7 | J175: 3207.7 | K175: 1960.8 | L175: 158 | M175: 2804202.48 | N175: 0 | O175: 0 | P175: 0 | Q175: =SUMIF('Раздел 2'!B:B,B175,'Раздел 2'!C:C)+SUMIF('Раздел 3'!B:B,B175,'Раздел 3'!C:C)+SUMIF('Раздел 4'!B:B,B175,'Раздел 4'!C:C) -> 2804202.48 | R175: 2022-12-30 | S175: РО
A176: 114 | B176: Г. Сосновый Бор, ул. Парковая, д. 18 | C176: 1993 | E176: панель | F176: 9 | G176: 4 | H176: 4 | I176: 8212 | J176: 8212 | K176: 4889.2 | L176: 337 | M176: 11079698 | N176: 0 | O176: 0 | P176: 0 | Q176: =SUMIF('Раздел 2'!B:B,B176,'Раздел 2'!C:C)+SUMIF('Раздел 3'!B:B,B176,'Раздел 3'!C:C)+SUMIF('Раздел 4'!B:B,B176,'Раздел 4'!C:C) -> 11079698 | R176: 2022-12-30 | S176: РО
A177: =A176+1 -> 115 | B177: Г. Сосновый Бор, ул. Парковая, д. 22 | C177: 1993 | E177: кирпич | F177: 9 | G177: 1 | H177: 1 | I177: 3241.7 | J177: 2642.9 | K177: 2094.1 | L177: 72 | M177: 2773711.94 | N177: 0 | O177: 0 | P177: 0 | Q177: =SUMIF('Раздел 2'!B:B,B177,'Раздел 2'!C:C)+SUMIF('Раздел 3'!B:B,B177,'Раздел 3'!C:C)+SUMIF('Раздел 4'!B:B,B177,'Раздел 4'!C:C) -> 2773711.94 | R177: 2022-12-30 | S177: РО
A178: 116 | B178: Г. Сосновый Бор, ул. Парковая, д. 24 | C178: 1992 | E178: панель | F178: 9 | G178: 4 | H178: 4 | I178: 8341.9 | J178: 8341.9 | K178: 4802.7 | L178: 418 | M178: 10776014.6 | N178: 0 | O178: 0 | P178: 0 | Q178: =SUMIF('Раздел 2'!B:B,B178,'Раздел 2'!C:C)+SUMIF('Раздел 3'!B:B,B178,'Раздел 3'!C:C)+SUMIF('Раздел 4'!B:B,B178,'Раздел 4'!C:C) -> 10776014.6 | R178: 2022-12-30 | S178: РО
A179: 117 | B179: Г. Сосновый Бор, ул. Парковая, д. 44 | C179: 1992 | E179: монолит | F179: 9 | G179: 3 | H179: 3 | I179: 9059.3 | J179: 9059.3 | K179: 8969.2 | L179: 326 | M179: 8367472 | N179: 0 | O179: 0 | P179: 0 | Q179: =SUMIF('Раздел 2'!B:B,B179,'Раздел 2'!C:C)+SUMIF('Раздел 3'!B:B,B179,'Раздел 3'!C:C)+SUMIF('Раздел 4'!B:B,B179,'Раздел 4'!C:C) -> 8367472 | R179: 2022-12-30 | S179: РО
A180: 118 | B180: Г. Сосновый Бор, ул. Парковая, д. 70 | C180: 1994 | E180: кирпич | F180: 9 | G180: 1 | H180: 1 | I180: 2238.1 | J180: 2238.1 | K180: 1332.8 | L180: 98 | M180: 2735709.46 | N180: 0 | O180: 0 | P180: 0 | Q180: =SUMIF('Раздел 2'!B:B,B180,'Раздел 2'!C:C)+SUMIF('Раздел 3'!B:B,B180,'Раздел 3'!C:C)+SUMIF('Раздел 4'!B:B,B180,'Раздел 4'!C:C) -> 2735709.46 | R180: 2022-12-30 | S180: РО
A181: 119 | B181: Г. Сосновый Бор, ул. Сибирская, д. 5 | C181: 1973 | E181: кирпич | F181: 9 | G181: 1 | H181: 1 | I181: 2017.7 | J181: 2017.7 | K181: 1989 | L181: 85 | M181: 3880100.4 | N181: 0 | O181: 0 | P181: 0 | Q181: =SUMIF('Раздел 2'!B:B,B181,'Раздел 2'!C:C)+SUMIF('Раздел 3'!B:B,B181,'Раздел 3'!C:C)+SUMIF('Раздел 4'!B:B,B181,'Раздел 4'!C:C) -> 3880100.4 | R181: 2022-12-30 | S181: РО
A182: 120 | B182: Г. Сосновый Бор, ул. Солнечная, д. 23а | C182: 1985 | E182: кирпич | F182: 5,7,9 | G182: 1 | H182: 1 | I182: 4397.6 | J182: 4397.6 | K182: 2188.1 | L182: 195 | M182: 2790756.58 | N182: 0 | O182: 0 | P182: 0 | Q182: =SUMIF('Раздел 2'!B:B,B182,'Раздел 2'!C:C)+SUMIF('Раздел 3'!B:B,B182,'Раздел 3'!C:C)+SUMIF('Раздел 4'!B:B,B182,'Раздел 4'!C:C) -> 2790756.58 | R182: 2022-12-30 | S182: РО
A183: 121 | B183: Г. Сосновый Бор, ул. Солнечная, д. 30 | C183: 1977 | E183: кирпич | F183: 12 | G183: 1 | H183: 1 | I183: 3993 | J183: 3993 | K183: 2332.7 | L183: 171 | M183: 5901813.6 | N183: 0 | O183: 0 | P183: 0 | Q183: =SUMIF('Раздел 2'!B:B,B183,'Раздел 2'!C:C)+SUMIF('Раздел 3'!B:B,B183,'Раздел 3'!C:C)+SUMIF('Раздел 4'!B:B,B183,'Раздел 4'!C:C) -> 5901813.6 | R183: 2022-12-30 | S183: РО
A184: Итого по муниципальному образованию | C184: x | D184: x | E184: x | F184: x | G184: =SUM(G172:G183) -> 26 | H184: x | I184: =SUM(I172:I183) -> 60957.1 | J184: =SUM(J172:J183) -> 59657.9 | K184: 41066.3 | L184: 2599 | M184: =SUM(M172:M183) -> 77372094.28 | N184: =SUM(N172:N183) -> 0 | O184: 0 | P184: 0 | Q184: 77372094.28 | R184: x | S184: x | T184: =Q184-'Раздел 2'!C136-'Раздел 3'!C109-'Раздел 4'!C65 -> 1.676380634e-08 | U184: =M184-'Раздел 2'!C136 -> 5471418.92
A185: Сланцевский муниципальный район
A186: Муниципальное образование Сланцевское городское поселение
A187: =A183+1 -> 122 | B187: Г. Сланцы, просп. Молодежный, д. 13 | C187: 1987 | E187: панель | F187: 9 | G187: 4 | H187: 4 | I187: 8096.4 | J187: 4324.6 | K187: 4117.5 | L187: 310 | M187: =Q187 -> 10976456.25 | N187: 0 | O187: 0 | P187: 0 | Q187: =SUMIF('Раздел 2'!B:B,B187,'Раздел 2'!C:C)+SUMIF('Раздел 3'!B:B,B187,'Раздел 3'!C:C)+SUMIF('Раздел 4'!B:B,B187,'Раздел 4'!C:C) -> 10976456.25 | R187: 2022-12-30 | S187: РО | U187: =M187-'Раздел 2'!C139 -> 0
A188: =A187+1 -> 123 | B188: Г. Сланцы, ул. Гагарина, д. 1 | C188: 1983 | E188: кирпич | F188: 9 | G188: 1 | H188: 1 | I188: 2690.5 | J188: 2070.8 | K188: 1897.64 | L188: 94 | M188: =Q188 -> 2802349.3 | N188: 0 | O188: 0 | P188: 0 | Q188: =SUMIF('Раздел 2'!B:B,B188,'Раздел 2'!C:C)+SUMIF('Раздел 3'!B:B,B188,'Раздел 3'!C:C)+SUMIF('Раздел 4'!B:B,B188,'Раздел 4'!C:C) -> 2802349.3 | R188: 2022-12-30 | S188: РО | U188: =M188-'Раздел 2'!C140 -> 0
A189: 124 | B189: Г. Сланцы, ул. Гагарина, д. 5а | C189: 1988 | E189: кирпич | F189: 9 | G189: 1 | H189: 1 | I189: 2733.7 | J189: 2080.4 | K189: 1918.33 | L189: 108 | M189: 3746636.46 | N189: 0 | O189: 0 | P189: 0 | Q189: =SUMIF('Раздел 2'!B:B,B189,'Раздел 2'!C:C)+SUMIF('Раздел 3'!B:B,B189,'Раздел 3'!C:C)+SUMIF('Раздел 4'!B:B,B189,'Раздел 4'!C:C) -> 3746636.46 | R189: 2022-12-30 | S189: РО | U189: =M189-'Раздел 2'!C141 -> 0
A190: 125 | B190: Г. Сланцы, ул. Ленина, д. 25, кор. 1 | C190: 1990 | E190: панель | F190: 9 | G190: 1 | H190: 1 | I190: 2906.8 | J190: 2026.8 | K190: 1971.6 | L190: 84 | M190: 2733515.56 | N190: 0 | O190: 0 | P190: 0 | Q190: =SUMIF('Раздел 2'!B:B,B190,'Раздел 2'!C:C)+SUMIF('Раздел 3'!B:B,B190,'Раздел 3'!C:C)+SUMIF('Раздел 4'!B:B,B190,'Раздел 4'!C:C) -> 2733515.56 | R190: 2022-12-30 | S190: РО | U190: =M190-'Раздел 2'!C142 -> 0
A191: 126 | B191: Г. Сланцы, ул. Ленина, д. 25, кор. 4 | C191: 1990 | E191: панель | F191: 9 | G191: 3 | H191: 3 | I191: 8837.3 | J191: 6067.6 | K191: 6027.7 | L191: 218 | M191: 8199017.03 | N191: 0 | O191: 0 | P191: 0 | Q191: =SUMIF('Раздел 2'!B:B,B191,'Раздел 2'!C:C)+SUMIF('Раздел 3'!B:B,B191,'Раздел 3'!C:C)+SUMIF('Раздел 4'!B:B,B191,'Раздел 4'!C:C) -> 8199017.03 | R191: 2022-12-30 | S191: РО | U191: =M191-'Раздел 2'!C143 -> 0
A192: 127 | B192: Г. Сланцы, ул. Ленина, д. 25, кор. 6 | C192: 1992 | E192: панель | F192: 9 | G192: 3 | H192: 3 | I192: 8843.3 | J192: 6079 | K192: 5966.5 | L192: 226 | M192: 8179528.26 | N192: 0 | O192: 0 | P192: 0 | Q192: =SUMIF('Раздел 2'!B:B,B192,'Раздел 2'!C:C)+SUMIF('Раздел 3'!B:B,B192,'Раздел 3'!C:C)+SUMIF('Раздел 4'!B:B,B192,'Раздел 4'!C:C) -> 8179528.26 | R192: 2022-12-30 | S192: РО | U192: =M192-'Раздел 2'!C144 -> 0
A193: 128 | B193: Г. Сланцы, ул. Спортивная, д. 9/2 | C193: 1987 | E193: панель | F193: 9 | G193: 2 | H193: 2 | I193: 4071.9 | J193: 1806.9 | K193: 1806.9 | L193: 180 | M193: 5467331.23 | N193: 0 | O193: 0 | P193: 0 | Q193: =SUMIF('Раздел 2'!B:B,B193,'Раздел 2'!C:C)+SUMIF('Раздел 3'!B:B,B193,'Раздел 3'!C:C)+SUMIF('Раздел 4'!B:B,B193,'Раздел 4'!C:C) -> 5467331.23 | R193: 2022-12-30 | S193: РО | U193: =M193-'Раздел 2'!C145 -> 0
A194: 129 | B194: Г. Сланцы, ул. Шахтерской Славы, д. 14, корп. 1 | C194: 1996 | E194: кирпич | F194: 10 | G194: 1 | H194: 1 | I194: 3373.8 | J194: 2535.9 | K194: 2472.59 | L194: 96 | M194: 2873700.45 | N194: 0 | O194: 0 | P194: 0 | Q194: =SUMIF('Раздел 2'!B:B,B194,'Раздел 2'!C:C)+SUMIF('Раздел 3'!B:B,B194,'Раздел 3'!C:C)+SUMIF('Раздел 4'!B:B,B194,'Раздел 4'!C:C) -> 2873700.45 | R194: 2022-12-30 | S194: РО | U194: =M194-'Раздел 2'!C146 -> 0
A195: 130 | B195: Г. Сланцы, ул. Шахтерской Славы, д. 9б | C195: 1989 | E195: панель | F195: 9 | G195: 4 | H195: 4 | I195: 7964.43 | J195: 4481.39 | K195: 3991.17 | L195: 379 | M195: 10933757.17 | N195: 0 | O195: 0 | P195: 0 | Q195: =SUMIF('Раздел 2'!B:B,B195,'Раздел 2'!C:C)+SUMIF('Раздел 3'!B:B,B195,'Раздел 3'!C:C)+SUMIF('Раздел 4'!B:B,B195,'Раздел 4'!C:C) -> 10933757.17 | R195: 2022-12-30 | S195: РО | U195: =M195-'Раздел 2'!C147 -> 0
A196: Итого по муниципальному образованию | C196: x | D196: x | E196: x | F196: x | G196: =SUM(G187:G195) -> 20 | H196: x | I196: =SUM(I187:I195) -> 49518.13 | J196: =SUM(J187:J195) -> 31473.39 | K196: 30169.93 | L196: 1695 | M196: =SUM(M187:M195) -> 55912291.71 | N196: =SUM(N187:N195) -> 0 | O196: 0 | P196: 0 | Q196: 55912291.71 | R196: x | S196: x | U196: =M196-'Раздел 2'!C148 -> 0
A197: Итого по Сланцевскому муниципальному району | C197: x | D197: x | E197: x | F197: x | G197: =G196 -> 20 | H197: x | I197: =SUM(I196) -> 49518.13 | J197: 31473.39 | K197: 30169.93 | L197: 1695 | M197: =M196 -> 55912291.71 | N197: =N196 -> 0 | O197: 0 | P197: 0 | Q197: 55912291.71 | R197: x | S197: x | T197: =Q197-'Раздел 2'!C149 -> 0 | U197: =M197-'Раздел 2'!C149 -> 0
A198: Тихвинский муниципальный район
A199: Муниципальное образование Тихвинское городское поселение
A200: =A195+1 -> 131 | B200: Г. Тихвин, микрорайон 1а, д. 45 | C200: 1995 | E200: панель | F200: 9 | G200: 2 | H200: 2 | I200: 5566.2 | J200: 4027.8 | K200: 2440.9 | L200: 423 | M200: =Q200 -> 5433061.95 | N200: 0 | O200: 0 | P200: 0 | Q200: =SUMIF('Раздел 2'!B:B,B200,'Раздел 2'!C:C)+SUMIF('Раздел 3'!B:B,B200,'Раздел 3'!C:C)+SUMIF('Раздел 4'!B:B,B200,'Раздел 4'!C:C) -> 5433061.95 | R200: 2022-12-30 | S200: РО
A201: =A200+1 -> 132 | B201: Г. Тихвин, ул. Советская, д. 1 | C201: 1994 | E201: панель | F201: 10 | G201: 2 | H201: 2 | I201: 3864 | J201: 4108.5 | K201: 2258.7 | L201: 360 | M201: =Q201 -> 5459425.35 | N201: 0 | O201: 0 | P201: 0 | Q201: =SUMIF('Раздел 2'!B:B,B201,'Раздел 2'!C:C)+SUMIF('Раздел 3'!B:B,B201,'Раздел 3'!C:C)+SUMIF('Раздел 4'!B:B,B201,'Раздел 4'!C:C) -> 5459425.35 | R201: 2022-12-30 | S201: РО
... 17 more rows

Sheet Раздел 2
A1: Раздел II. Реестр многоквартирных домов, в которых будет проводиться капитальный ремонт лифтового оборудования в 2020 году, за счет средств собственников
A2: № п\п | B2: Адрес МКД | C2: Стоимость капитального ремонта ВСЕГО | D2: Ремонт или замена лифтового оборудования | F2: ТО | G2: Проектные работы
C3: руб. | D3: ед. | E3: руб | F3: руб. | G3: руб.
A4: 1 | B4: 2 | C4: 3 | D4: 4 | E4: 5 | F4: 6 | G4: 7
A5: Всеволожский муниципальный район
A6: Муниципальное образование "Город Всеволожск"
A7: 1 | B7: Г. Всеволожск, ул. Александровская, д. 81, корп. 3 | C7: =E7+F7+G7 -> 260000 | G7: 260000 | H7: 260000
A8: =A7+1 -> 2 | B8: Г. Всеволожск, ул. Балашова, д. 8/3 | C8: =E8+F8+G8 -> 260000 | G8: 260000
A9: =A8+1 -> 3 | B9: Г. Всеволожск, ул. Василеозерская, д. 5 | C9: =E9+F9+G9 -> 260000 | G9: 260000
A10: =A9+1 -> 4 | B10: Г. Всеволожск, ул. Ленинградская, д. 24/84 | C10: =E10+F10+G10 -> 910000 | G10: 910000
A11: Итого по муниципальному образованию | C11: =SUM(C7:C10) -> 1690000 | D11: =SUM(D7:D10) -> 0 | E11: 0 | F11: 0 | G11: 1690000
A12: Муниципальное образование Муринское сельское поселение
A13: =A10+1 -> 5 | B13: Пос. Мурино, ул. Оборонная, д. 12 | C13: =E13+F13+G13 -> 260000 | G13: 260000
A14: =A13+1 -> 6 | B14: Пос. Мурино, ул. Оборонная, д. 24 | C14: =E14+F14+G14 -> 390000 | G14: =130000*3 -> 390000
A15: =A14+1 -> 7 | B15: Пос. Мурино, ул. Оборонная, д. 18 | C15: =E15+F15+G15 -> 7753272.92 | D15: =cвод!J11 -> 2 | E15: =cвод!K11 -> 7346346 | F15: =cвод!L11 -> 146926.92 | G15: =D15*130000 -> 260000
A16: 8 | B16: Пос. Мурино, ул. Оборонная, д. 22 | C16: =E16+F16+G16 -> 130000 | G16: 130000
A17: Итого по муниципальному образованию | C17: =SUM(C13:C16) -> 8533272.92 | D17: =SUM(D13:D16) -> 2 | E17: 7346346 | F17: 146926.92 | G17: 1040000
A18: Муниципальное образование Свердловское городское поселение
A19: =A16+1 -> 9 | B19: Пос. им. Свердлова, микрорайон 1, д. 8 | C19: =E19+F19+G19 -> 520000 | G19: 520000
A20: Итого по муниципальному образованию | C20: =C19 -> 520000 | D20: =D19 -> 0 | E20: 0 | F20: 0 | G20: 520000
A21: Муниципальное образование "Сертолово"
A22: =A19+1 -> 10 | B22: Г. Сертолово, микрорайон Сертолово-1, ул. Молодежная, д. 8, корп. 2 | C22: =E22+F22+G22 -> 390000 | G22: 390000
A23: =A22+1 -> 11 | B23: Г. Сертолово, микрорайон Сертолово-1, ул. Центральная, д. 6, корп. 1 | C23: =E23+F23+G23 -> 8667924.47 | D23: =cвод!J19 -> 3 | E23: =SUM([1]субсидия!$C$166:$C$168) -> 8057534.09 | F23: =cвод!L19 -> 220390.38 | G23: =D23*130000 -> 390000
A24: =A23+1 -> 12 | B24: Г. Сертолово, микрорайон Сертолово-1, ул. Центральная, д. 7, корп. 1 | C24: =E24+F24+G24 -> 8680076.04 | D24: =cвод!J20 -> 3 | E24: =SUM([1]субсидия!$C$169:$C$171) -> 8069685.66 | F24: =cвод!L20 -> 220390.38 | G24: =D24*130000 -> 390000
A25: Итого по муниципальному образованию | C25: =SUM(C22:C24) -> 17738000.51 | D25: =SUM(D22:D24) -> 6 | E25: 16127219.75 | F25: 440780.76 | G25: 1170000
A26: Итого по Всеволожскому муниципальному району | C26: =C25+C17+C11+C20 -> 28481273.43 | D26: =D25+D17+D11+D20 -> 8 | E26: 23473565.75 | F26: 587707.68 | G26: 4420000
A27: Выборгский район
A28: Муниципальное образование "Город Выборг
A29: =A24+1 -> 13 | B29: Г. Выборг, бул. Кутузова, д. 33 | C29: =E29+F29+G29 -> 2540171.372 | D29: =cвод!J25 -> 1 | E29: =[1]субсидия!$C$295 -> 2362913.11 | F29: =E29*0.02 -> 47258.2622 | G29: =D29*130000 -> 130000
A30: =A29+1 -> 14 | B30: Г. Выборг, просп. Московский, д. 10 | C30: 2655861.567 | D30: =cвод!J26 -> 1 | E30: =[1]субсидия!$C$285 -> 2476334.87 | F30: 49526.6974 | G30: =D30*130000 -> 130000
A31: 15 | B31: Г. Выборг, просп. Победы, д. 6 | C31: 2439950.079 | D31: =cвод!J28 -> 1 | E31: =[1]субсидия!$C$286 -> 2264656.94 | F31: 45293.1388 | G31: =D31*130000 -> 130000
A32: 16 | B32: Г. Выборг, пр. Победы, д. 8 | C32: 2438131.623 | D32: =cвод!J29 -> 1 | E32: =[1]субсидия!$C$287 -> 2262874.14 | F32: 45257.4828 | G32: =D32*130000 -> 130000
A33: =A32+1 -> 17 | B33: Г. Выборг, просп. Победы, д. 12 | C33: 520000 | G33: 520000
A34: =A33+1 -> 18 | B34: Г. Выборг, ул. Аристарха Макарова, д. 4 | C34: 4914710.167 | D34: =cвод!J30 -> 2 | E34: =SUM([1]субсидия!$C$288:$C$289) -> 4563441.34 | F34: 91268.8268 | G34: =D34*130000 -> 260000
A35: 19 | B35: Г. Выборг, ул. Гагарина, д. 29 | C35: 11629909.38 | D35: =cвод!J31 -> 3 | E35: =cвод!K31 -> 11019519 | F35: 220390.38 | G35: 390000
A36: 20 | B36: Г. Выборг, ул. Гагарина, д. 65 | C36: 2438059.641 | D36: =cвод!J32 -> 1 | E36: =[1]субсидия!$C$290 -> 2262803.57 | F36: 45256.0714 | G36: 130000
A37: 21 | B37: Г. Выборг, ул. Гагарина, д. 71 | C37: 4909588.512 | D37: =cвод!J34 -> 2 | E37: =SUM([1]субсидия!$C$291:$C$292) -> 4558420.11 | F37: 91168.4022 | G37: 260000
A38: 22 | B38: Г. Выборг, ул. Крепостная, д. 39а | C38: 3876636.46 | D38: =cвод!J35 -> 1 | E38: =cвод!K35 -> 3673173 | F38: 73463.46 | G38: 130000
A39: 23 | B39: Г. Выборг, ул. Офицерская, д. 12 | C39: 2481167.544 | D39: =cвод!J36 -> 1 | E39: =[1]субсидия!$C$293 -> 2305066.22 | F39: 46101.3244 | G39: 130000
A40: 24 | B40: Г. Выборг, ул. Офицерская, д. 14 | C40: 2483623.235 | D40: =cвод!J37 -> 1 | E40: =[1]субсидия!$C$294 -> 2307473.76 | F40: 46149.4752 | G40: 130000
A41: 25 | B41: Г. Выборг, ул. Офицерская, д. 16 | C41: 2754215.751 | D41: =cвод!J38 -> 1 | E41: =[1]субсидия!$C$274 -> 2572760.54 | F41: 51455.2108 | G41: 130000
A42: 26 | B42: Г. Выборг, ул. Приморская, д. 36 | C42: 5389943.314 | D42: =cвод!J39 -> 2 | E42: =SUM([1]субсидия!$C$275:$C$276) -> 5029356.19 | F42: 100587.1238 | G42: 260000
A43: 27 | B43: Г. Выборг, ул. Приморская, д. 40 | C43: 10333120.74 | D43: =cвод!J40 -> 4 | E43: =SUM([1]субсидия!$C$277:$C$280) -> 9620706.61 | F43: 192414.1322 | G43: 520000
A44: 28 | B44: Г. Выборг, ул. Приморская, д. 53 | C44: 5395520.143 | D44: =cвод!J41 -> 2 | E44: =SUM([1]субсидия!$C$281:$C$282) -> 5034823.67 | F44: 100696.4734 | G44: 260000
A45: =A44+1 -> 29 | B45: Г. Выборг, ул. Травяная, д. 6 | C45: 5480984.485 | D45: =cвод!J43 -> 2 | E45: =SUM([1]субсидия!$C$283:$C$284) -> 5118612.24 | F45: 102372.2448 | G45: 260000
A46: 30 | B46: Г. Выборг, ш. Ленинградское, д. 51а | C46: 2699518.73 | D46: =cвод!J44 -> 1 | E46: =[1]субсидия!$C$273 -> 2519136.01 | F46: 50382.7202 | G46: 130000
A47: Итого по муниципальному образованию | C47: =SUM(C29:C46) -> 75381112.75 | D47: =SUM(D29:D46) -> 27 | E47: 69952071.32 | F47: 1399041.426 | G47: 4030000
A48: Муниципальное образование Светогорское городское поселение
A49: =A46+1 -> 31 | B49: Г. Светогорск, ул. Красноармейская, д. 26 | C49: =E49+F49+G49 -> 8324810.25 | D49: 3 | E49: 8126680.65 | F49: 198129.6 | G49: 0
A50: =A49+1 -> 32 | B50: Г. Светогорск, ул. Красноармейская, д. 32 | C50: =E50+F50+G50 -> 13117704.67 | D50: 6 | E50: =SUM([1]субсидия!$C$299:$C$303) -> 11888945.95 | F50: =cвод!L48 -> 448758.72 | G50: =cвод!Z48 -> 780000
A51: =A50+1 -> 33 | B51: Г. Светогорск, ул. Красноармейская, д. 8 | C51: =E51+F51+G51 -> 7759701.1 | D51: 3 | E51: =SUM([1]субсидия!$C$296:$C$298) -> 7170098.2 | F51: =66534.3+66534.3+66534.3 -> 199602.9 | G51: =D51*130000 -> 390000
A52: Итого по муниципальному образованию | C52: =SUM(C49:C51) -> 29202216.02 | D52: =SUM(D49:D51) -> 12 | E52: 27185724.8 | F52: 846491.22 | G52: 1170000
A53: Муниципальное образование Советское городское поселение
A54: =A51+1 -> 34 | B54: Г.п. Советский, ул. Садовая, д. 46 | C54: =E54+F54+G54 -> 2381097.22 | D54: 1 | E54: 2313231.88 | F54: 67865.34
A55: Итого по муниципальному образованию | C55: =SUM(C54) -> 2381097.22 | D55: =SUM(D54) -> 1 | E55: 2313231.88 | F55: 67865.34 | G55: 0
A56: Итого по Выборгскому району | C56: =C52+C47+C55 -> 106964426 | D56: =D52+D47+D55 -> 40 | E56: 99451028 | F56: 2313397.986 | G56: 5200000
A57: Гатчинский муниципальный район
A58: Муниципальное образование Город Гатчина
A59: =A54+1 -> 35 | B59: Г. Гатчина, просп. 25 Октября, д. 50, кор. 1 | C59: =E59+F59+G59 -> 5467384.59 | D59: =cвод!J58 -> 2 | E59: =[1]субсидия!$C$262+[1]субсидия!$C$263 -> 5060457.67 | F59: =cвод!L58 -> 146926.92 | G59: =D59*130000 -> 260000
A60: =A59+1 -> 36 | B60: Г. Гатчина, просп. 25 Октября, д. 63 | C60: 390000 | G60: 390000
A61: 37 | B61: Г. Гатчина, ул. Авиатриссы Зверевой, д. 11 | C61: 260000 | G61: 260000
A62: 38 | B62: Г. Гатчина, ул. Авиатриссы Зверевой, д. 15 | C62: 5440054.11 | D62: =cвод!J62 -> 2 | E62: =[1]субсидия!$C$264+[1]субсидия!$C$265 -> 5033127.19 | F62: =cвод!L62 -> 146926.92 | G62: =D62*130000 -> 260000
A63: 39 | B63: Г. Гатчина, ул. Авиатриссы Зверевой, д. 20 | C63: 5467206.13 | D63: =cвод!J63 -> 2 | E63: =[1]субсидия!$C$266+[1]субсидия!$C$267 -> 5060279.21 | F63: =cвод!L63 -> 146926.92 | G63: =D63*130000 -> 260000
A64: 40 | B64: Г. Гатчина, ул. Авиатриссы Зверевой, д. 3 | C64: 5466365.27 | D64: =cвод!J64 -> 2 | E64: =SUM([1]субсидия!$C$268:$C$269) -> 5059438.35 | F64: =cвод!L64 -> 146926.92 | G64: =D64*130000 -> 260000
A65: 41 | B65: Г. Гатчина, ул. Володарского, д. 25А | C65: 5177708.02 | D65: =cвод!J65 -> 2 | E65: =SUM([1]субсидия!$C$270:$C$271) -> 4770781.1 | F65: =cвод!L65 -> 146926.92 | G65: =D65*130000 -> 260000
A66: 42 | B66: Г. Гатчина, ул. Красных Военлётов, д. 9 | C66: 520000 | G66: =4*130000 -> 520000
A67: 43 | B67: Г. Гатчина, ул. Рощинская, д. 19 | C67: 15506545.84 | D67: =cвод!J70 -> 4 | E67: =cвод!K70 -> 14692692 | F67: =cвод!L70 -> 293853.84 | G67: =D67*130000 -> 520000
A68: 44 | B68: Г. Гатчина, ул. Рощинская, д. 9Г | C68: 7753272.92 | D68: =cвод!J72 -> 2 | E68: =cвод!K72 -> 7346346 | F68: =cвод!L72 -> 146926.92 | G68: =D68*130000 -> 260000
A69: 45 | B69: Г. Гатчина, ул. Рощинская, д. 13, кор. 1 | C69: 130000 | G69: 130000
A70: 46 | B70: Г. Гатчина, ул. Чехова, д. 14 | C70: 260000 | G70: 260000
A71: 47 | B71: Г. Гатчина, ул. Хохлова, д. 2 | C71: 390000 | G71: 390000
A72: Итого по муниципальному образованию | C72: =SUM(C59:C71) -> 52228536.88 | D72: =SUM(D59:D71) -> 16 | E72: 47023121.52 | F72: 1175415.36 | G72: 4030000
A73: Итого по Гатчинскому муниципальному району | C73: =C72 -> 52228536.88 | D73: =D72 -> 16 | E73: 47023121.52 | F73: 1175415.36 | G73: 4030000
A74: Киришский муниципальный район
A75: Муниципальное образование Киришское городское поселение
A76: =A71+1 -> 48 | B76: Г. Кириши, бул. Плавницкий, д. 16 | C76: =E76+F76+G76 -> 2803026.64 | D76: =cвод!J95 -> 1 | E76: =[1]субсидия!$C$322 -> 2599563.18 | F76: =cвод!L95 -> 73463.46 | G76: =D76*130000 -> 130000
A77: =A76+1 -> 49 | B77: Г. Кириши, пер. Березовый, д. 10 | C77: 130000 | G77: 130000
A78: 50 | B78: Г. Кириши, просп. Героев, д. 15 | C78: 2802614.46 | D78: =cвод!J98 -> 1 | E78: =[1]субсидия!$C$323 -> 2599151 | F78: =cвод!L98 -> 73463.46 | G78: =D78*130000 -> 130000
A79: 51 | B79: Г. Кириши, просп. Героев, д. 17 | C79: 5567978.94 | D79: =cвод!J99 -> 2 | E79: =SUM([1]субсидия!$C$324:$C$325) -> 5161052.02 | F79: =cвод!L99 -> 146926.92 | G79: 260000
A80: 52 | B80: Г. Кириши, ул. Декабристов Бестужевых, д. 16 | C80: 2803590.77 | D80: =cвод!J102 -> 1 | E80: =[1]субсидия!$C$326 -> 2600127.31 | F80: =cвод!L102 -> 73463.46 | G80: 130000
A81: 53 | B81: Г. Кириши, ул. Строителей, д. 28 | C81: 2803316.73 | D81: =cвод!J105 -> 1 | E81: =[1]субсидия!$C$327 -> 2599853.27 | F81: =cвод!L105 -> 73463.46 | G81: 130000
A82: 54 | B82: Г. Кириши, ул. Строителей, д. 30 | C82: 8449707.67 | D82: =cвод!J106 -> 3 | E82: =SUM([1]субсидия!$C$328:$C$330) -> 7839317.29 | F82: =cвод!L106 -> 220390.38 | G82: 390000
A83: 55 | B83: Г. Кириши, ул. Строителей, д. 46 | C83: 11264437.79 | D83: =cвод!J107 -> 4 | E83: =SUM([1]субсидия!$C$331:$C$334) -> 10450583.95 | F83: =cвод!L107 -> 293853.84 | G83: 520000
A84: =A83+1 -> 56 | B84: Г. Кириши, ул. Энергетиков, д. 40 | C84: 2803602.38 | D84: =cвод!J108 -> 1 | E84: =[1]субсидия!$C$335 -> 2600138.92 | F84: =cвод!L108 -> 73463.46 | G84: 130000
A85: Итого по муниципальному образованию | C85: =SUM(C76:C84) -> 39428275.38 | D85: =SUM(D76:D84) -> 14 | E85: =SUM(E76:E84) -> 36449786.94 | F85: =SUM(F76:F84) -> 1028488.44 | G85: =SUM(G76:G84) -> 1950000
A86: Итого по Киришскому муниципальному району | C86: =C85 -> 39428275.38 | D86: =D85 -> 14 | E86: 36449786.94 | F86: 1028488.44 | G86: 1950000
A87: Кировский муниципальный район
A88: Муниципальное образование Кировское городское поселение
A89: =A84+1 -> 57 | B89: Г. Кировск, ул. Ладожская, д. 22 | C89: =E89+F89+G89 -> 11213845.77 | D89: =cвод!J113 -> 4 | E89: =SUM([1]субсидия!$C$207:$C$210) -> 10399991.93 | F89: =cвод!L113 -> 293853.84 | G89: =D89*130000 -> 520000
A90: =A89+1 -> 58 | B90: Г. Кировск, ул. Молодежная, д. 3 | C90: 130000 | G90: 130000
A91: 59 | B91: Г. Кировск, ул. Молодежная, д. 5 | C91: 130000 | G91: 130000
A92: 60 | B92: Г. Кировск, ул. Новая, д. 13, кор. 1 | C92: 2803461.56 | D92: =cвод!J116 -> 1 | E92: =[1]субсидия!$C$211 -> 2599998.1 | F92: =cвод!L116 -> 73463.46 | G92: =D92*130000 -> 130000
A93: 61 | B93: Г. Кировск, ул. Новая, д. 13, кор. 2 | C93: 2803461.56 | D93: =cвод!J117 -> 1 | E93: =[1]субсидия!$C$212 -> 2599998.1 | F93: =cвод!L117 -> 73463.46 | G93: =D93*130000 -> 130000
A94: =A93+1 -> 62 | B94: Г. Кировск, ул. Северная, д. 17 | C94: 11213600.86 | D94: =cвод!J118 -> 4 | E94: =SUM([1]субсидия!$C$213:$C$216) -> 10399747.02 | F94: =cвод!L118 -> 293853.84 | G94: =D94*130000 -> 520000
A95: Итого по муниципальному образованию | C95: =SUM(C89:C94) -> 28294369.75 | D95: =SUM(D89:D94) -> 10 | E95: 25999735.15 | F95: 734634.6 | G95: 1560000
A96: Муниципальное образование Отрадненское городское поселение
A97: =A94+1 -> 63 | B97: Г. Отрадное, ул. Железнодорожная, д. 13 | C97: =E97+F97+G97 -> 260000 | G97: 260000
A98: =A97+1 -> 64 | B98: Г. Отрадное, ул. Железнодорожная, д. 15 | C98: 2802964.66 | D98: =cвод!J121 -> 1 | E98: =[1]субсидия!$C$203 -> 2599501.2 | F98: =cвод!L121 -> 73463.46 | G98: =D98*130000 -> 130000
A99: =A98+1 -> 65 | B99: Г. Отрадное, ул. Зарубина, д. 11а | C99: 2803463.4 | D99: =cвод!J122 -> 1 | E99: =[1]субсидия!$C$204 -> 2599999.94 | F99: =cвод!L122 -> 73463.46 | G99: =D99*130000 -> 130000
A100: =A99+1 -> 66 | B100: Г. Отрадное, ул. Зарубина, д. 15 | C100: 130000 | G100: 130000
A101: =A100+1 -> 67 | B101: Г. Отрадное, ул. Лесная, д. 10 | C101: 780000 | G101: 780000
A102: =A101+1 -> 68 | B102: Г. Отрадное, ул. Лесная, д. 6 | C102: 2733472.2 | D102: =cвод!J123 -> 1 | E102: =[1]субсидия!$C$205 -> 2530008.74 | F102: =cвод!L123 -> 73463.46 | G102: =D102*130000 -> 130000
A103: 69 | B103: Г. Отрадное, ул. Советская, д. 25 | C103: 2803469.74 | D103: =cвод!J124 -> 1 | E103: =[1]субсидия!$C$206 -> 2600006.28 | F103: =cвод!L124 -> 73463.46 | G103: =D103*130000 -> 130000
A104: 70 | B104: Г. Отрадное, ул. Центральная,д.17 | C104: 520000 | G104: 520000
A105: 71 | B105: Г. Отрадное, ул. Щурова, д.4 | C105: 260000 | G105: 260000
A106: Итого по муниципальному образованию | C106: =SUM(C97:C105) -> 13093370 | D106: =SUM(D97:D105) -> 4 | E106: 10329516.16 | F106: 293853.84 | G106: 2470000
A107: Итого по Кировскому муниципальному району | C107: =+C106+C95 -> 41387739.75 | D107: =+D106+D95 -> 14 | E107: 36329251.31 | F107: 1028488.44 | G107: 4030000
A108: Ломоносовский муниципальный район
A109: Муниципальное образование Русско-Высоцкое сельское поселение
A110: =A105+1 -> 72 | B110: С. Русско-Высоцкое, д. 25 | C110: =E110+F110+G110 -> 5600112.27 | D110: =cвод!J129 -> 2 | E110: =[1]субсидия!$C$239+[1]субсидия!$C$240 -> 5193185.35 | F110: =cвод!L129 -> 146926.92 | G110: =D110*130000 -> 260000
A111: Итого по муниципальному образованию | C111: =SUM(C110) -> 5600112.27 | D111: =SUM(D110) -> 2 | E111: 5193185.35 | F111: 146926.92 | G111: 260000
A112: Итого по Ломоносовскому муниципальному району | C112: =C111 -> 5600112.27 | D112: =D111 -> 2 | E112: 5193185.35 | F112: 146926.92 | G112: 260000
A113: Лужский муниципальный район
A114: Муниципальное образование Лужское городское поселение
A115: =A110+1 -> 73 | B115: Г. Луга, просп. Володарского, д. 26 | C115: =E115+F115+G115 -> 7140000 | D115: =cвод!J134 -> 2 | E115: =cвод!K134 -> 7000000 | F115: =cвод!L134 -> 140000
A116: =A115+1 -> 74 | B116: Г. Луга, ул. Миккели, д. 1, кор. 1 | C116: 3876636.46 | D116: =cвод!J137 -> 1 | E116: =cвод!K137 -> 3673173 | F116: =cвод!L137 -> 73463.46 | G116: =D116*130000 -> 130000
A117: =A116+1 -> 75 | B117: Г. Луга, ул. Миккели, д. 1, кор. 3 | C117: 3876636.46 | D117: =cвод!J138 -> 1 | E117: =cвод!K138 -> 3673173 | F117: =cвод!L138 -> 73463.46 | G117: =D117*130000 -> 130000
A118: =A117+1 -> 76 | B118: Г. Луга, ул. Победы, д. 4 | C118: 3570000 | D118: =cвод!J139 -> 1 | E118: =cвод!K139 -> 3500000 | F118: =cвод!L139 -> 70000
A119: =A118+1 -> 77 | B119: Г. Луга, ул. Победы, д. 7 | C119: 3700000 | D119: =cвод!J140 -> 1 | E119: =cвод!K140 -> 3500000 | F119: =cвод!L140 -> 70000 | G119: =D119*130000 -> 130000
A120: =A119+1 -> 78 | B120: Г. Луга, просп. Урицкого, д. 101 | C120: 130000 | D120: =cвод!J194 -> 0 | E120: =cвод!K194 -> 0 | F120: =cвод!L194 -> 0 | G120: 130000
A121: 79 | B121: Г. Луга, просп. Урицкого, д. 99 | C121: 130000 | D121: =cвод!J195 -> 0 | E121: =cвод!K195 -> 0 | F121: =cвод!L195 -> 0 | G121: 130000
A122: Итого по муниципальному образованию | C122: =SUM(C115:C121) -> 22423272.92 | D122: =SUM(D115:D121) -> 6 | E122: 21346346 | F122: 426926.92 | G122: 650000
A123: Итого по Лужскому муниципальному району | C123: =C122 -> 22423272.92 | D123: =D122 -> 6 | E123: 21346346 | F123: 426926.92 | G123: 650000
A124: Сосновоборский городской округ
A125: Муниципальное образование Сосновоборский городской округ
A126: =A121+1 -> 80 | B126: Г. Сосновый Бор, ул. Ленинградская, д. 30 | C126: =E126+F126+G126 -> 15932497.8 | D126: =cвод!J145 -> 6 | E126: =SUM([1]субсидия!$C$232:$C$237) -> 14711717.04 | F126: =cвод!L145 -> 440780.76 | G126: =D126*130000 -> 780000
A127: =A126+1 -> 81 | B127: Г. Сосновый Бор, ул. Молодежная, д. 26 | C127: 7594407.96 | D127: 2 | E127: =D127*3641478+162542 -> 7445498 | F127: =E127*0.02 -> 148909.96
A128: =A127+1 -> 82 | B128: Г. Сосновый Бор, ул. Молодежная, д. 54 | C128: 2804202.48 | D128: =cвод!J147 -> 1 | E128: =[1]субсидия!$C$231 -> 2600739.02 | F128: =cвод!L147 -> 73463.46 | G128: =D128*130000 -> 130000
A129: 83 | B129: Г. Сосновый Бор, ул. Парковая, д. 18 | C129: 11079698 | D129: =cвод!J148 -> 4 | E129: =SUM([1]субсидия!$C$218:$C$221) -> 10265844.16 | F129: =cвод!L148 -> 293853.84 | G129: =D129*130000 -> 520000
A130: 84 | B130: Г. Сосновый Бор, ул. Парковая, д. 22 | C130: 2773711.94 | D130: =cвод!J149 -> 1 | E130: =[1]субсидия!$C$222 -> 2570248.48 | F130: =cвод!L149 -> 73463.46 | G130: =D130*130000 -> 130000
A131: 85 | B131: Г. Сосновый Бор, ул. Парковая, д. 24 | C131: 10776014.6 | D131: =cвод!J150 -> 4 | E131: =SUM([1]субсидия!$C$223:$C$226) -> 9962160.76 | F131: =cвод!L150 -> 293853.84 | G131: =D131*130000 -> 520000
A132: 86 | B132: Г. Сосновый Бор, ул. Парковая, д. 44 | C132: 8367472 | D132: =cвод!J151 -> 3 | E132: =SUM([1]субсидия!$C$227:$C$229) -> 7757081.62 | F132: =cвод!L151 -> 220390.38 | G132: =D132*130000 -> 390000
A133: 87 | B133: Г. Сосновый Бор, ул. Сибирская, д. 5 | C133: 3880100.4 | D133: =cвод!J152 -> 1 | E133: =cвод!K152 -> 3804020 | F133: =cвод!L152 -> 76080.4
A134: 88 | B134: Г. Сосновый Бор, ул. Солнечная, д. 23а | C134: 2790756.58 | D134: =cвод!J153 -> 1 | E134: =[1]субсидия!$C$230 -> 2587293.12 | F134: =cвод!L153 -> 73463.46 | G134: =D134*130000 -> 130000
A135: 89 | B135: Г. Сосновый Бор, ул. Солнечная, д. 30 | C135: 5901813.6 | D135: 2 | E135: 5753330.4 | F135: 148483.2
A136: Итого по муниципальному образованию | C136: =SUM(C126:C135) -> 71900675.36 | D136: =SUM(D126:D135) -> 25 | E136: 67457932.6 | F136: 1842742.76 | G136: 2600000
A137: Сланцевский муниципальный район
A138: Муниципальное образование Сланцевское городское поселение
A139: =A135+1 -> 90 | B139: Г. Сланцы, просп. Молодежный, д. 13 | C139: =E139+F139+G139 -> 10976456.25 | D139: =cвод!J158 -> 4 | E139: =SUM([1]субсидия!$C$242:$C$245) -> 10162602.41 | F139: =cвод!L158 -> 293853.84 | G139: =D139*130000 -> 520000
A140: =A139+1 -> 91 | B140: Г. Сланцы, ул. Гагарина, д. 1 | C140: 2802349.3 | D140: =cвод!J159 -> 1 | E140: =[1]субсидия!$C$246 -> 2598885.84 | F140: =cвод!L159 -> 73463.46 | G140: =D140*130000 -> 130000
A141: 92 | B141: Г. Сланцы, ул. Гагарина, д. 5а | C141: 3746636.46 | D141: =cвод!J160 -> 1 | E141: =cвод!K160 -> 3673173 | F141: =cвод!L160 -> 73463.46
A142: 93 | B142: Г. Сланцы, ул. Ленина, д. 25, кор. 1 | C142: 2733515.56 | D142: =cвод!J161 -> 1 | E142: =[1]субсидия!$C$247 -> 2530052.1 | F142: =cвод!L161 -> 73463.46 | G142: =D142*130000 -> 130000
A143: 94 | B143: Г. Сланцы, ул. Ленина, д. 25, кор. 4 | C143: 8199017.03 | D143: =cвод!J162 -> 3 | E143: =SUM([1]субсидия!$C$248:$C$250) -> 7588626.65 | F143: =cвод!L162 -> 220390.38 | G143: 390000
A144: 95 | B144: Г. Сланцы, ул. Ленина, д. 25, кор. 6 | C144: 8179528.26 | D144: =cвод!J163 -> 3 | E144: =SUM([1]субсидия!$C$251:$C$253) -> 7569137.88 | F144: =cвод!L163 -> 220390.38 | G144: 390000
A145: 96 | B145: Г. Сланцы, ул. Спортивная, д. 9/2 | C145: 5467331.23 | D145: =cвод!J164 -> 2 | E145: =SUM([1]субсидия!$C$254:$C$255) -> 5060404.31 | F145: =cвод!L164 -> 146926.92 | G145: 260000
A146: 97 | B146: Г. Сланцы, ул. Шахтерской Славы, д. 14, корп. 1 | C146: 2873700.45 | D146: =cвод!J165 -> 1 | E146: =[1]субсидия!$C$260 -> 2670236.99 | F146: =cвод!L165 -> 73463.46 | G146: 130000
A147: 98 | B147: Г. Сланцы, ул. Шахтерской Славы, д. 9б | C147: 10933757.17 | D147: =cвод!J166 -> 4 | E147: =SUM([1]субсидия!$C$256:$C$259) -> 10119903.33 | F147: =cвод!L166 -> 293853.84 | G147: 520000
A148: Итого по муниципальному образованию | C148: =SUM(C139:C147) -> 55912291.71 | D148: =SUM(D139:D147) -> 20 | E148: 51973022.51 | F148: 1469269.2 | G148: 2470000
A149: Итого по Сланцевскому муниципальному району | C149: =C148 -> 55912291.71 | D149: =D148 -> 20 | E149: 51973022.51 | F149: 1469269.2 | G149: 2470000
A150: Тихвинский муниципальный район
A151: Муниципальное образование Тихвинское городское поселение
A152: =A147+1 -> 99 | B152: Г. Тихвин, микрорайон 1а, д. 45 | C152: =E152+F152+G152 -> 5433061.95 | D152: =cвод!J171 -> 2 | E152: =SUM([1]субсидия!$C$317:$C$318) -> 5026135.03 | F152: =cвод!L171 -> 146926.92 | G152: =D152*130000 -> 260000
A153: =A152+1 -> 100 | B153: Г. Тихвин, ул. Машиностроителей, д.46 | C153: =E153+F153+G153 -> 650000 | G153: 650000
A154: =A153+1 -> 101 | B154: Г. Тихвин, ул. Советская, д. 1 | C154: =E154+F154+G154 -> 5459425.35 | D154: =cвод!J172 -> 2 | E154: =SUM([1]субсидия!$C$319:$C$320) -> 5052498.43 | F154: =cвод!L172 -> 146926.92 | G154: =D154*130000 -> 260000
A155: Итого по муниципальному образованию | C155: =SUM(C152:C154) -> 11542487.3 | D155: =SUM(D152:D154) -> 4 | E155: 10078633.46 | F155: 293853.84 | G155: 1170000
A156: Итого по Тихвинскому муниципальному району | C156: =C155 -> 11542487.3 | D156: =D155 -> 4 | E156: 10078633.46 | F156: 293853.84 | G156: 1170000
A157: Тосненский район
A158: Муниципальное образование Тосненское городское поселение
A159: =A154+1 -> 102 | B159: Г. Тосно, ул. М. Горького, д. 4 | C159: =E159+F159+G159 -> 5467451.44 | D159: =cвод!J177 -> 2 | E159: =[1]субсидия!$C$10+[1]субсидия!$C$11 -> 5060524.52 | F159: =cвод!L177 -> 146926.92 | G159: =D159*130000 -> 260000
A160: =A159+1 -> 103 | B160: Г. Тосно, ул. М. Горького, д. 8а | C160: =E160+F160+G160 -> 260000 | G160: 260000
A161: =A160+1 -> 104 | B161: Г. Тосно, ул. Победы, д. 19А | C161: =E161+F161+G161 -> 5467371.38 | D161: =cвод!J178 -> 2 | E161: =[1]субсидия!$C$12+[1]субсидия!$C$13 -> 5060444.46 | F161: =cвод!L178 -> 146926.92 | G161: =D161*130000 -> 260000
A162: 105 | B162: Г. Тосно, пр. Ленина, д. 19 | C162: =E162+F162+G162 -> 520000 | G162: =130000*4 -> 520000
A163: Итого по муниципальному образованию | C163: =SUM(C159:C162) -> 11714822.82 | D163: =SUM(D159:D162) -> 4 | E163: =SUM(E159:E162) -> 10120968.98 | F163: =SUM(F159:F162) -> 293853.84 | G163: =SUM(G159:G162) -> 1300000
A164: Итого по Тосненскому району | C164: =C163 -> 11714822.82 | D164: =D163 -> 4 | E164: 10120968.98 | F164: 293853.84 | G164: 1300000
A165: ИТОГО по Ленинградской области | C165: =C164+C156+C149+C136+C123+C112+C107+C86+C73+C56+C26 -> 447583913.8 | D165: =D164+D156+D149+D136+D123+D112+D107+D86+D73+D56+D26 -> 153 | E165: 408896842.4 | F165: 10607071.39 | G165: 28080000
A166: Осуществление строительного контроля | C166: =(C165-F165-G165)*0.0214 -> 8750392.428
A167: Итого по Ленинградской области со строительным контролем | C167: =C165+C166 -> 456334306.2
G241: =SUM(G228:G240) -> 0
G264: =SUM(G246:G263) -> 0
G275: =SUM(G269:G274) -> 0
G283: =SUM(G277:G282) -> 0
G289: =SUM(G285:G287) -> 0
G290: =G241+G264+G275+G289+G283+G267 -> 0
G297: =SUM(G293:G296) -> 0
G361: =SUM(G302:G360) -> 0
G368: =SUM(G367) -> 0
G375: =G297+G361+G368 -> 0
G390: =SUM(G378:G389) -> 0
G395: =SUM(G392:G394) -> 0
G396: =G390+G395 -> 0
G426: =SUM(G399:G425) -> 0
G431: =SUM(G428:G430) -> 0
G435: =SUM(G433:G434) -> 0
G436: =G426+G435+G431 -> 0
G463: =SUM(G439:G462) -> 0
G480: =SUM(G465:G479) -> 0
G487: =SUM(G482:G486) -> 0
G490: =SUM(G489:G489) -> 0
G498: =SUM(G492:G497) -> 0
G506: =SUM(G500:G505) -> 0
G507: =#REF!+#REF!+#REF!+#REF!+#REF!+F507+#REF!+#REF!+#REF!+#REF!+#REF!+#REF!+#REF!+#REF! -> 
G508: =#REF!+#REF!+#REF!+#REF!+#REF!+F508+#REF!+#REF!+#REF!+#REF!+#REF!+#REF!+#REF!+#REF! -> 
G509: =#REF!+#REF!+#REF!+#REF!+#REF!+F509+#REF!+#REF!+#REF!+#REF!+#REF!+#REF!+#REF!+#REF! -> 
G510: =#REF!+#REF!+#REF!+#REF!+#REF!+F510+#REF!+#REF!+#REF!+#REF!+#REF!+#REF!+#REF!+#REF! -> 
G511: =#REF!+#REF!+#REF!+#REF!+#REF!+F511+#REF!+#REF!+#REF!+#REF!+#REF!+#REF!+#REF!+#REF! -> 
G537: =SUM(G513:G536) -> 0
G538: =SUM(G537+G506+G498+G490+G487+G480+G463) -> 0
G574: =SUM(G541:G573) -> 0
G575: =G574 -> 0
G584: =SUM(G578:G581) -> 0
... 41 more rows

Sheet Раздел 3
A1: Раздел III. Реестр многоквартирных домов, в которых будет проводиться капитальный ремонт лифтового оборудования в 2021 году, за счет средств собственников
A2: № п\п | B2: Адрес МКД | C2: Стоимость капитального ремонта ВСЕГО | D2: Ремонт или замена лифтового оборудования | F2: ТО | G2: Проект-ные работы
C3: руб. | D3: ед. | E3: руб | F3: руб. | G3: руб.
A4: 1 | B4: 2 | C4: 3 | D4: 4 | E4: 5 | F4: 6 | G4: 7
A5: Волховский муниципальный район
A6: Муниципальное образование Город Волхов
A7: 1 | B7: Г. Волхов, просп. Волховский, д. 57 | C7: =E7+F7+G7 -> 130000 | G7: 130000
A8: Итого по муниципальному образованию | C8: =SUM(C7:C7) -> 130000 | D8: =SUM(D7:D7) -> 0 | E8: 0 | F8: 0 | G8: 130000
A9: Итого по Волховскому муниципальному району | C9: =C8 -> 130000 | D9: =D8 -> 0 | E9: 0 | F9: 0 | G9: 130000
A10: Всеволожский муниципальный район
A11: Муниципальное образование "Город Всеволожск"
A12: =A7+1 -> 2 | B12: Г. Всеволожск, ул. Александровская, д. 81, корп. 3 | C12: =E12+F12+G12 -> 5016630.92 | D12: 2 | E12: =2434852*D12 -> 4869704 | F12: 146926.92
A13: =A12+1 -> 3 | B13: Г. Всеволожск, ул. Балашова, д. 8/3 | C13: 5016630.92 | D13: 2 | E13: =2434852*D13 -> 4869704 | F13: 146926.92
A14: =A13+1 -> 4 | B14: Г. Всеволожск, ул. Вокка, д. 3 | C14: 260000 | E14: =2434852*D14 -> 0 | G14: 260000
A15: 5 | B15: Г. Всеволожск, ул. Василеозерская, д. 5 | C15: 5016630.92 | D15: 2 | E15: =2434852*D15 -> 4869704 | F15: 146926.92
A16: 6 | B16: Г. Всеволожск, ул. Василеозерская, д. 7 | C16: 260000 | G16: 260000
A17: 7 | B17: Г. Всеволожск, ул. Ленинградская, д. 30, корп. 1 | C17: 130000 | G17: 130000
A18: 8 | B18: Г. Всеволожск, ул. Ленинградская, д. 24/84 | C18: 26226455.22 | D18: 7 | E18: 25712211 | F18: 514244.22
A19: Итого по муниципальному образованию | C19: =SUM(C12:C18) -> 41926347.98 | D19: =SUM(D12:D18) -> 13 | E19: 40321323 | F19: 955024.98 | G19: 650000
A20: Муниципальное образование Муринское сельское поселение
A21: =A18+1 -> 9 | B21: Пос. Мурино, ул. Оборонная, д. 12 | C21: =E21+F21+G21 -> 5016630.92 | D21: 2 | E21: =2434852*D21 -> 4869704 | F21: =73463.46*D21 -> 146926.92
A22: =A21+1 -> 10 | B22: Пос. Мурино, ул. Оборонная, д. 24 | C22: =E22+F22+G22 -> 7524946.38 | D22: 3 | E22: =2434852*D22 -> 7304556 | F22: 220390.38
A23: =A22+1 -> 11 | B23: Пос. Мурино, ул. Оборонная, д. 22 | C23: =E23+F23+G23 -> 2508315.46 | D23: 1 | E23: 2434852 | F23: =73463.46*D23 -> 73463.46
A24: Итого по муниципальному образованию | C24: =SUM(C21:C23) -> 15049892.76 | D24: =SUM(D21:D23) -> 6 | E24: 14609112 | F24: 440780.76 | G24: 0
A25: Муниципальное образование Свердловское городское поселение
A26: =A23+1 -> 12 | B26: Пос. им. Свердлова, микрорайон 1, д. 8 | C26: =E26+F26+G26 -> 10033261.84 | D26: =cвод!J15 -> 4 | E26: =2434852*D26 -> 9739408 | F26: =cвод!L15 -> 293853.84
A27: Итого по муниципальному образованию | C27: =SUM(C26) -> 10033261.84 | D27: =SUM(D26) -> 4 | E27: 9739408 | F27: 293853.84 | G27: 0
A28: Муниципальное образование "Сертолово"
A29: =A26+1 -> 13 | B29: Г. Сертолово, микрорайон Сертолово-1, ул. Молодежная, д. 8, корп. 2 | C29: =E29+F29+G29 -> 7524946.38 | D29: =cвод!J18 -> 3 | E29: =2434852*D29 -> 7304556 | F29: =cвод!L18 -> 220390.38
A30: Итого по муниципальному образованию | C30: =SUM(C29) -> 7524946.38 | D30: =SUM(D29) -> 3 | E30: 7304556 | F30: 220390.38 | G30: 0
A31: Итого по Всеволожскому муниципальному району | C31: =C30+C27+C24+C19 -> 74534448.96 | D31: =D30+D27+D24+D19 -> 26 | E31: 71974399 | F31: 1910049.96 | G31: 650000
A32: Выборгский район
A33: Муниципальное образование "Город Выборг
A34: =A29+1 -> 14 | B34: Г. Выборг, ул. Гагарина, д. 69 | C34: =E34+F34+G34 -> 390000 | G34: 390000
A35: =A34+1 -> 15 | B35: Г. Выборг, ул. Приморская, д. 64 | C35: =E35+F35+G35 -> 4345632.02 | D35: 2 | E35: =2143508.94+2071836.92 -> 4215345.86 | F35: =65143.08+65143.08 -> 130286.16
A36: =A35+1 -> 16 | B36: Г. Выборг, просп. Победы, д. 12 | C36: =E36+F36+G36 -> 10033261.84 | D36: =cвод!J27 -> 4 | E36: =2434852*D36 -> 9739408 | F36: =cвод!L27 -> 293853.84
A37: Итого по муниципальному образованию | C37: =SUM(C34:C36) -> 14768893.86 | D37: =SUM(D34:D36) -> 6 | E37: 13954753.86 | F37: 424140 | G37: 390000
A38: Итого по Выборгскому району | C38: =C37 -> 14768893.86 | D38: =D37 -> 6 | E38: 13954753.86 | F38: 424140 | G38: 390000
A39: Гатчинский муниципальный район
A40: Муниципальное образование Город Гатчина
A41: =A36+1 -> 17 | B41: Г. Гатчина, просп. 25 Октября, д. 50 | C41: =E41+F41+G41 -> 11544197.62 | D41: 6 | E41: =1837065.6+1850126.4+2020569.6+1866856.8+1872243.6+1870978.8 -> 11317840.8 | F41: =E41*0.02 -> 226356.816
A42: =A41+1 -> 18 | B42: Г. Гатчина, просп. 25 Октября, д. 59 | C42: 390000 | G42: 390000
A43: =A42+1 -> 19 | B43: Г. Гатчина, просп. 25 Октября, д. 63 | C43: 5800138.2 | D43: 3 | E43: =1833385.2+1973666.4+1879358.4 -> 5686410 | F43: 113728.2
A44: 20 | B44: Г. Гатчина, ул. Авиатриссы Зверевой, д. 11 | C44: 4015976.293 | D44: 2 | E44: =2014907.82+1922323.84 -> 3937231.66 | F44: 78744.6332
A45: 21 | B45: Г. Гатчина, ул. Красных Военлётов, д. 9 | C45: 10012095.24 | D45: 4 | E45: =2072192.4+1954905.6+2017970.4+3673173 -> 9718241.4 | F45: 293853.84
A46: 22 | B46: Г. Гатчина, ул. Рощинская, д. 13, кор. 1 | C46: 2066923.512 | D46: 1 | E46: 2026395.6 | F46: 40527.912
A47: =A46+1 -> 23 | B47: Г. Гатчина, ул. Рощинская, д. 11, кор. 1 | C47: 130000 | G47: 130000
A48: =A47+1 -> 24 | B48: Г. Гатчина, ул. Рощинская, д. 13А | C48: 260000 | G48: 260000
A49: =A48+1 -> 25 | B49: Г. Гатчина, ул. Рощинская, д. 3А | C49: 260000 | G49: 260000
A50: =A49+1 -> 26 | B50: Г. Гатчина, ул. Чехова, д. 14 | C50: 4285663.416 | D50: 2 | E50: =2272777.2+1928853.6 -> 4201630.8 | F50: 84032.616
A51: 27 | B51: Г. Гатчина, ул. Хохлова, д. 2 | C51: 7524946.38 | D51: =cвод!J73 -> 3 | E51: =2434852*D51 -> 7304556 | F51: =cвод!L73 -> 220390.38
A52: Итого по муниципальному образованию | C52: =SUM(C41:C51) -> 46289940.66 | D52: =SUM(D41:D51) -> 21 | E52: 44192306.26 | F52: 1057634.397 | G52: 1040000
A53: Итого по Гатчинскому муниципальному району | C53: =C52 -> 46289940.66 | D53: =D52 -> 21 | E53: 44192306.26 | F53: 1057634.397 | G53: 1040000
A54: Кингисеппский муниципальный район
A55: Муниципальное образование Кингисеппское городское поселение
A56: =A51+1 -> 28 | B56: Г. Кингисепп, просп. Карла Маркса, д. 51 | C56: =E56+F56+G56 -> 130000 | G56: 130000
A57: =A56+1 -> 29 | B57: Г. Кингисепп, б-р Большой , д. 11 | C57: 520000 | G57: 520000
A58: 30 | B58: Г. Кингисепп, б-р Большой, д. 15 | C58: 260000 | G58: 260000
A59: 31 | B59: Г. Кингисепп, б-р Большой, д. 17 | C59: 780000 | G59: 780000
A60: 32 | B60: Г. Кингисепп, ул. Воровского, д. 31в | C60: 260000 | G60: 260000
A61: 33 | B61: Г. Кингисепп, ул. Жукова, д. 4А | C61: 130000 | G61: 130000
A62: 34 | B62: Г. Кингисепп, ул. Жукова, д. 8а | C62: 130000 | G62: 130000
A63: 35 | B63: Г. Кингисепп, ш. Крикковское, д. 10а | C63: 260000 | G63: 260000
A64: 36 | B64: Г. Кингисепп, ш. Крикковское, д. 12 | C64: 910000 | G64: 910000
A65: 37 | B65: Г. Кингисепп, ш. Крикковское, д. 14 | C65: 910000 | G65: 910000
A66: 38 | B66: Г. Кингисепп, ш. Крикковское, д. 35 | C66: 650000 | G66: 650000
A67: 39 | B67: Г. Кингисепп, ш. Крикковское, д. 39 | C67: 390000 | G67: 390000
A68: 40 | B68: Г. Кингисепп, ш. Крикковское, д. 6 | C68: 780000 | G68: 780000
A69: Итого по муниципальному образованию | C69: =SUM(C56:C68) -> 6110000 | D69: =SUM(D56:D68) -> 0 | E69: 0 | F69: 0 | G69: 6110000
A70: Итого по Кингисеппскому муниципальному району | C70: =C69 -> 6110000 | D70: =D69 -> 0 | E70: 0 | F70: 0 | G70: 6110000
A71: Киришский муниципальный район
A72: Муниципальное образование Киришское городское поселение
A73: =A68+1 -> 41 | B73: Г. Кириши, бул. Плавницкий, д. 36 | C73: =E73+F73+G73 -> 130000 | G73: 130000
A74: =A73+1 -> 42 | B74: Г. Кириши, пер. Березовый, д. 10 | C74: 2508315.46 | D74: =cвод!J122 -> 1 | E74: =2434852*D74 -> 2434852 | F74: =D74*73463.46 -> 73463.46
A75: 43 | B75: Г. Кириши, просп. Ленина, д. 40 | C75: 130000 | G75: 130000
A76: =A75+1 -> 44 | B76: Г. Кириши, просп. Ленина, д. 9 | C76: 130000 | G76: 130000
A77: =A76+1 -> 45 | B77: Г. Кириши, ул. Строителей, д. 2 | C77: 130000 | G77: 130000
A78: =A77+1 -> 46 | B78: Г. Кириши, ул. Строителей, д. 26 | C78: 130000 | G78: 130000
A79: Итого по муниципальному образованию | C79: =SUM(C73:C78) -> 3158315.46 | D79: 1 | E79: 2434852 | F79: 73463.46 | G79: 650000
A80: Итого по Киришскому муниципальному району | C80: =C79 -> 3158315.46 | D80: =D79 -> 1 | E80: 2434852 | F80: 73463.46 | G80: 650000
A81: Кировский муниципальный район
A82: Муниципальное образование Кировское городское поселение
A83: =A78+1 -> 47 | B83: Г. Кировск, ул. Молодежная, д. 3 | C83: =E83+F83+G83 -> 2508315.46 | D83: =cвод!J114 -> 1 | E83: =2434852*D83 -> 2434852 | F83: =cвод!L114 -> 73463.46
A84: =A83+1 -> 48 | B84: Г. Кировск, ул. Молодежная, д. 5 | C84: =E84+F84+G84 -> 2508315.46 | D84: =cвод!J115 -> 1 | E84: 2434852 | F84: =cвод!L115 -> 73463.46
A85: Итого по муниципальному образованию | C85: =SUM(C83:C84) -> 5016630.92 | D85: =SUM(D83:D84) -> 2 | E85: 4869704 | F85: 146926.92 | G85: 0
A86: Муниципальное образование Отрадненское городское поселение
A87: =A84+1 -> 49 | B87: Г. Отрадное, ул. Железнодорожная, д. 13 | C87: =E87+F87+G87 -> 5016630.92 | D87: 2 | E87: =2434852*D87 -> 4869704 | F87: =D87*73463.46 -> 146926.92
A88: =A87+1 -> 50 | B88: Г. Отрадное, ул. Зарубина, д. 15 | C88: =E88+F88+G88 -> 2508315.46 | D88: =cвод!J97 -> 1 | E88: 2434852 | F88: =D88*73463.46 -> 73463.46
A89: =A88+1 -> 51 | B89: Г. Отрадное, ул. Лесная, д. 10 | C89: =E89+F89+G89 -> 2508315.46 | D89: =cвод!J98 -> 1 | E89: 2434852 | F89: =D89*73463.46 -> 73463.46
A90: =A89+1 -> 52 | B90: Г. Отрадное, ул. Центральная,д.17 | C90: =E90+F90+G90 -> 10033261.84 | D90: 4 | E90: 9739408 | F90: =D90*73463.46 -> 293853.84
A91: 53 | B91: Г. Отрадное, ул. Щурова, д.4 | C91: =E91+F91+G91 -> 5016630.92 | D91: =cвод!J99 -> 2 | E91: 4869704 | F91: =D91*73463.46 -> 146926.92
A92: Итого по муниципальному образованию | C92: =SUM(C87:C91) -> 25083154.6 | D92: =SUM(D87:D91) -> 10 | E92: 24348520 | F92: 734634.6 | G92: 0
A93: Итого по Кировскому муниципальному району | C93: =+C92+C85 -> 30099785.52 | D93: =+D92+D85 -> 12 | E93: 29218224 | F93: 881561.52 | G93: 0
A94: Ломоносовский муниципальный район
A95: Муниципальное образование Аннинское сельское поселение
A96: =A91+1 -> 54 | B96: Г.п. Новоселье, д. 7 | C96: =E96+F96+G96 -> 520000 | G96: =4*130000 -> 520000
A97: Итого по муниципальному образованию | C97: =SUM(C96) -> 520000 | D97: =SUM(D96) -> 0 | E97: 0 | F97: 0 | G97: 520000
A98: Итого по Ломоносовскому муниципальному району | C98: =C97 -> 520000 | D98: =D97 -> 0 | E98: 0 | F98: 0 | G98: 520000
A99: Лужский муниципальный район
A100: Муниципальное образование Лужское городское поселение
A101: =A96+1 -> 55 | B101: Г. Луга, просп. Урицкого, д. 101 | C101: =E101+F101+G101 -> 2508315.46 | D101: =cвод!J135 -> 1 | E101: =2434852*D101 -> 2434852 | F101: =cвод!L135 -> 73463.46
A102: =A101+1 -> 56 | B102: Г. Луга, просп. Урицкого, д. 99 | C102: =E102+F102+G102 -> 2508315.46 | D102: =cвод!J136 -> 1 | E102: 2434852 | F102: =cвод!L136 -> 73463.46
A103: Итого по муниципальному образованию | C103: =SUM(C101:C102) -> 5016630.92 | D103: =SUM(D101:D102) -> 2 | E103: 4869704 | F103: 146926.92 | G103: 0
A104: Итого по Лужскому муниципальному району | C104: =SUM(C103) -> 5016630.92 | D104: =SUM(D103) -> 2 | E104: 4869704 | F104: 146926.92 | G104: 0
A105: Сосновоборский городской округ
A106: Муниципальное образование Сосновоборский городской округ
A107: =A102+1 -> 57 | B107: Г. Сосновый Бор, ул. Ленинградская, д. 38 | C107: =E107+F107+G108 -> 130000 | G107: 130000
A108: =A107+1 -> 58 | B108: Г. Сосновый Бор, ул. Парковая, д. 70 | C108: =E108+F108+G108 -> 130000 | G108: 130000
A109: Итого по муниципальному образованию | C109: =SUM(C107:C108) -> 260000 | D109: =SUM(D107:D108) -> 0 | E109: 0 | F109: 0 | G109: 260000
A110: Тихвинский муниципальный район
A111: Муниципальное образование Тихвинское городское поселение
A112: =A108+1 -> 59 | B112: Г. Тихвин, ул. Машиностроителей, д.46 | C112: =E112+F112+G112 -> 12541577.3 | D112: 5 | E112: =2434852*D112 -> 12174260 | F112: =D112*73463.46 -> 367317.3
A113: Итого по муниципальному образованию | C113: =SUM(C112) -> 12541577.3 | D113: =SUM(D112) -> 5 | E113: 12174260 | F113: 367317.3 | G113: 0
A114: Итого по Тихвинскому муниципальному району | C114: =C113 -> 12541577.3 | D114: =D113 -> 5 | E114: 12174260 | F114: 367317.3 | G114: 0
A115: Тосненский район
A116: Муниципальное образование Тосненское городское поселение
A117: =A112+1 -> 60 | B117: Г. Тосно, ул. М. Горького, д. 8а | C117: =E117+F117+G117 -> 5016630.92 | D117: 2 | E117: =2434852*D117 -> 4869704 | F117: =D117*73463.46 -> 146926.92
A118: =A117+1 -> 61 | B118: Г. Тосно, пр. Ленина, д. 19 | C118: =E118+F118+G118 -> 10033261.84 | D118: 4 | E118: 9739408 | F118: =D118*73463.46 -> 293853.84
A119: Итого по муниципальному образованию | C119: =SUM(C117:C118) -> 15049892.76 | D119: =SUM(D117:D118) -> 6 | E119: =SUM(E117:E118) -> 14609112 | F119: =SUM(F117:F118) -> 440780.76 | G119: =SUM(G117:G117) -> 0
A120: Итого по Тосненскому району | C120: =C119 -> 15049892.76 | D120: =D119 -> 6 | E120: 14609112 | F120: 440780.76 | G120: 0
A121: ИТОГО по Ленинградской области | C121: =C31+C38+C53+C104+C93+C9+C70+C80+C114+C109+C120+C98 -> 208479485.4 | D121: =D31+D38+D53+D104+D93+D9+D70+D80+D114+D109+D120 -> 79 | E121: 193427611.1 | F121: 5301874.317 | G121: 9230000
A122: Осуществление строительного контроля | C122: =(C121-F121-G121)*0.0214 -> 4150478.878
A123: Итого по Ленинградской области со строительным контролем | C123: =C121+C122 -> 212629964.3
G197: =SUM(G184:G196) -> 0
G220: =SUM(G202:G219) -> 0
G231: =SUM(G225:G230) -> 0
G239: =SUM(G233:G238) -> 0
G245: =SUM(G241:G243) -> 0
G246: =G197+G220+G231+G245+G239+G223 -> 0
G253: =SUM(G249:G252) -> 0
G317: =SUM(G258:G316) -> 0
G324: =SUM(G323) -> 0
G331: =G253+G317+G324 -> 0
G346: =SUM(G334:G345) -> 0
G351: =SUM(G348:G350) -> 0
G352: =G346+G351 -> 0
G382: =SUM(G355:G381) -> 0
G387: =SUM(G384:G386) -> 0
G391: =SUM(G389:G390) -> 0
G392: =G382+G391+G387 -> 0
G419: =SUM(G395:G418) -> 0
G436: =SUM(G421:G435) -> 0
G443: =SUM(G438:G442) -> 0
G446: =SUM(G445:G445) -> 0
G454: =SUM(G448:G453) -> 0
G462: =SUM(G456:G461) -> 0
G463: =#REF!+#REF!+#REF!+#REF!+#REF!+F463+#REF!+#REF!+#REF!+#REF!+#REF!+#REF!+#REF!+#REF! -> 
G464: =#REF!+#REF!+#REF!+#REF!+#REF!+F464+#REF!+#REF!+#REF!+#REF!+#REF!+#REF!+#REF!+#REF! -> 
G465: =#REF!+#REF!+#REF!+#REF!+#REF!+F465+#REF!+#REF!+#REF!+#REF!+#REF!+#REF!+#REF!+#REF! -> 
G466: =#REF!+#REF!+#REF!+#REF!+#REF!+F466+#REF!+#REF!+#REF!+#REF!+#REF!+#REF!+#REF!+#REF! -> 
G467: =#REF!+#REF!+#REF!+#REF!+#REF!+F467+#REF!+#REF!+#REF!+#REF!+#REF!+#REF!+#REF!+#REF! -> 
G493: =SUM(G469:G492) -> 0
G494: =SUM(G493+G462+G454+G446+G443+G436+G419) -> 0
G530: =SUM(G497:G529) -> 0
G531: =G530 -> 0
G540: =SUM(G534:G537) -> 0
G543: =SUM(G542:G542) -> 0
G548: =SUM(G545:G547) -> 0
G554: =SUM(G550:G553) -> 0
G560: =SUM(G556:G559) -> 0
G564: =SUM(G562:G563) -> 0
G570: =SUM(G566:G569) -> 0
G571: =G548+G540+G543+G570+G564+G554+G560 -> 0
G576: =SUM(G574:G575) -> 0
G599: =SUM(G590:G598) -> 0
G603: =SUM(G601:G602) -> 0
G606: =SUM(G605:G605) -> 0
G615: =SUM(G608:G614) -> 0
G623: =SUM(G617:G622) -> 0
G626: =SUM(G625:G625) -> 0
G629: =SUM(G628) -> 0
G636: =G576+G599+G603+G606+G615+G623+G626+G629+G635 -> 0
G647: =SUM(G639:G646) -> 0
G648: =G647 -> 0
G656: =SUM(G651:G655) -> 0
G662: =SUM(G658:G661) -> 0
G667: =SUM(G664:G666) -> 0
G673: =SUM(G669:G672) -> 0
G677: =SUM(G675:G676) -> 0
G685: =G683+G684 -> 0
G686: =G656+G662+G667+G673+G677 -> 0
G690: =SUM(G689:G689) -> 0
G693: =SUM(G692) -> 0
G731: =SUM(G695:G730) -> 0
G732: =G731+G693+G690 -> 0
G853: =SUM(G734:G852) -> 0
G965: =SUM(G861:G964) -> 0
G985: =SUM(G967:G984) -> 0
G986: =G965+G985 -> 0
G990: =SUM(G989:G989) -> 0
G998: =SUM(G992:G997) -> 0
G1001: =SUM(G1000:G1000) -> 0
G1021: =SUM(G1003:G1020) -> 0
G1024: =SUM(G1023:G1023) -> 0
G1027: =SUM(G1026) -> 0
G1028: =G998+G1001+G1024+G1021+G990+G1027 -> 0

Sheet Раздел 4
A1: Раздел IV. Реестр многоквартирных домов, в которых будет проводиться капитальный ремонт лифтового оборудования в 2022 году, за счет средств собственников
A2: № п\п | B2: Адрес МКД | C2: Стоимость капитального ремонта ВСЕГО | D2: Ремонт или замена лифтового оборудования | F2: ТО | G2: Проект-ные работы
C3: руб. | D3: ед. | E3: руб | F3: руб. | G3: руб.
A4: 1 | B4: 2 | C4: 3 | D4: 4 | E4: 5 | F4: 6 | G4: 7
A6: Волховский муниципальный район
A7: Муниципальное образование Город Волхов
A8: 1 | B8: Г. Волхов, просп. Волховский, д. 57 | C8: =E8+F8+G8 -> 2605709.46 | D8: 1 | E8: =2532246*D8 -> 2532246 | F8: =73463.46*D8 -> 73463.46
A9: Итого по муниципальному образованию | C9: =SUM(C8:C8) -> 2605709.46 | D9: =SUM(D8:D8) -> 1 | E9: =2532246*D9 -> 2532246 | F9: 73463.46 | G9: =SUM(G8:G8) -> 0
A10: Итого по Волховскому муниципальному району | C10: =C9 -> 2605709.46 | D10: =D9 -> 1 | E10: =E9 -> 2532246 | F10: =F9 -> 73463.46 | G10: =G9 -> 0
A11: Всеволожский муниципальный район
A12: Муниципальное образование "Город Всеволожск"
A13: =A8+1 -> 2 | B13: Г. Всеволожск, ул. Василеозерская, д. 7 | C13: =E13+F13+G13 -> 5211418.92 | D13: 2 | E13: =2532246*D13 -> 5064492 | F13: =73463.46*D13 -> 146926.92
A14: =A13+1 -> 3 | B14: Г. Всеволожск, ул. Ленинградская, д. 30, корп. 1 | C14: =E14+F14+G14 -> 2605709.46 | D14: 1 | E14: =2532246*D14 -> 2532246 | F14: =73463.46*D14 -> 73463.46
A15: =A14+1 -> 4 | B15: Г. Всеволожск, ул. Вокка, д. 3 | C15: =E15+F15+G15 -> 5211418.92 | D15: 2 | E15: 5064492 | F15: 146926.92
A16: Итого по муниципальному образованию | C16: =SUM(C13:C15) -> 13028547.3 | D16: =SUM(D13:D15) -> 5 | E16: =SUM(E13:E15) -> 12661230 | F16: =SUM(F13:F15) -> 367317.3 | G16: =SUM(G13:G15) -> 0
A17: Итого по Всеволожскому муниципальному району | C17: =C16 -> 13028547.3 | D17: =D16 -> 5 | E17: =E16 -> 12661230 | F17: =F16 -> 367317.3 | G17: =G16 -> 0
A18: Выборгский район
A19: Муниципальное образование "Город Выборг
A20: =A15+1 -> 5 | B20: Г. Выборг, ул. Гагарина, д. 69 | C20: =E20+F20+G20 -> 5211418.92 | D20: =cвод!J33 -> 2 | E20: =2532246*D20 -> 5064492 | F20: =73463.46*D20 -> 146926.92
A21: Итого по муниципальному образованию | C21: =SUM(C20:C20) -> 5211418.92 | D21: =SUM(D20:D20) -> 2 | E21: =SUM(E20:E20) -> 5064492 | F21: =SUM(F20:F20) -> 146926.92 | G21: =SUM(G20:G20) -> 0
A22: Итого по Выборгскому району | C22: =C21 -> 5211418.92 | D22: =D21 -> 2 | E22: =E21 -> 5064492 | F22: =F21 -> 146926.92 | G22: =G21 -> 0
A23: Гатчинский муниципальный район
A24: Муниципальное образование Город Гатчина
A25: =A20+1 -> 6 | B25: Г. Гатчина, просп. 25 Октября, д. 59 | C25: =E25+F25+G25 -> 7817128.38 | D25: =cвод!J59 -> 3 | E25: =2532246*D25 -> 7596738 | F25: =cвод!L59 -> 220390.38
A26: =A25+1 -> 7 | B26: Г. Гатчина, ул. Рощинская, д. 11, кор. 1 | C26: =E26+F26+G26 -> 2605709.46 | D26: =cвод!J67 -> 1 | E26: =2532246*D26 -> 2532246 | F26: =cвод!L67 -> 73463.46
A27: =A26+1 -> 8 | B27: Г. Гатчина, ул. Рощинская, д. 13А | C27: =E27+F27+G27 -> 5211418.92 | D27: =cвод!J69 -> 2 | E27: 5064492 | F27: =cвод!L69 -> 146926.92
A28: =A27+1 -> 9 | B28: Г. Гатчина, ул. Рощинская, д. 3А | C28: =E28+F28+G28 -> 5211418.92 | D28: =cвод!J71 -> 2 | E28: 5064492 | F28: =cвод!L71 -> 146926.92
A29: Итого по муниципальному образованию | C29: =SUM(C25:C28) -> 20845675.68 | D29: =SUM(D25:D28) -> 8 | E29: =SUM(E25:E28) -> 20257968 | F29: =SUM(F25:F28) -> 587707.68 | G29: =SUM(G25:G28) -> 0
A30: Итого по Гатчинскому муниципальному району | C30: =C29 -> 20845675.68 | D30: =D29 -> 8 | E30: =E29 -> 20257968 | F30: =F29 -> 587707.68 | G30: =G29 -> 0
A31: Кингисеппский муниципальный район
A32: Муниципальное образование Кингисеппское городское поселение
A33: =A28+1 -> 10 | B33: Г. Кингисепп, просп. Карла Маркса, д. 51 | C33: =E33+F33+G33 -> 2605709.46 | D33: 1 | E33: =2532246*D33 -> 2532246 | F33: =73463.46*D33 -> 73463.46
A34: =A33+1 -> 11 | B34: Г. Кингисепп, б-р Большой , д. 11 | C34: 10422837.84 | D34: 4 | E34: 10128984 | F34: 293853.84
A35: 12 | B35: Г. Кингисепп, б-р Большой, д. 15 | C35: 5211418.92 | D35: 2 | E35: 5064492 | F35: =73463.46*D35 -> 146926.92
A36: 13 | B36: Г. Кингисепп, б-р Большой, д. 17 | C36: 15634256.76 | D36: 6 | E36: 15193476 | F36: =73463.46*D36 -> 440780.76
A37: 14 | B37: Г. Кингисепп, ул. Воровского, д. 31в | C37: 5211418.92 | D37: 2 | E37: 5064492 | F37: 146926.92
A38: 15 | B38: Г. Кингисепп, ул. Жукова, д. 8а | C38: 2605709.46 | D38: 1 | E38: 2532246 | F38: 73463.46
A39: 16 | B39: Г. Кингисепп, ш. Крикковское, д. 10а | C39: 5211418.92 | D39: 2 | E39: 5064492 | F39: 146926.92
A40: 17 | B40: Г. Кингисепп, ш. Крикковское, д. 12 | C40: 18239966.22 | D40: 7 | E40: 17725722 | F40: 514244.22
A41: 18 | B41: Г. Кингисепп, ш. Крикковское, д. 14 | C41: 18239966.22 | D41: 7 | E41: 17725722 | F41: 514244.22
A42: 19 | B42: Г. Кингисепп, ш. Крикковское, д. 35 | C42: 13028547.3 | D42: 5 | E42: 12661230 | F42: 367317.3
A43: 20 | B43: Г. Кингисепп, ш. Крикковское, д. 39 | C43: 7817128.38 | D43: 3 | E43: 7596738 | F43: 220390.38
A44: 21 | B44: Г. Кингисепп, ш. Крикковское, д. 6 | C44: 15634256.76 | D44: 6 | E44: 15193476 | F44: 440780.76
A45: Итого по муниципальному образованию | C45: =SUM(C33:C44) -> 119862635.2 | D45: =SUM(D33:D44) -> 46 | E45: =SUM(E33:E44) -> 116483316 | F45: =SUM(F33:F44) -> 3379319.16 | G45: =SUM(G33:G44) -> 0
A46: Итого по Кингисеппскому муниципальному району | C46: =C45 -> 119862635.2 | D46: =D45 -> 46 | E46: =E45 -> 116483316 | F46: =F45 -> 3379319.16 | G46: =G45 -> 0
A47: Киришский муниципальный район
A48: Муниципальное образование Киришское городское поселение
A49: =A44+1 -> 22 | B49: Г. Кириши, бул. Плавницкий, д. 36 | C49: =E49+F49+G49 -> 2605709.46 | D49: =cвод!J96 -> 1 | E49: =2532246*D49 -> 2532246 | F49: =73463.46*D49 -> 73463.46
A50: =A49+1 -> 23 | B50: Г. Кириши, просп. Ленина, д. 40 | C50: =E50+F50+G50 -> 2605709.46 | D50: =cвод!J100 -> 1 | E50: 2532246 | F50: =73463.46*D50 -> 73463.46
A51: =A50+1 -> 24 | B51: Г. Кириши, просп. Ленина, д. 9 | C51: =E51+F51+G51 -> 2605709.46 | D51: =cвод!J101 -> 1 | E51: 2532246 | F51: 73463.46
A52: =A51+1 -> 25 | B52: Г. Кириши, ул. Строителей, д. 2 | C52: =E52+F52+G52 -> 2605709.46 | D52: =cвод!J103 -> 1 | E52: 2532246 | F52: 73463.46
A53: =A52+1 -> 26 | B53: Г. Кириши, ул. Строителей, д. 26 | C53: =E53+F53+G53 -> 2605709.46 | D53: =cвод!J104 -> 1 | E53: 2532246 | F53: 73463.46
A54: Итого по муниципальному образованию | C54: =SUM(C49:C53) -> 13028547.3 | D54: =SUM(D49:D53) -> 5 | E54: =SUM(E49:E53) -> 12661230 | F54: =SUM(F49:F53) -> 367317.3 | G54: =SUM(G49:G53) -> 0
A55: Итого по Киришскому муниципальному району | C55: =C54 -> 13028547.3 | D55: =D54 -> 5 | E55: =E54 -> 12661230 | F55: =F54 -> 367317.3 | G55: =G54 -> 0
A56: Ломоносовский муниципальный район
A57: Муниципальное образование Аннинское сельское поселение
A58: =A53+1 -> 27 | B58: Г.п. Новоселье, д. 7 | C58: =E58+F58+G58 -> 10422837.84 | D58: 4 | E58: =2532246*D58 -> 10128984 | F58: =73463.46*D58 -> 293853.84
A59: Итого по муниципальному образованию | C59: =SUM(C58) -> 10422837.84 | D59: =SUM(D58) -> 4 | E59: 10128984 | F59: 293853.84 | G59: 0
A60: Итого по Ломоносовскому муниципальному району | C60: =C59 -> 10422837.84 | D60: =D59 -> 4 | E60: 10128984 | F60: 293853.84 | G60: 0
A61: Сосновоборский городской округ
A62: Муниципальное образование Сосновоборский городской округ
A63: =A58+1 -> 28 | B63: Г. Сосновый Бор, ул. Ленинградская, д. 38 | C63: =E63+F63+G64 -> 2605709.46 | D63: 1 | E63: =2532246*D63 -> 2532246 | F63: =73463.46*D63 -> 73463.46
A64: =A63+1 -> 29 | B64: Г. Сосновый Бор, ул. Парковая, д. 70 | C64: =E64+F64+G65 -> 2605709.46 | D64: 1 | E64: 2532246 | F64: =73463.46*D64 -> 73463.46
A65: Итого по муниципальному образованию | C65: =SUM(C63:C64) -> 5211418.92 | D65: =SUM(D63:D64) -> 2 | E65: 5064492 | F65: 146926.92 | G65: 0
A66: ИТОГО по Ленинградской области | C66: =C55+C46+C30+C22+C17+C10+C65+C60 -> 190216790.6 | D66: =D55+D46+D30+D22+D17+D10+D65 -> 69 | E66: =E55+E46+E30+E22+E17+E10+E65 -> 174724974 | F66: =F55+F46+F30+F22+F17+F10+F65 -> 5068978.74 | G66: =G55+G46+G30+G22+G17+G10+G65 -> 0
A67: Осуществление строительного контроля | C67: =(C66-F66-G66)*0.0214 -> 3962163.173
A68: Итого по Ленинградской области со строительным контролем | C68: =C66+C67 -> 194178953.8
G142: =SUM(G129:G141) -> 0
G165: =SUM(G147:G164) -> 0
G176: =SUM(G170:G175) -> 0
G184: =SUM(G178:G183) -> 0
G190: =SUM(G186:G188) -> 0
G191: =G142+G165+G176+G190+G184+G168 -> 0
G198: =SUM(G194:G197) -> 0
G262: =SUM(G203:G261) -> 0
G269: =SUM(G268) -> 0
G276: =G198+G262+G269 -> 0
G291: =SUM(G279:G290) -> 0
G296: =SUM(G293:G295) -> 0
G297: =G291+G296 -> 0
G327: =SUM(G300:G326) -> 0
G332: =SUM(G329:G331) -> 0
G336: =SUM(G334:G335) -> 0
G337: =G327+G336+G332 -> 0
G364: =SUM(G340:G363) -> 0
G381: =SUM(G366:G380) -> 0
G388: =SUM(G383:G387) -> 0
G391: =SUM(G390:G390) -> 0
G399: =SUM(G393:G398) -> 0
G407: =SUM(G401:G406) -> 0
G408: =#REF!+#REF!+#REF!+#REF!+#REF!+F408+#REF!+#REF!+#REF!+#REF!+#REF!+#REF!+#REF!+#REF! -> 
G409: =#REF!+#REF!+#REF!+#REF!+#REF!+F409+#REF!+#REF!+#REF!+#REF!+#REF!+#REF!+#REF!+#REF! -> 
G410: =#REF!+#REF!+#REF!+#REF!+#REF!+F410+#REF!+#REF!+#REF!+#REF!+#REF!+#REF!+#REF!+#REF! -> 
G411: =#REF!+#REF!+#REF!+#REF!+#REF!+F411+#REF!+#REF!+#REF!+#REF!+#REF!+#REF!+#REF!+#REF! -> 
G412: =#REF!+#REF!+#REF!+#REF!+#REF!+F412+#REF!+#REF!+#REF!+#REF!+#REF!+#REF!+#REF!+#REF! -> 
G438: =SUM(G414:G437) -> 0
G439: =SUM(G438+G407+G399+G391+G388+G381+G364) -> 0
G475: =SUM(G442:G474) -> 0
G476: =G475 -> 0
G485: =SUM(G479:G482) -> 0
G488: =SUM(G487:G487) -> 0
G493: =SUM(G490:G492) -> 0
G499: =SUM(G495:G498) -> 0
G505: =SUM(G501:G504) -> 0
G509: =SUM(G507:G508) -> 0
G515: =SUM(G511:G514) -> 0
G516: =G493+G485+G488+G515+G509+G499+G505 -> 0
G521: =SUM(G519:G520) -> 0
G544: =SUM(G535:G543) -> 0
G548: =SUM(G546:G547) -> 0
G551: =SUM(G550:G550) -> 0
G560: =SUM(G553:G559) -> 0
G568: =SUM(G562:G567) -> 0
G571: =SUM(G570:G570) -> 0
G574: =SUM(G573) -> 0
G581: =G521+G544+G548+G551+G560+G568+G571+G574+G580 -> 0
G592: =SUM(G584:G591) -> 0
G593: =G592 -> 0
G601: =SUM(G596:G600) -> 0
G607: =SUM(G603:G606) -> 0
G612: =SUM(G609:G611) -> 0
G618: =SUM(G614:G617) -> 0
G622: =SUM(G620:G621) -> 0
G630: =G628+G629 -> 0
G631: =G601+G607+G612+G618+G622 -> 0
G635: =SUM(G634:G634) -> 0
G638: =SUM(G637) -> 0
G676: =SUM(G640:G675) -> 0
G677: =G676+G638+G635 -> 0
G798: =SUM(G679:G797) -> 0
G910: =SUM(G806:G909) -> 0
G930: =SUM(G912:G929) -> 0
G931: =G910+G930 -> 0
G935: =SUM(G934:G934) -> 0
G943: =SUM(G937:G942) -> 0
G946: =SUM(G945:G945) -> 0
G966: =SUM(G948:G965) -> 0
G969: =SUM(G968:G968) -> 0
G972: =SUM(G971) -> 0
G973: =G943+G946+G969+G966+G935+G972 -> 0

Sheet cвод (hidden)
A1: II. Реестр многоквартирных домов, в которых будет проводиться капитальный ремонт лифтового оборудования в период 2020-2022
A2: № п\п | B2: Адрес МКД | C2: Стоимость капитального ремонта ВСЕГО | D2: Виды работ
D3: Ремонт внутридомовых инженерных систем | J3: Ремонт или замена лифтового оборудования | M3: Ремонт крыши | O3: Ремонт подвальных помещений | Q3: Ремонт фасада | S3: Ремонт фундамента | U3: Ремонт подъездов | W3: Утепление фасадов | Y3: Установка коллектив-ных (общедо-мовых) ПУ и УУ | Z3: Проект-ные работы
D4: Всего работ по инженерным системам | E4: в том числе
E5: Ремонт сетей электроснабжения | F5: Ремонт сетей теплоснабжения | G5: Ремонт сетей холодного водоснабжения | H5: Ремонт сетей горячего водоснабжения | I5: Ремонт систем водоотведения | J5: Ремонт или замена лифтового оборудования | L5: ТО
C6: руб. | D6: руб. | E6: руб. | F6: руб. | G6: руб. | H6: руб. | I6: руб. | J6: ед. | K6: руб | L6: руб. | M6: кв.м. | N6: руб. | O6: кв.м. | P6: руб. | Q6: кв.м. | R6: руб. | S6: куб.м. | T6: руб. | U6: куб.м. | V6: руб. | W6: кв.м. | X6: руб. | Y6: руб. | Z6: руб.
A7: 1 | B7: 2 | C7: 3 | D7: 4 | E7: 5 | F7: 6 | G7: 7 | H7: 8 | I7: 9 | J7: 10 | K7: 11 | L7: 12 | M7: 13 | N7: 14 | O7: 15 | P7: 16 | Q7: 17 | R7: 18 | S7: 19 | T7: 20 | U7: 21 | V7: 22 | W7: 23 | X7: 24 | Y7: 25 | Z7: 26
A8: Всеволожский муниципальный район
A9: Муниципальное образование Муринское сельское поселение
A10: 1 | B10: Пос. Мурино, ул. Оборонная, д. 12 | C10: =K10+L10+Z10 -> 7753272.92 | J10: 2 | K10: =3673173*J10 -> 7346346 | L10: =K10*0.02 -> 146926.92 | Z10: =J10*130000 -> 260000
A11: =A10+1 -> 2 | B11: Пос. Мурино, ул. Оборонная, д. 18 | C11: =K11+L11+Z11 -> 7753272.92 | J11: 2 | K11: =3673173*J11 -> 7346346 | L11: =K11*0.02 -> 146926.92 | Z11: =J11*130000 -> 260000
A12: =A11+1 -> 3 | B12: Пос. Мурино, ул. Оборонная, д. 22 | C12: 7753272.92 | J12: 2 | K12: =3673173*J12 -> 7346346 | L12: =K12*0.02 -> 146926.92 | Z12: 260000
A13: Итого по муниципальному образованию | C13: =SUM(C10:C12) -> 23259818.76 | J13: =SUM(J10:J12) -> 6 | K13: =SUM(K10:K12) -> 22039038 | L13: =SUM(L10:L12) -> 440780.76 | Z13: =SUM(Z10:Z12) -> 780000
A14: Муниципальное образование Свердловское городское поселение
A15: =A12+1 -> 4 | B15: Пос. им. Свердлова, микрорайон 1, д. 8 | C15: =K15+L15+Z15 -> 15506545.84 | J15: 4 | K15: =3673173*J15 -> 14692692 | L15: =K15*0.02 -> 293853.84 | Z15: 520000
A16: Итого по муниципальному образованию | C16: =C15 -> 15506545.84 | J16: =J15 -> 4 | K16: =K15 -> 14692692 | L16: =L15 -> 293853.84 | Z16: =Z15 -> 520000
A17: Муниципальное образование "Сертолово"
A18: =A15+1 -> 5 | B18: Г. Сертолово, микрорайон Сертолово-1, ул. Молодежная, д. 8, корп. 2 | C18: =K18+L18+Z18 -> 11629909.38 | J18: 3 | K18: =3673173*J18 -> 11019519 | L18: =K18*0.02 -> 220390.38 | Z18: 390000
A19: =A18+1 -> 6 | B19: Г. Сертолово, микрорайон Сертолово-1, ул. Центральная, д. 6, корп. 1 | C19: 11629909.38 | J19: 3 | K19: 11019519 | L19: 220390.38 | Z19: =J19*130000 -> 390000
A20: =A19+1 -> 7 | B20: Г. Сертолово, микрорайон Сертолово-1, ул. Центральная, д. 7, корп. 1 | C20: 11629909.38 | J20: 3 | K20: 11019519 | L20: 220390.38 | Z20: 390000
A21: Итого по муниципальному образованию | C21: =SUM(C18:C20) -> 34889728.14 | J21: =SUM(J18:J20) -> 9 | K21: =SUM(K18:K20) -> 33058557 | L21: =SUM(L18:L20) -> 661171.14 | Z21: =SUM(Z18:Z20) -> 1170000
A22: Итого по Всеволожскому муниципальному району | C22: =C21+C16+C13 -> 73656092.74 | J22: =J21+J16+J13 -> 19 | K22: =K21+K16+K13 -> 69790287 | L22: 1395805.74 | M22: 0 | N22: 0 | O22: 0 | P22: 0 | Q22: 0 | R22: 0 | S22: 0 | T22: 0 | U22: 0 | V22: 0 | W22: 0 | X22: 0 | Y22: 0 | Z22: 2470000
A23: Выборгский район
A24: Муниципальное образование "Город Выборг
A25: =A20+1 -> 8 | B25: Г. Выборг, бул. Кутузова, д. 33 | C25: =K25+L25+Z25 -> 3876636.46 | J25: 1 | K25: =3673173*J25 -> 3673173 | L25: =K25*0.02 -> 73463.46 | Z25: =J25*130000 -> 130000
A26: =A25+1 -> 9 | B26: Г. Выборг, просп. Московский, д. 10 | C26: 3876636.46 | J26: 1 | K26: 3673173 | L26: 73463.46 | Z26: 130000
A27: 10 | B27: Г. Выборг, просп. Победы, д. 12 | C27: 15506545.84 | J27: 4 | K27: 14692692 | L27: 293853.84 | Z27: 520000
A28: 11 | B28: Г. Выборг, просп. Победы, д. 6 | C28: 3876636.46 | J28: 1 | K28: 3673173 | L28: 73463.46 | Z28: 130000
A29: 12 | B29: Г. Выборг, пр. Победы, д. 8 | C29: 3876636.46 | J29: 1 | K29: 3673173 | L29: 73463.46 | Z29: 130000
A30: 13 | B30: Г. Выборг, ул. Аристарха Макарова, д. 4 | C30: 7753272.92 | J30: 2 | K30: 7346346 | L30: 146926.92 | Z30: 260000
A31: 14 | B31: Г. Выборг, ул. Гагарина, д. 29 | C31: 11629909.38 | J31: 3 | K31: 11019519 | L31: 220390.38 | Z31: 390000
A32: 15 | B32: Г. Выборг, ул. Гагарина, д. 65 | C32: 3876636.46 | J32: 1 | K32: 3673173 | L32: 73463.46 | Z32: 130000
A33: 16 | B33: Г. Выборг, ул. Гагарина, д. 69 | C33: 7753272.92 | J33: 2 | K33: 7346346 | L33: 146926.92 | Z33: 260000
A34: 17 | B34: Г. Выборг, ул. Гагарина, д. 71 | C34: 7753272.92 | J34: 2 | K34: 7346346 | L34: 146926.92 | Z34: 260000
A35: 18 | B35: Г. Выборг, ул. Крепостная, д. 39а | C35: 3876636.46 | J35: 1 | K35: 3673173 | L35: 73463.46 | Z35: 130000
A36: 19 | B36: Г. Выборг, ул. Офицерская, д. 12 | C36: 3876636.46 | J36: 1 | K36: 3673173 | L36: 73463.46 | Z36: 130000
A37: 20 | B37: Г. Выборг, ул. Офицерская, д. 14 | C37: 3876636.46 | J37: 1 | K37: 3673173 | L37: 73463.46 | Z37: 130000
A38: 21 | B38: Г. Выборг, ул. Офицерская, д. 16 | C38: 3876636.46 | J38: 1 | K38: 3673173 | L38: 73463.46 | Z38: 130000
A39: 22 | B39: Г. Выборг, ул. Приморская, д. 36 | C39: 7753272.92 | J39: 2 | K39: 7346346 | L39: 146926.92 | Z39: 260000
A40: 23 | B40: Г. Выборг, ул. Приморская, д. 40 | C40: 15506545.84 | J40: 4 | K40: 14692692 | L40: 293853.84 | Z40: 520000
A41: 24 | B41: Г. Выборг, ул. Приморская, д. 53 | C41: 7753272.92 | J41: 2 | K41: 7346346 | L41: 146926.92 | Z41: 260000
A42: 25 | B42: Г. Выборг, ул. Приморская, д. 64 | C42: 4605632.02 | J42: 2 | K42: =2143508.94+2071836.92 -> 4215345.86 | L42: =65143.08+65143.08 -> 130286.16 | Z42: 260000
A43: 26 | B43: Г. Выборг, ул. Травяная, д. 6 | C43: 7753272.92 | J43: 2 | K43: 7346346 | L43: 146926.92 | Z43: 260000
A44: 27 | B44: Г. Выборг, ш. Ленинградское, д. 51а | C44: 3876636.46 | J44: 1 | K44: 3673173 | L44: 73463.46 | Z44: 130000
A45: Итого по муниципальному образованию | C45: =SUM(C25:C44) -> 132534635.2 | J45: =SUM(J25:J44) -> 35 | K45: =SUM(K25:K44) -> 125430054.9 | L45: =SUM(L25:L44) -> 2554580.34 | Z45: =SUM(Z25:Z44) -> 4550000
A46: Муниципальное образование Светогорское городское поселение
A47: =A44+1 -> 28 | B47: Г. Светогорск, ул. Красноармейская, д. 26 | C47: =K47+L47+Z47 -> 6347373.34 | J47: 3 | K47: =2648486.4+2769300.7 -> 5417787.1 | L47: =74793.12+74793.12 -> 149586.24 | Z47: 780000
A48: =A47+1 -> 29 | B48: Г. Светогорск, ул. Красноармейская, д. 32 | C48: =K48+L48+Z48 -> 15560226.89 | J48: 6 | K48: 14331468.17 | L48: 448758.72 | Z48: =J48*130000 -> 780000
A49: =A48+1 -> 30 | B49: Г. Светогорск, ул. Красноармейская, д. 8 | C49: =K49+L49+Z49 -> 10216441.14 | J49: 4 | K49: =2360581.74+2328175.4+2413371.4+2328175.4 -> 9430303.94 | L49: =66534.3+66534.3+66534.3+66534.3 -> 266137.2 | Z49: 520000
A50: Итого по муниципальному образованию | C50: =SUM(C47:C49) -> 32124041.37 | J50: =SUM(J47:J49) -> 13 | K50: =SUM(K47:K49) -> 29179559.21 | L50: =SUM(L47:L49) -> 864482.16 | Z50: =SUM(Z47:Z49) -> 2080000
A51: Муниципальное образование Советское городское поселение
A52: =A49+1 -> 31 | B52: Г.п. Советский, ул. Садовая, д. 46 | C52: =K52+L52+Z52 -> 2511097.22 | J52: 1 | K52: 2313231.88 | L52: 67865.34 | Z52: 130000
A53: Итого по муниципальному образованию | C53: =C52 -> 2511097.22 | J53: =J52 -> 1 | K53: =K52 -> 2313231.88 | L53: =L52 -> 67865.34 | Z53: =Z52 -> 130000
A54: Итого по Выборгскому району | C54: =C50+C45+C53 -> 167169773.8 | J54: =J50+J45+J53 -> 49 | K54: =K50+K45+K53 -> 156922845.9 | L54: =L50+L45+L53 -> 3486927.84 | Z54: =J54*130000 -> 6370000
A55: Гатчинский муниципальный район
A56: Муниципальное образование Город Гатчина
A57: =A52+1 -> 32 | B57: Г. Гатчина, просп. 25 Октября, д. 50 | C57: =K57+L57+Z57 -> 12324197.62 | J57: 6 | K57: =1837065.6+1850126.4+2020569.6+1866856.8+1872243.6+1870978.8 -> 11317840.8 | L57: =K57*0.02 -> 226356.816 | Z57: 780000
A58: =A57+1 -> 33 | B58: Г. Гатчина, просп. 25 Октября, д. 50, кор. 1 | C58: 7753272.92 | J58: 2 | K58: =3673173*J58 -> 7346346 | L58: 146926.92 | Z58: 260000
A59: 34 | B59: Г. Гатчина, просп. 25 Октября, д. 59 | C59: 11629909.38 | J59: 3 | K59: 11019519 | L59: 220390.38 | Z59: 390000
A60: 35 | B60: Г. Гатчина, просп. 25 Октября, д. 63 | C60: 6190138.2 | J60: 3 | K60: =1833385.2+1973666.4+1879358.4 -> 5686410 | L60: 113728.2 | Z60: 390000
A61: 36 | B61: Г. Гатчина, ул. Авиатриссы Зверевой, д. 11 | C61: 4275976.293 | J61: 2 | K61: =2014907.82+1922323.84 -> 3937231.66 | L61: 78744.6332 | Z61: 260000
A62: 37 | B62: Г. Гатчина, ул. Авиатриссы Зверевой, д. 15 | C62: 7753272.92 | J62: 2 | K62: 7346346 | L62: 146926.92 | Z62: 260000
A63: 38 | B63: Г. Гатчина, ул. Авиатриссы Зверевой, д. 20 | C63: 7753272.92 | J63: 2 | K63: 7346346 | L63: 146926.92 | Z63: 260000
A64: 39 | B64: Г. Гатчина, ул. Авиатриссы Зверевой, д. 3 | C64: 7753272.92 | J64: 2 | K64: 7346346 | L64: 146926.92 | Z64: 260000
A65: 40 | B65: Г. Гатчина, ул. Володарского, д. 25А | C65: 7753272.92 | J65: 2 | K65: 7346346 | L65: 146926.92 | Z65: 260000
A66: 41 | B66: Г. Гатчина, ул. Красных Военлётов, д. 9 | C66: 6555969.768 | J66: 3 | K66: =2072192.4+1954905.6+2017970.4 -> 6045068.4 | L66: 120901.368 | Z66: 390000
A67: 42 | B67: Г. Гатчина, ул. Рощинская, д. 11, кор. 1 | C67: 3876636.46 | J67: 1 | K67: 3673173 | L67: 73463.46 | Z67: 130000
A68: 43 | B68: Г. Гатчина, ул. Рощинская, д. 13, кор. 1 | C68: 2196923.512 | J68: 1 | K68: 2026395.6 | L68: 40527.912 | Z68: 130000
A69: 44 | B69: Г. Гатчина, ул. Рощинская, д. 13А | C69: 7753272.92 | J69: 2 | K69: 7346346 | L69: 146926.92 | Z69: 260000
A70: 45 | B70: Г. Гатчина, ул. Рощинская, д. 19 | C70: 15506545.84 | J70: 4 | K70: 14692692 | L70: 293853.84 | Z70: 520000
A71: 46 | B71: Г. Гатчина, ул. Рощинская, д. 3А | C71: 7753272.92 | J71: 2 | K71: 7346346 | L71: 146926.92 | Z71: 260000
A72: 47 | B72: Г. Гатчина, ул. Рощинская, д. 9Г | C72: 7753272.92 | J72: 2 | K72: 7346346 | L72: 146926.92 | Z72: 260000
A73: 48 | B73: Г. Гатчина, ул. Хохлова, д. 2 | C73: 11629909.38 | J73: 3 | K73: 11019519 | L73: 220390.38 | Z73: 390000
A74: 49 | B74: Г. Гатчина, ул. Чехова, д. 14 | C74: 4545663.416 | J74: 2 | K74: =2272777.2+1928853.6 -> 4201630.8 | L74: 84032.616 | Z74: 260000
A75: Итого по муниципальному образованию | C75: =SUM(C57:C74) -> 140758053.2 | J75: =SUM(J57:J74) -> 44 | K75: =SUM(K57:K74) -> 132390248.3 | L75: =SUM(L57:L74) -> 2647804.965 | Z75: =SUM(Z57:Z74) -> 5720000
A76: Итого по Гатчинскому муниципальному району | C76: =C75 -> 140758053.2 | J76: =J75 -> 44 | K76: =K75 -> 132390248.3 | L76: =L75 -> 2647804.965 | Z76: 5720000
A77: Кингисеппский муниципальный район
A78: Муниципальное образование Кингисеппское городское поселение
A79: =A74+1 -> 50 | B79: Г. Кингисепп, просп. Карла Маркса, д. 51 | C79: =K79+L79+Z79 -> 4193140.42 | J79: 1 | K79: =3983471*J79 -> 3983471 | L79: =K79*0.02 -> 79669.42 | Z79: =J79*130000 -> 130000
A80: =A79+1 -> 51 | B80: Г. Кингисепп, б-р Большой , д. 11 | C80: 16772561.68 | J80: 4 | K80: 15933884 | L80: 318677.68 | Z80: 520000
A81: 52 | B81: Г. Кингисепп, б-р Большой, д. 15 | C81: 8386280.84 | J81: 2 | K81: 7966942 | L81: 159338.84 | Z81: 260000
A82: 53 | B82: Г. Кингисепп, б-р Большой, д. 17 | C82: 25158842.52 | J82: 6 | K82: 23900826 | L82: 478016.52 | Z82: 780000
A83: 54 | B83: Г. Кингисепп, ул. Жукова, д. 4А | C83: 4193140.42 | J83: 1 | K83: 3983471 | L83: 79669.42 | Z83: 130000
A84: 55 | B84: Г. Кингисепп, ул. Жукова, д. 8а | C84: 4193140.42 | J84: 1 | K84: 3983471 | L84: 79669.42 | Z84: 130000
A85: 56 | B85: Г. Кингисепп, ш. Крикковское, д. 10а | C85: 8386280.84 | J85: 2 | K85: =3983471*J85 -> 7966942 | L85: 159338.84 | Z85: 260000
A86: 57 | B86: Г. Кингисепп, ш. Крикковское, д. 12 | C86: 29351982.94 | J86: 7 | K86: 27884297 | L86: 557685.94 | Z86: 910000
A87: 58 | B87: Г. Кингисепп, ш. Крикковское, д. 14 | C87: 29351982.94 | J87: 7 | K87: 27884297 | L87: 557685.94 | Z87: 910000
A88: 59 | B88: Г. Кингисепп, ш. Крикковское, д. 35 | C88: 20965702.1 | J88: 5 | K88: 19917355 | L88: 398347.1 | Z88: 650000
A89: 60 | B89: Г. Кингисепп, ш. Крикковское, д. 39 | C89: 12579421.26 | J89: 3 | K89: 11950413 | L89: 239008.26 | Z89: 390000
A90: 61 | B90: Г. Кингисепп, ш. Крикковское, д. 6 | C90: 25158842.52 | J90: 6 | K90: 23900826 | L90: 478016.52 | Z90: 780000
A91: Итого по муниципальному образованию | C91: =SUM(C79:C90) -> 188691318.9 | J91: =SUM(J79:J90) -> 45 | K91: =SUM(K79:K90) -> 179256195 | L91: =SUM(L79:L90) -> 3585123.9 | Z91: =SUM(Z79:Z90) -> 5850000
A92: Итого по Кингисеппскому муниципальному району | C92: =C91 -> 188691318.9 | J92: =J91 -> 45 | K92: =K91 -> 179256195 | L92: =L91 -> 3585123.9 | Z92: 5850000
A93: Киришский муниципальный район
A94: Муниципальное образование Киришское городское поселение
A95: =A90+1 -> 62 | B95: Г. Кириши, бул. Плавницкий, д. 16 | C95: =K95+L95+Z95 -> 3876636.46 | J95: 1 | K95: =3673173*J95 -> 3673173 | L95: =K95*0.02 -> 73463.46 | Z95: =J95*130000 -> 130000
A96: =A95+1 -> 63 | B96: Г. Кириши, бул. Плавницкий, д. 36 | C96: 3876636.46 | J96: 1 | K96: 3673173 | L96: 73463.46 | Z96: 130000
A97: 64 | B97: Г. Кириши, пер. Березовый, д. 10 | C97: 3876636.46 | J97: 1 | K97: 3673173 | L97: 73463.46 | Z97: 130000
A98: 65 | B98: Г. Кириши, просп. Героев, д. 15 | C98: 3876636.46 | J98: 1 | K98: 3673173 | L98: 73463.46 | Z98: 130000
A99: 66 | B99: Г. Кириши, просп. Героев, д. 17 | C99: 7753272.92 | J99: 2 | K99: 7346346 | L99: 146926.92 | Z99: 260000
A100: 67 | B100: Г. Кириши, просп. Ленина, д. 40 | C100: 3876636.46 | J100: 1 | K100: 3673173 | L100: 73463.46 | Z100: 130000
A101: 68 | B101: Г. Кириши, просп. Ленина, д. 9 | C101: 3876636.46 | J101: 1 | K101: 3673173 | L101: 73463.46 | Z101: 130000
A102: 69 | B102: Г. Кириши, ул. Декабристов Бестужевых, д. 16 | C102: 3876636.46 | J102: 1 | K102: 3673173 | L102: 73463.46 | Z102: 130000
A103: 70 | B103: Г. Кириши, ул. Строителей, д. 2 | C103: 3876636.46 | J103: 1 | K103: 3673173 | L103: 73463.46 | Z103: 130000
A104: 71 | B104: Г. Кириши, ул. Строителей, д. 26 | C104: 3876636.46 | J104: 1 | K104: 3673173 | L104: 73463.46 | Z104: 130000
A105: 72 | B105: Г. Кириши, ул. Строителей, д. 28 | C105: 3876636.46 | J105: 1 | K105: 3673173 | L105: 73463.46 | Z105: 130000
A106: 73 | B106: Г. Кириши, ул. Строителей, д. 30 | C106: 11629909.38 | J106: 3 | K106: 11019519 | L106: 220390.38 | Z106: 390000
A107: 74 | B107: Г. Кириши, ул. Строителей, д. 46 | C107: 15506545.84 | J107: 4 | K107: 14692692 | L107: 293853.84 | Z107: 520000
A108: 75 | B108: Г. Кириши, ул. Энергетиков, д. 40 | C108: 3876636.46 | J108: 1 | K108: 3673173 | L108: 73463.46 | Z108: 130000
A109: Итого по муниципальному образованию | C109: =SUM(C95:C108) -> 77532729.2 | J109: =SUM(J95:J108) -> 20 | K109: =SUM(K95:K108) -> 73463460 | L109: =SUM(L95:L108) -> 1469269.2 | Z109: =SUM(Z95:Z108) -> 2600000
A110: Итого по Киришскому муниципальному району | C110: =C109 -> 77532729.2 | J110: =J109 -> 20 | K110: =K109 -> 73463460 | L110: =L109 -> 1469269.2 | Z110: 2600000
A111: Кировский муниципальный район
A112: Муниципальное образование Кировское городское поселение
A113: =A108+1 -> 76 | B113: Г. Кировск, ул. Ладожская, д. 22 | C113: =K113+L113+Z113 -> 15506545.84 | J113: 4 | K113: =3673173*J113 -> 14692692 | L113: =K113*0.02 -> 293853.84 | Z113: =J113*130000 -> 520000
A114: =A113+1 -> 77 | B114: Г. Кировск, ул. Молодежная, д. 3 | C114: 3876636.46 | J114: 1 | K114: 3673173 | L114: 73463.46 | Z114: 130000
A115: =A114+1 -> 78 | B115: Г. Кировск, ул. Молодежная, д. 5 | C115: 3876636.46 | J115: 1 | K115: 3673173 | L115: 73463.46 | Z115: 130000
A116: =A115+1 -> 79 | B116: Г. Кировск, ул. Новая, д. 13, кор. 1 | C116: 3876636.46 | J116: 1 | K116: 3673173 | L116: 73463.46 | Z116: 130000
A117: =A116+1 -> 80 | B117: Г. Кировск, ул. Новая, д. 13, кор. 2 | C117: 3876636.46 | J117: 1 | K117: 3673173 | L117: 73463.46 | Z117: 130000
A118: =A117+1 -> 81 | B118: Г. Кировск, ул. Северная, д. 17 | C118: 15506545.84 | J118: 4 | K118: 14692692 | L118: 293853.84 | Z118: =J118*130000 -> 520000
A119: Итого по муниципальному образованию | C119: =SUM(C113:C118) -> 46519637.52 | J119: =SUM(J113:J118) -> 12 | K119: =SUM(K113:K118) -> 44078076 | L119: =SUM(L113:L118) -> 881561.52 | Z119: =SUM(Z113:Z118) -> 1560000
A120: Муниципальное образование Отрадненское городское поселение
A121: =A118+1 -> 82 | B121: Г. Отрадное, ул. Железнодорожная, д. 15 | C121: =K121+L121+Z121 -> 3876636.46 | J121: 1 | K121: =3673173*J121 -> 3673173 | L121: =K121*0.02 -> 73463.46 | Z121: =J121*130000 -> 130000
A122: =A121+1 -> 83 | B122: Г. Отрадное, ул. Зарубина, д. 11а | C122: =K122+L122+Z122 -> 3876636.46 | J122: 1 | K122: =3673173*J122 -> 3673173 | L122: =K122*0.02 -> 73463.46 | Z122: 130000
A123: =A122+1 -> 84 | B123: Г. Отрадное, ул. Лесная, д. 6 | C123: =K123+L123+Z123 -> 3876636.46 | J123: 1 | K123: =3673173*J123 -> 3673173 | L123: =K123*0.02 -> 73463.46 | Z123: 130000
A124: =A123+1 -> 85 | B124: Г. Отрадное, ул. Советская, д. 25 | C124: =K124+L124+Z124 -> 3876636.46 | J124: 1 | K124: =3673173*J124 -> 3673173 | L124: =K124*0.02 -> 73463.46 | Z124: 130000
A125: Итого по муниципальному образованию | C125: =SUM(C121:C124) -> 15506545.84 | J125: =SUM(J121:J124) -> 4 | K125: =SUM(K121:K124) -> 14692692 | L125: =SUM(L121:L124) -> 293853.84 | Z125: =SUM(Z121:Z124) -> 520000
A126: Итого по Кировскому муниципальному району | C126: =C125+C119 -> 62026183.36 | J126: =J125+J119 -> 16 | K126: =K125+K119 -> 58770768 | L126: =L125+L119 -> 1175415.36 | Z126: =J126*130000 -> 2080000
A127: Ломоносовский муниципальный район
A128: Муниципальное образование Русско-Высоцкое сельское поселение
A129: =A124+1 -> 86 | B129: С. Русско-Высоцкое, д. 25 | C129: =K129+L129+Z129 -> 7753272.92 | J129: 2 | K129: =3673173*J129 -> 7346346 | L129: =K129*0.02 -> 146926.92 | Z129: =J129*130000 -> 260000
A130: Итого по муниципальному образованию | C130: =C129 -> 7753272.92 | J130: =J129 -> 2 | K130: 7346346 | L130: 146926.92 | Z130: =Z129 -> 260000
A131: Итого по Ломоносовскому муниципальному району | C131: =C130 -> 7753272.92 | J131: 2 | K131: 7346346 | L131: 146926.92 | Z131: =J131*130000 -> 260000
A132: Лужский муниципальный район
A133: Муниципальное образование Лужское городское поселение
A134: =A129+1 -> 87 | B134: Г. Луга, просп. Володарского, д. 26 | C134: =K134+L134+Z134 -> 7400000 | J134: 2 | K134: 7000000 | L134: =K134*0.02 -> 140000 | Z134: =J134*130000 -> 260000
A135: =A134+1 -> 88 | B135: Г. Луга, просп. Урицкого, д. 101 | C135: 3876636.46 | J135: 1 | K135: =3673173*J135 -> 3673173 | L135: 73463.46 | Z135: 130000
A136: 89 | B136: Г. Луга, просп. Урицкого, д. 99 | C136: 3876636.46 | J136: 1 | K136: =3673173*J136 -> 3673173 | L136: 73463.46 | Z136: 130000
A137: 90 | B137: Г. Луга, ул. Миккели, д. 1, кор. 1 | C137: 3876636.46 | J137: 1 | K137: =3673173*J137 -> 3673173 | L137: 73463.46 | Z137: 130000
A138: 91 | B138: Г. Луга, ул. Миккели, д. 1, кор. 3 | C138: 3876636.46 | J138: 1 | K138: =3673173*J138 -> 3673173 | L138: 73463.46 | Z138: 130000
A139: 92 | B139: Г. Луга, ул. Победы, д. 4 | C139: 3700000 | J139: 1 | K139: =3500000 -> 3500000 | L139: 70000 | Z139: 130000
A140: 93 | B140: Г. Луга, ул. Победы, д. 7 | C140: 3700000 | J140: 1 | K140: =3500000 -> 3500000 | L140: 70000 | Z140: 130000
A141: Итого по муниципальному образованию | C141: =SUM(C134:C140) -> 30306545.84 | J141: =SUM(J134:J140) -> 8 | K141: =SUM(K134:K140) -> 28692692 | L141: =SUM(L134:L140) -> 573853.84 | Z141: =SUM(Z134:Z140) -> 1040000
A142: Итого по Лужскому муниципальному району | C142: =C141 -> 30306545.84 | J142: =J141 -> 8 | K142: =K141 -> 28692692 | L142: =L141 -> 573853.84 | Z142: =J142*130000 -> 1040000
A143: Сосновоборский городской округ
A144: Муниципальное образование Сосновоборский городской округ
A145: =A140+1 -> 94 | B145: Г. Сосновый Бор, ул. Ленинградская, д. 30 | C145: =K145+L145+Z145 -> 23259818.76 | J145: 6 | K145: =3673173*J145 -> 22039038 | L145: =K145*0.02 -> 440780.76 | Z145: =J145*130000 -> 780000
A146: =A145+1 -> 95 | B146: Г. Сосновый Бор, ул. Молодежная, д. 26 | C146: 7854407.96 | J146: 2 | K146: =J146*3641478+162542 -> 7445498 | L146: 148909.96 | Z146: 260000
A147: 96 | B147: Г. Сосновый Бор, ул. Молодежная, д. 54 | C147: 3876636.46 | J147: 1 | K147: 3673173 | L147: 73463.46 | Z147: 130000
A148: 97 | B148: Г. Сосновый Бор, ул. Парковая, д. 18 | C148: 15506545.84 | J148: 4 | K148: 14692692 | L148: 293853.84 | Z148: 520000
A149: 98 | B149: Г. Сосновый Бор, ул. Парковая, д. 22 | C149: 3876636.46 | J149: 1 | K149: 3673173 | L149: 73463.46 | Z149: 130000
A150: 99 | B150: Г. Сосновый Бор, ул. Парковая, д. 24 | C150: 15506545.84 | J150: 4 | K150: 14692692 | L150: 293853.84 | Z150: 520000
A151: 100 | B151: Г. Сосновый Бор, ул. Парковая, д. 44 | C151: 11629909.38 | J151: 3 | K151: 11019519 | L151: 220390.38 | Z151: 390000
A152: 101 | B152: Г. Сосновый Бор, ул. Сибирская, д. 5 | C152: 4010100.4 | J152: 1 | K152: =J152*3641478+162542 -> 3804020 | L152: 76080.4 | Z152: 130000
A153: 102 | B153: Г. Сосновый Бор, ул. Солнечная, д. 23а | C153: 3876636.46 | J153: 1 | K153: 3673173 | L153: 73463.46 | Z153: 130000
A154: 103 | B154: Г. Сосновый Бор, ул. Солнечная, д. 30 | C154: 4010100.4 | J154: 1 | K154: =J154*3641478+162542 -> 3804020 | L154: 76080.4 | Z154: =J154*130000 -> 130000
A155: Итого по муниципальному образованию | C155: =SUM(C145:C154) -> 93407337.96 | J155: =SUM(J145:J154) -> 24 | K155: =SUM(K145:K154) -> 88516998 | L155: =SUM(L145:L154) -> 1770339.96 | Z155: =SUM(Z145:Z154) -> 3120000
A156: Сланцевский муниципальный район
A157: Муниципальное образование Сланцевское городское поселение
A158: =A154+1 -> 104 | B158: Г. Сланцы, просп. Молодежный, д. 13 | C158: =K158+L158+Z158 -> 15506545.84 | J158: 4 | K158: =3673173*J158 -> 14692692 | L158: =K158*0.02 -> 293853.84 | Z158: =J158*130000 -> 520000
A159: =A158+1 -> 105 | B159: Г. Сланцы, ул. Гагарина, д. 1 | C159: 3876636.46 | J159: 1 | K159: 3673173 | L159: 73463.46 | Z159: 130000
A160: 106 | B160: Г. Сланцы, ул. Гагарина, д. 5а | C160: 3876636.46 | J160: 1 | K160: 3673173 | L160: 73463.46 | Z160: 130000
A161: 107 | B161: Г. Сланцы, ул. Ленина, д. 25, кор. 1 | C161: 3876636.46 | J161: 1 | K161: 3673173 | L161: 73463.46 | Z161: 130000
A162: 108 | B162: Г. Сланцы, ул. Ленина, д. 25, кор. 4 | C162: 11629909.38 | J162: 3 | K162: 11019519 | L162: 220390.38 | Z162: 390000
A163: 109 | B163: Г. Сланцы, ул. Ленина, д. 25, кор. 6 | C163: 11629909.38 | J163: 3 | K163: 11019519 | L163: 220390.38 | Z163: 390000
A164: 110 | B164: Г. Сланцы, ул. Спортивная, д. 9/2 | C164: 7753272.92 | J164: 2 | K164: 7346346 | L164: 146926.92 | Z164: 260000
A165: 111 | B165: Г. Сланцы, ул. Шахтерской Славы, д. 14, корп. 1 | C165: 3876636.46 | J165: 1 | K165: 3673173 | L165: 73463.46 | Z165: 130000
A166: 112 | B166: Г. Сланцы, ул. Шахтерской Славы, д. 9б | C166: 15506545.84 | J166: 4 | K166: 14692692 | L166: 293853.84 | Z166: 520000
A167: Итого по муниципальному образованию | C167: =SUM(C158:C166) -> 77532729.2 | J167: =SUM(J158:J166) -> 20 | K167: =SUM(K158:K166) -> 73463460 | L167: =SUM(L158:L166) -> 1469269.2 | Z167: =SUM(Z158:Z166) -> 2600000
A168: Итого по Сланцевскому муниципальному району | C168: =C167 -> 77532729.2 | J168: =J167 -> 20 | K168: =K167 -> 73463460 | L168: =L167 -> 1469269.2 | Z168: 2600000
A169: Тихвинский муниципальный район
A170: Муниципальное образование Тихвинское городское поселение
A171: =A166+1 -> 113 | B171: Г. Тихвин, микрорайон 1а, д. 45 | C171: =K171+L171+Z171 -> 7753272.92 | J171: 2 | K171: =3673173*J171 -> 7346346 | L171: =K171*0.02 -> 146926.92 | Z171: =J171*130000 -> 260000
A172: =A171+1 -> 114 | B172: Г. Тихвин, ул. Советская, д. 1 | C172: =K172+L172+Z172 -> 7753272.92 | J172: 2 | K172: =3673173*J172 -> 7346346 | L172: =K172*0.02 -> 146926.92 | Z172: =J172*130000 -> 260000
A173: Итого по муниципальному образованию | C173: =SUM(C171:C172) -> 15506545.84 | J173: =SUM(J171:J172) -> 4 | K173: =SUM(K171:K172) -> 14692692 | L173: =SUM(L171:L172) -> 293853.84 | Z173: =SUM(Z171:Z172) -> 520000
A174: Итого по Тихвинскому муниципальному району | C174: =C173 -> 15506545.84 | J174: =J173 -> 4 | K174: =K173 -> 14692692 | L174: =L173 -> 293853.84 | Z174: =J174*130000 -> 520000
A175: Тосненский район
A176: Муниципальное образование Тосненское городское поселение
A177: =A172+1 -> 115 | B177: Г. Тосно, ул. М. Горького, д. 4 | C177: =K177+L177+Z177 -> 7753272.92 | J177: 2 | K177: =3673173*J177 -> 7346346 | L177: =K177*0.02 -> 146926.92 | Z177: =J177*130000 -> 260000
A178: =A177+1 -> 116 | B178: Г. Тосно, ул. Победы, д. 19А | C178: =K178+L178+Z178 -> 7753272.92 | J178: 2 | K178: =3673173*J178 -> 7346346 | L178: =K178*0.02 -> 146926.92 | Z178: =J178*130000 -> 260000
A179: Итого по муниципальному образованию | C179: =SUM(C177:C178) -> 15506545.84 | J179: =SUM(J177:J178) -> 4 | K179: =SUM(K177:K178) -> 14692692 | L179: =SUM(L177:L178) -> 293853.84 | Z179: =SUM(Z177:Z178) -> 520000
A180: Итого по Тосненскому району | C180: =C179 -> 15506545.84 | J180: =J179 -> 4 | K180: =K179 -> 14692692 | L180: =L179 -> 293853.84 | Z180: =J180*130000 -> 520000
